Workbook

Sheet SolCotizacion
B1: Solicitud de Cotización Software Microsoft OPEN-CSP Gobierno y Educativo
B3: Versión: 34 | C3: 2023-03-14
B4: Información de la Entidad Compradora
B6: Nombre de la Entidad | E6: Secretaría General Alcaldía Mayor de Bogotá | K6: NIT | M6: 899999061
B8: Dirección de la Entidad | E8: Carrera 8 No 10-65 | K8: Correo de contacto | M8: rcaranton@alcaldiabogota.gov.co
B10: Municipio | E10: Bogotá D.C | K10: Teléfono de contacto | M10: 3813000
B12: Nombre funcionario Comprador | E12: Rafael Londoño Caranton
B16: Solicitud de Cotización
B18: Categoría | E18: OPEN VALUE - CSP GOBIERNO | I18: Valor TRM | J18: 4736.03 | L18: 2 | M18: Fecha de lanzamiento del evento de cotización | N18: 2023-03-29
I19: Debe ingresar máximo dos decimales.
B20: Productos
A22: *Libros, revistas, cartillas y/o catálogo Segmento 1. | B22: =E18 -> OPEN VALUE - CSP GOBIERNO
B24: Cantidad de filas:
B25: 1
B27: Item | C27: Código Catálogo | E27: Descripción del Producto | I27: Tipo | J27: Unidad | K27: Zona | L27: Asistencia | M27: Perfil | N27: Número de parte | O27: Forma de Pago | P27: cantidad
A28: =E28&L28 -> Microsoft O365 E3 Open Subscription Open Value Level D 1 Month AP_OV_OVNTON/A | B28: 1 | C28: Q5Y-00005 | E28: =IFERROR(VLOOKUP($C28&$E$18,Consolidado!$B:$U,9,0),VLOOKUP($C28&"Canal",Consolidado!$B:$U,9,0)) -> Microsoft O365 E3 Open Subscription Open Value Level D 1 Month AP_OV_OVNTO | I28: =IFERROR(VLOOKUP($C28&$E$18,Consolidado!$B:$U,12,0),VLOOKUP($C28&"Canal",Consolidado!$B:$U,12,0)) -> Producto | J28: =IFERROR(VLOOKUP($C28&$E$18,Consolidado!$B:$U,10,0),VLOOKUP($C28&"Canal",Consolidado!$B:$U,10,0)) -> Unidad | K28: =IFERROR(VLOOKUP($C28&$E$18,Consolidado!$B:$U,13,0),VLOOKUP($C28&"Canal",Consolidado!$B:$U,13,0)) -> N/A | L28: =IFERROR(VLOOKUP($C28&$E$18,Consolidado!$B:$U,14,0),VLOOKUP($C28&"Canal",Consolidado!$B:$U,14,0)) -> N/A | M28: =IFERROR(VLOOKUP($C28&$E$18,Consolidado!$B:$U,15,0),VLOOKUP($C28&"Canal",Consolidado!$B:$U,15,0)) -> OPEN VALUE GOBIERNO | N28: =IFERROR(VLOOKUP($C28&$E$18,Consolidado!$B:$U,16,0),VLOOKUP($C28&"Canal",Consolidado!$B:$U,16,0)) -> Q5Y-00005 | O28: =IFERROR(VLOOKUP($C28&$E$18,Consolidado!$B:$U,17,0),VLOOKUP($C28&"Canal",Consolidado!$B:$U,17,0)) -> Suscripción mensual con pago anual | P28: 2676 | Q28: =IFERROR(VLOOKUP($C28&$E$18,Consolidado!$B:$U,5,0),VLOOKUP($C28&"Canal",Consolidado!$B:$U,5,0)) -> OPEN VALUE - CSP GOBIERNO
A29: =E29&L29 -> Microsoft O365 E1 Archiving Subscription Open Value Level D 1 Month AP_OV_OVNTON/A | B29: 2 | C29: 7JT-00002 | E29: =IFERROR(VLOOKUP($C29&$E$18,Consolidado!$B:$U,9,0),VLOOKUP($C29&"Canal",Consolidado!$B:$U,9,0)) -> Microsoft O365 E1 Archiving Subscription Open Value Level D 1 Month AP_OV_OVNTO | I29: =IFERROR(VLOOKUP($C29&$E$18,Consolidado!$B:$U,12,0),VLOOKUP($C29&"Canal",Consolidado!$B:$U,12,0)) -> Producto | J29: =IFERROR(VLOOKUP($C29&$E$18,Consolidado!$B:$U,10,0),VLOOKUP($C29&"Canal",Consolidado!$B:$U,10,0)) -> Unidad | K29: =IFERROR(VLOOKUP($C29&$E$18,Consolidado!$B:$U,13,0),VLOOKUP($C29&"Canal",Consolidado!$B:$U,13,0)) -> N/A | L29: =IFERROR(VLOOKUP($C29&$E$18,Consolidado!$B:$U,14,0),VLOOKUP($C29&"Canal",Consolidado!$B:$U,14,0)) -> N/A | M29: =IFERROR(VLOOKUP($C29&$E$18,Consolidado!$B:$U,15,0),VLOOKUP($C29&"Canal",Consolidado!$B:$U,15,0)) -> OPEN VALUE GOBIERNO | N29: =IFERROR(VLOOKUP($C29&$E$18,Consolidado!$B:$U,16,0),VLOOKUP($C29&"Canal",Consolidado!$B:$U,16,0)) -> 7JT-00002 | O29: =IFERROR(VLOOKUP($C29&$E$18,Consolidado!$B:$U,17,0),VLOOKUP($C29&"Canal",Consolidado!$B:$U,17,0)) -> Suscripción mensual con pago anual | P29: 14736 | Q29: =IFERROR(VLOOKUP($C29&$E$18,Consolidado!$B:$U,5,0),VLOOKUP($C29&"Canal",Consolidado!$B:$U,5,0)) -> OPEN VALUE - CSP GOBIERNO
A30: =E30&L30 -> Microsoft Power BI Pro Open Subscription Open Value Level D 1 Month AP_OV_OVNTON/A | B30: 3 | C30: DW6-00005 | E30: =IFERROR(VLOOKUP($C30&$E$18,Consolidado!$B:$U,9,0),VLOOKUP($C30&"Canal",Consolidado!$B:$U,9,0)) -> Microsoft Power BI Pro Open Subscription Open Value Level D 1 Month AP_OV_OVNTO | I30: =IFERROR(VLOOKUP($C30&$E$18,Consolidado!$B:$U,12,0),VLOOKUP($C30&"Canal",Consolidado!$B:$U,12,0)) -> Producto | J30: =IFERROR(VLOOKUP($C30&$E$18,Consolidado!$B:$U,10,0),VLOOKUP($C30&"Canal",Consolidado!$B:$U,10,0)) -> Unidad | K30: =IFERROR(VLOOKUP($C30&$E$18,Consolidado!$B:$U,13,0),VLOOKUP($C30&"Canal",Consolidado!$B:$U,13,0)) -> N/A | L30: =IFERROR(VLOOKUP($C30&$E$18,Consolidado!$B:$U,14,0),VLOOKUP($C30&"Canal",Consolidado!$B:$U,14,0)) -> N/A | M30: =IFERROR(VLOOKUP($C30&$E$18,Consolidado!$B:$U,15,0),VLOOKUP($C30&"Canal",Consolidado!$B:$U,15,0)) -> OPEN VALUE GOBIERNO | N30: =IFERROR(VLOOKUP($C30&$E$18,Consolidado!$B:$U,16,0),VLOOKUP($C30&"Canal",Consolidado!$B:$U,16,0)) -> DW6-00005 | O30: =IFERROR(VLOOKUP($C30&$E$18,Consolidado!$B:$U,17,0),VLOOKUP($C30&"Canal",Consolidado!$B:$U,17,0)) -> Suscripción mensual con pago anual | P30: 240 | Q30: =IFERROR(VLOOKUP($C30&$E$18,Consolidado!$B:$U,5,0),VLOOKUP($C30&"Canal",Consolidado!$B:$U,5,0)) -> OPEN VALUE - CSP GOBIERNO
B31: 1. Si requiere agregue o elimine fila
B34: Gravámenes adicionales*
B35: Si los hay, indique los gravámenes adicionales a los que está sujeta la Orden de Compra. Son gravámenes adicionales por ejemplo; estampillas y demás impuestos territoriales. Los impuestos como ICA y retención en la fuente NO son gravámenes adicionales.
B36: Gravámenes adicionales (estampillas)
B37: No | C37: Descripción | H37: Porcentaje
B38: 1 | C38: estampillas distritales | H38: 0.036
F39: Total porcentaje: | H39: =SUM(H38:H38) -> 0.036
D40: Filas a agregar o eliminar Gravámenes:
D41: 1

Sheet Anexo
B1: Con el objetivo de complementar el entendimiento sobre la solicitud de Productos y Servicios Microsoft , por favor diligencie la totalidad de la información que se pide a continuación.
B3: Tenga en cuenta que esta información es de utilidad para que el Proveedor pueda cotizar de la manera más precisa posible los Productos y Servicios Microsoft solicitados, por lo cual la exactitud y completitud es muy importante.
A4: No | B4: Requerimiento adicional | C4: Descripción | D4: INFORMACION SUMINISTRADA POR LA ENTIDAD COMPRADORA
B5: Nombre y Nit de la Entidad Estatal a la cual se le entregará la titularidad de las licencias adquiridas.
A6: 1 | B6: Lugar de entrega de los Productos y Servicios Microsoft. (Especificar dirección y ciudad de entrega).
A7: 2 | B7: Datos Contacto de entrega (Especificar nombre, teléfono y correo electrónico).
A8: 3 | B8: Funciones a realizar el soporte en sitio.
A9: 4 | B9: Área de conocimiento de las personas que prestan el servicio de soporte técnico proactivo.
A10: 5 | B10: Área de conocimiento de las personas que prestan el servicio de soporte técnico reactivo.
A11: 6 | B11: Mecanismo de solicitud del soporte reactivo.
A12: 7 | B12: Especificar que información o que bases de datos se van a migrar. Aplica en el caso que la Entidad Compradora solicite el servicio de migración de información o de bases de datos.
A13: 8 | B13: Actividades del gerente de cuenta.
A14: 9 | B14: Indique número de personas que requieren de capacitación. En caso que la Entidad Compradora solicite el servicio de capacitación usuario final o usuario técnico.
A15: 10 | B15: Especificar características de configuración y descripción de las tareas a realizar. En caso que la Entidad Compradora solicite el servicio de configuración y parametrización.
A16: 12 | B16: Establecer las políticas de respaldo de información.

Sheet ResumenCotizacion
B1: Solicitud de Cotización Software Microsoft OPEN-CSP Gobierno y Educativo
B3: =SolCotizacion!B3 -> Versión: 34 | C3: =+SolCotizacion!C3 -> 2023-03-14
B4: Información de la Entidad Compradora
B6: Nombre de la Entidad | E6: Secretaría General Alcaldía Mayor de Bogotá | K6: NIT | M6: 899999061
B8: Dirección de la Entidad | E8: Carrera 8 No 10-65 | K8: Correo de contacto | M8: rcaranton@alcaldiabogota.gov.co
B10: Municipio | E10: Bogotá D.C | K10: Teléfono de contacto | M10: 3813000
B12: Nombre funcionario Comprador | E12: Rafael Londoño Caranton
B16: Solicitud de Cotización
B18: Categoría | E18: OPEN VALUE - CSP GOBIERNO | I18: Valor TRM | J18: =SolCotizacion!J18 -> 4736.03 | M18: Fecha | N18: =SolCotizacion!N18 -> 2023-03-29
B20: Productos
A22: *Libros, revistas, cartillas y/o catálogo Segmento 1. | B22: =SolCotizacion!B22 -> OPEN VALUE - CSP GOBIERNO
B24: Cantidad de filas:
B25: 1
B27: Item | C27: Código Catálogo | E27: Descripción del Producto | I27: Tipo | J27: Unidad | K27: Zona | L27: Asistencia | M27: Perfil | N27: Número de parte | O27: Forma de Pago | P27: cantidad | Q27: Precio Unitario | R27: Precio Unitario + Gravamen | S27: Subtotal | T27: IVA | U27: Precio Total
A28: Microsoft O365 E3 Open Subscription Open Value Level D 1 Month AP_OV_OVNTON/A | B28: 1 | C28: Q5Y-00005 | E28: Microsoft O365 E3 Open Subscription Open Value Level D 1 Month AP_OV_OVNTO | I28: Producto | J28: Unidad | K28: N/A | L28: N/A | M28: OPEN VALUE GOBIERNO | N28: Q5Y-00005 | O28: Suscripción mensual con pago anual | P28: 2676 | Q28: =IFERROR(VLOOKUP("Controles Empresariales"&$V28&$C28,temp!$A:$Y,19,0)*$J$18,VLOOKUP("Catalogo principal"&$V28&$C28,temp!$A:$Y,19,0)*$J$18) -> 108928.69 | R28: =ROUND(Q28/(1-(VLOOKUP("Total porcentaje:",$F:$H,3))),2) -> 112996.57 | S28: =ROUND(P28*R28,2) -> 302378821.3 | T28: =IFERROR(ROUND(S28*IF(VLOOKUP("Controles Empresariales"&$V28&$C28,Consolidado!$A:$U,21,0)=1,19%,0),2),ROUND(S28*IF(VLOOKUP("Catalogo principal"&$V28&$C28,Consolidado!$A:$U,21,0)=1,19%,0),2)) -> 0 | U28: =S28+T28 -> 302378821.3 | V28: =IFERROR(VLOOKUP($C28&$E$18,Consolidado!$B:$U,5,0),VLOOKUP($C28&"Canal",Consolidado!$B:$U,5,0)) -> OPEN VALUE - CSP GOBIERNO | W28: =VLOOKUP($C28,Consolidado!$E:$G,3,0) -> Catalogo principal
A29: Microsoft O365 E1 Archiving Subscription Open Value Level D 1 Month AP_OV_OVNTON/A | B29: 2 | C29: 7JT-00002 | E29: Microsoft O365 E1 Archiving Subscription Open Value Level D 1 Month AP_OV_OVNTO | I29: Producto | J29: Unidad | K29: N/A | L29: N/A | M29: OPEN VALUE GOBIERNO | N29: 7JT-00002 | O29: Suscripción mensual con pago anual | P29: 14736 | Q29: =IFERROR(VLOOKUP("Controles Empresariales"&$V29&$C29,temp!$A:$Y,19,0)*$J$18,VLOOKUP("Catalogo principal"&$V29&$C29,temp!$A:$Y,19,0)*$J$18) -> 43571.476 | R29: =ROUND(Q29/(1-(VLOOKUP("Total porcentaje:",$F:$H,3))),2) -> 45198.63 | S29: =ROUND(P29*R29,2) -> 666047011.7 | T29: =IFERROR(ROUND(S29*IF(VLOOKUP("Controles Empresariales"&$V29&$C29,Consolidado!$A:$U,21,0)=1,19%,0),2),ROUND(S29*IF(VLOOKUP("Catalogo principal"&$V29&$C29,Consolidado!$A:$U,21,0)=1,19%,0),2)) -> 0 | U29: =S29+T29 -> 666047011.7 | V29: =IFERROR(VLOOKUP($C29&$E$18,Consolidado!$B:$U,5,0),VLOOKUP($C29&"Canal",Consolidado!$B:$U,5,0)) -> OPEN VALUE - CSP GOBIERNO | W29: =VLOOKUP($C29,Consolidado!$E:$G,3,0) -> Catalogo principal
A30: Microsoft Power BI Pro Open Subscription Open Value Level D 1 Month AP_OV_OVNTON/A | B30: 3 | C30: DW6-00005 | E30: Microsoft Power BI Pro Open Subscription Open Value Level D 1 Month AP_OV_OVNTO | I30: Producto | J30: Unidad | K30: N/A | L30: N/A | M30: OPEN VALUE GOBIERNO | N30: DW6-00005 | O30: Suscripción mensual con pago anual | P30: 240 | Q30: =IFERROR(VLOOKUP("Controles Empresariales"&$V30&$C30,temp!$A:$Y,19,0)*$J$18,VLOOKUP("Catalogo principal"&$V30&$C30,temp!$A:$Y,19,0)*$J$18) -> 47360.3 | R30: =ROUND(Q30/(1-(VLOOKUP("Total porcentaje:",$F:$H,3))),2) -> 49128.94 | S30: =ROUND(P30*R30,2) -> 11790945.6 | T30: =IFERROR(ROUND(S30*IF(VLOOKUP("Controles Empresariales"&$V30&$C30,Consolidado!$A:$U,21,0)=1,19%,0),2),ROUND(S30*IF(VLOOKUP("Catalogo principal"&$V30&$C30,Consolidado!$A:$U,21,0)=1,19%,0),2)) -> 0 | U30: =S30+T30 -> 11790945.6 | V30: =IFERROR(VLOOKUP($C30&$E$18,Consolidado!$B:$U,5,0),VLOOKUP($C30&"Canal",Consolidado!$B:$U,5,0)) -> OPEN VALUE - CSP GOBIERNO | W30: =VLOOKUP($C30,Consolidado!$E:$G,3,0) -> Catalogo principal
B31: 1. Si requiere agregue o elimine fila | T31: Valor Total | U31: =ROUND(SUM($U$28:$U$30),2) -> 980216778.6
B34: Gravámenes adicionales*
B35: Si los hay, indique los gravámenes adicionales a los que está sujeta la Orden de Compra. Son gravámenes adicionales por ejemplo; estampillas y demás impuestos territoriales. Los impuestos como ICA y retención en la fuente NO son gravámenes adicionales.
B36: Gravámenes adicionales (estampillas)
B37: No | C37: Descripción | H37: Porcentaje
B38: 1 | C38: estampillas distritales | H38: 0.036
F39: Total porcentaje: | H39: =SUM(H38:H38) -> 0.036
D40: Filas a agregar o eliminar Gravámenes:
D41: 1
... 1 more rows

Sheet Cotizacion
B1: Solicitud de Cotización Software Microsoft OPEN-CSP Gobierno y Educativo
B3: =SolCotizacion!B3 -> Versión: 34 | C3: =SolCotizacion!C3 -> 2023-03-14
B4: Información de la Entidad Compradora
B6: Nombre de la Entidad | E6: Secretaría General Alcaldía Mayor de Bogotá | K6: NIT | M6: 899999061
B8: Dirección de la Entidad | E8: Carrera 8 No 10-65 | K8: Correo de contacto | M8: rcaranton@alcaldiabogota.gov.co
B10: Municipio | E10: Bogotá D.C | K10: Teléfono de contacto | M10: 3813000
B12: Nombre funcionario Comprador | E12: Rafael Londoño Caranton
B16: Solicitud de Cotización
B18: Categoría | E18: OPEN VALUE - CSP GOBIERNO | I18: Valor TRM | J18: =SolCotizacion!J18 -> 4736.03 | M18: Fecha | N18: =SolCotizacion!N18 -> 2023-03-29
B20: Productos
A22: *Libros, revistas, cartillas y/o catálogo Segmento 1. | B22: =SolCotizacion!B22 -> OPEN VALUE - CSP GOBIERNO
B24: Cantidad de filas:
B25: 1 | L25: Proveedor
B27: Item | C27: Código Catálogo | E27: Descripción del Producto | I27: Tipo | J27: Unidad | K27: Zona | L27: Asistencia | M27: Perfil | N27: Número de parte | O27: Forma de Pago | P27: cantidad | Q27: Precio Unitario | R27: Precio Unitario + Gravamen | S27: Descuento adicional | T27: Precio con Descuento | U27: Subtotal | V27: IVA | W27: Vr IVA | X27: Precio Total
A28: Microsoft O365 E3 Open Subscription Open Value Level D 1 Month AP_OV_OVNTON/A | B28: 1 | C28: Q5Y-00005 | E28: Microsoft O365 E3 Open Subscription Open Value Level D 1 Month AP_OV_OVNTO | I28: Producto | J28: Unidad | K28: N/A | L28: N/A | M28: OPEN VALUE GOBIERNO | N28: Q5Y-00005 | O28: Suscripción mensual con pago anual | P28: 2676 | Q28: =IFERROR(VLOOKUP($N$25&$Y28&$C28,temp!$A:$Y,19,0)*$J$18,VLOOKUP("Catalogo principal"&$Y28&$C28,temp!$A:$Y,19,0)*$J$18) -> 108928.69 | R28: =ROUND(Q28/(1-(VLOOKUP("Total porcentaje:",$F:$H,3))),2) -> 112996.57 | T28: =ROUND(R28*(1-S28),2) -> 112996.57 | U28: =ROUND(P28*T28,2) -> 302378821.3 | W28: =IF(V28="Si",U28*19%,0) -> 0 | X28: =U28+W28 -> 302378821.3 | Y28: =IFERROR(VLOOKUP($C28&$E$18,Consolidado!$B:$U,5,0),VLOOKUP($C28&"Canal",Consolidado!$B:$U,5,0)) -> OPEN VALUE - CSP GOBIERNO | Z28: =VLOOKUP($C28,Consolidado!$E:$G,3,0) -> Catalogo principal
A29: Microsoft O365 E1 Archiving Subscription Open Value Level D 1 Month AP_OV_OVNTON/A | B29: 2 | C29: 7JT-00002 | E29: Microsoft O365 E1 Archiving Subscription Open Value Level D 1 Month AP_OV_OVNTO | I29: Producto | J29: Unidad | K29: N/A | L29: N/A | M29: OPEN VALUE GOBIERNO | N29: 7JT-00002 | O29: Suscripción mensual con pago anual | P29: 14736 | Q29: =IFERROR(VLOOKUP($N$25&$Y29&$C29,temp!$A:$Y,19,0)*$J$18,VLOOKUP("Catalogo principal"&$Y29&$C29,temp!$A:$Y,19,0)*$J$18) -> 43571.476 | R29: =ROUND(Q29/(1-(VLOOKUP("Total porcentaje:",$F:$H,3))),2) -> 45198.63 | T29: =ROUND(R29*(1-S29),2) -> 45198.63 | U29: =ROUND(P29*T29,2) -> 666047011.7 | W29: =IF(V29="Si",U29*19%,0) -> 0 | X29: =U29+W29 -> 666047011.7 | Y29: =IFERROR(VLOOKUP($C29&$E$18,Consolidado!$B:$U,5,0),VLOOKUP($C29&"Canal",Consolidado!$B:$U,5,0)) -> OPEN VALUE - CSP GOBIERNO | Z29: =VLOOKUP($C29,Consolidado!$E:$G,3,0) -> Catalogo principal
A30: Microsoft Power BI Pro Open Subscription Open Value Level D 1 Month AP_OV_OVNTON/A | B30: 3 | C30: DW6-00005 | E30: Microsoft Power BI Pro Open Subscription Open Value Level D 1 Month AP_OV_OVNTO | I30: Producto | J30: Unidad | K30: N/A | L30: N/A | M30: OPEN VALUE GOBIERNO | N30: DW6-00005 | O30: Suscripción mensual con pago anual | P30: 240 | Q30: =IFERROR(VLOOKUP($N$25&$Y30&$C30,temp!$A:$Y,19,0)*$J$18,VLOOKUP("Catalogo principal"&$Y30&$C30,temp!$A:$Y,19,0)*$J$18) -> 47360.3 | R30: =ROUND(Q30/(1-(VLOOKUP("Total porcentaje:",$F:$H,3))),2) -> 49128.94 | T30: =ROUND(R30*(1-S30),2) -> 49128.94 | U30: =ROUND(P30*T30,2) -> 11790945.6 | W30: =IF(V30="Si",U30*19%,0) -> 0 | X30: =U30+W30 -> 11790945.6 | Y30: =IFERROR(VLOOKUP($C30&$E$18,Consolidado!$B:$U,5,0),VLOOKUP($C30&"Canal",Consolidado!$B:$U,5,0)) -> OPEN VALUE - CSP GOBIERNO | Z30: =VLOOKUP($C30,Consolidado!$E:$G,3,0) -> Catalogo principal
B31: 1. Si requiere agregue o elimine fila | W31: Valor Total | X31: =ROUND(SUM($X$28:$X$30),2) -> 980216778.6
B34: Gravámenes adicionales*
B35: Si los hay, indique los gravámenes adicionales a los que está sujeta la Orden de Compra. Son gravámenes adicionales por ejemplo; estampillas y demás impuestos territoriales. Los impuestos como ICA y retención en la fuente NO son gravámenes adicionales.
B36: Gravámenes adicionales (estampillas)
B37: No | C37: Descripción | H37: Porcentaje
B38: 1 | C38: estampillas distritales | H38: 0.036
F39: Total porcentaje: | H39: =SUM(H38:H38) -> 0.036
D40: Filas a agregar o eliminar Gravámenes:
D41: 1

Sheet Consolidado (hidden)
A1: LLAVE | B1: TEMP1 | C1: TEMP2 | D1: PROVEEDOR | E1: Código matriz Colombia Compra Eficiente | F1: categoria | G1: PROVEEDOR2 | H1: Moneda | I1: Parametrización de los Servicios | J1: Nombre Producto | K1: Unidad de Medida | L1: Unidad TVEC | M1: Tipo | N1: Zona | O1: Asistencia | P1: Perfil | Q1: Número de parte | R1: Forma de Pago | S1: Precio | T1: Activo | U1: IVA | V1: Moneda | X1: Familia
A2: =D2&F2&E2 -> Controles EmpresarialesCANALIT-SW-01-01 | B2: =E2&F2 -> IT-SW-01-01CANAL | D2: Controles Empresariales | E2: IT-SW-01-01 | F2: CANAL | G2: =D2 -> Controles Empresariales | H2: COP | I2: N/A | J2: Capacitación para usuario final - hasta 10 Personas. | K2: Por sesión de capacitación de 4 horas para un grupo de hasta 10 personas. | L2: Und | M2: Servicio | N2: Zona 1 | O2: Remoto | P2: Capacitador | Q2: IT-SW-01-01 | R2: Mensual por servicios efectivamente prestados | S2: 650000 | T2: 1 | U2: 1 | V2: =H2 -> COP
A3: =D3&F3&E3 -> Controles EmpresarialesCANALIT-SW-01-02 | B3: =E3&F3 -> IT-SW-01-02CANAL | D3: Controles Empresariales | E3: IT-SW-01-02 | F3: CANAL | G3: =D3 -> Controles Empresariales | H3: COP | I3: N/A | J3: Capacitación para usuario final - hasta 10 Personas. | K3: Por sesión de capacitación de 4 horas para un grupo de hasta 10 personas. | L3: Und | M3: Servicio | N3: Zona 1 | O3: Sitio | P3: Capacitador | Q3: IT-SW-01-02 | R3: Mensual por servicios efectivamente prestados | S3: 670000 | T3: 1 | U3: 1 | V3: =H3 -> COP
A4: Controles EmpresarialesCANALIT-SW-01-03 | B4: IT-SW-01-03CANAL | D4: Controles Empresariales | E4: IT-SW-01-03 | F4: CANAL | G4: Controles Empresariales | H4: COP | I4: N/A | J4: Capacitación para usuario final - hasta 10 Personas. | K4: Por sesión de capacitación de 4 horas para un grupo de hasta 10 personas. | L4: Und | M4: Servicio | N4: Zona 2 | O4: Remoto | P4: Capacitador | Q4: IT-SW-01-03 | R4: Mensual por servicios efectivamente prestados | S4: 650000 | T4: 1 | U4: 1 | V4: COP
A5: Controles EmpresarialesCANALIT-SW-01-04 | B5: IT-SW-01-04CANAL | D5: Controles Empresariales | E5: IT-SW-01-04 | F5: CANAL | G5: Controles Empresariales | H5: COP | I5: N/A | J5: Capacitación para usuario final - hasta 10 Personas. | K5: Por sesión de capacitación de 4 horas para un grupo de hasta 10 personas. | L5: Und | M5: Servicio | N5: Zona 2 | O5: Sitio | P5: Capacitador | Q5: IT-SW-01-04 | R5: Mensual por servicios efectivamente prestados | S5: 700000 | T5: 1 | U5: 1 | V5: COP
A6: Controles EmpresarialesCANALIT-SW-01-05 | B6: IT-SW-01-05CANAL | D6: Controles Empresariales | E6: IT-SW-01-05 | F6: CANAL | G6: Controles Empresariales | H6: COP | I6: N/A | J6: Capacitación para usuario final - hasta 10 Personas. | K6: Por sesión de capacitación de 4 horas para un grupo de hasta 10 personas. | L6: Und | M6: Servicio | N6: Zona 3 | O6: Remoto | P6: Capacitador | Q6: IT-SW-01-05 | R6: Mensual por servicios efectivamente prestados | S6: 650000 | T6: 1 | U6: 1 | V6: COP
A7: Controles EmpresarialesCANALIT-SW-01-06 | B7: IT-SW-01-06CANAL | D7: Controles Empresariales | E7: IT-SW-01-06 | F7: CANAL | G7: Controles Empresariales | H7: COP | I7: N/A | J7: Capacitación para usuario final - hasta 10 Personas. | K7: Por sesión de capacitación de 4 horas para un grupo de hasta 10 personas. | L7: Und | M7: Servicio | N7: Zona 3 | O7: Sitio | P7: Capacitador | Q7: IT-SW-01-06 | R7: Mensual por servicios efectivamente prestados | S7: 750000 | T7: 1 | U7: 1 | V7: COP
A8: Controles EmpresarialesCANALIT-SW-02-01 | B8: IT-SW-02-01CANAL | D8: Controles Empresariales | E8: IT-SW-02-01 | F8: CANAL | G8: Controles Empresariales | H8: COP | I8: N/A | J8: Capacitación para usuario final hasta 20 Personas. | K8: Por sesión de capacitación de 4 horas para un grupo de hasta 20 personas. | L8: Und | M8: Servicio | N8: Zona 1 | O8: Remoto | P8: Capacitador | Q8: IT-SW-02-01 | R8: Mensual por servicios efectivamente prestados | S8: 650000 | T8: 1 | U8: 1 | V8: COP
A9: Controles EmpresarialesCANALIT-SW-02-02 | B9: IT-SW-02-02CANAL | D9: Controles Empresariales | E9: IT-SW-02-02 | F9: CANAL | G9: Controles Empresariales | H9: COP | I9: N/A | J9: Capacitación para usuario final hasta 20 Personas. | K9: Por sesión de capacitación de 4 horas para un grupo de hasta 20 personas. | L9: Und | M9: Servicio | N9: Zona 1 | O9: Sitio | P9: Capacitador | Q9: IT-SW-02-02 | R9: Mensual por servicios efectivamente prestados | S9: 670000 | T9: 1 | U9: 1 | V9: COP
A10: Controles EmpresarialesCANALIT-SW-02-03 | B10: IT-SW-02-03CANAL | D10: Controles Empresariales | E10: IT-SW-02-03 | F10: CANAL | G10: Controles Empresariales | H10: COP | I10: N/A | J10: Capacitación para usuario final hasta 20 Personas. | K10: Por sesión de capacitación de 4 horas para un grupo de hasta 20 personas. | L10: Und | M10: Servicio | N10: Zona 2 | O10: Remoto | P10: Capacitador | Q10: IT-SW-02-03 | R10: Mensual por servicios efectivamente prestados | S10: 650000 | T10: 1 | U10: 1 | V10: COP
A11: Controles EmpresarialesCANALIT-SW-02-04 | B11: IT-SW-02-04CANAL | D11: Controles Empresariales | E11: IT-SW-02-04 | F11: CANAL | G11: Controles Empresariales | H11: COP | I11: N/A | J11: Capacitación para usuario final hasta 20 Personas. | K11: Por sesión de capacitación de 4 horas para un grupo de hasta 20 personas. | L11: Und | M11: Servicio | N11: Zona 2 | O11: Sitio | P11: Capacitador | Q11: IT-SW-02-04 | R11: Mensual por servicios efectivamente prestados | S11: 700000 | T11: 1 | U11: 1 | V11: COP
A12: Controles EmpresarialesCANALIT-SW-02-05 | B12: IT-SW-02-05CANAL | D12: Controles Empresariales | E12: IT-SW-02-05 | F12: CANAL | G12: Controles Empresariales | H12: COP | I12: N/A | J12: Capacitación para usuario final hasta 20 Personas. | K12: Por sesión de capacitación de 4 horas para un grupo de hasta 20 personas. | L12: Und | M12: Servicio | N12: Zona 3 | O12: Remoto | P12: Capacitador | Q12: IT-SW-02-05 | R12: Mensual por servicios efectivamente prestados | S12: 650000 | T12: 1 | U12: 1 | V12: COP
A13: Controles EmpresarialesCANALIT-SW-02-06 | B13: IT-SW-02-06CANAL | D13: Controles Empresariales | E13: IT-SW-02-06 | F13: CANAL | G13: Controles Empresariales | H13: COP | I13: N/A | J13: Capacitación para usuario final hasta 20 Personas. | K13: Por sesión de capacitación de 4 horas para un grupo de hasta 20 personas. | L13: Und | M13: Servicio | N13: Zona 3 | O13: Sitio | P13: Capacitador | Q13: IT-SW-02-06 | R13: Mensual por servicios efectivamente prestados | S13: 750000 | T13: 1 | U13: 1 | V13: COP
A14: Controles EmpresarialesCANALIT-SW-03-01 | B14: IT-SW-03-01CANAL | D14: Controles Empresariales | E14: IT-SW-03-01 | F14: CANAL | G14: Controles Empresariales | H14: COP | I14: N/A | J14: Capacitación para usuario técnico o administrador - hasta 10 Personas. | K14: Por sesión de capacitación de 4 horas para un grupo de hasta 10 personas. | L14: Und | M14: Servicio | N14: Zona 1 | O14: Remoto | P14: Capacitador | Q14: IT-SW-03-01 | R14: Mensual por servicios efectivamente prestados | S14: 727800 | T14: 1 | U14: 1 | V14: COP
A15: Controles EmpresarialesCANALIT-SW-03-02 | B15: IT-SW-03-02CANAL | D15: Controles Empresariales | E15: IT-SW-03-02 | F15: CANAL | G15: Controles Empresariales | H15: COP | I15: N/A | J15: Capacitación para usuario técnico o administrador - hasta 10 Personas. | K15: Por sesión de capacitación de 4 horas para un grupo de hasta 10 personas. | L15: Und | M15: Servicio | N15: Zona 1 | O15: Sitio | P15: Capacitador | Q15: IT-SW-03-02 | R15: Mensual por servicios efectivamente prestados | S15: 737800 | T15: 1 | U15: 1 | V15: COP
A16: Controles EmpresarialesCANALIT-SW-03-03 | B16: IT-SW-03-03CANAL | D16: Controles Empresariales | E16: IT-SW-03-03 | F16: CANAL | G16: Controles Empresariales | H16: COP | I16: N/A | J16: Capacitación para usuario técnico o administrador - hasta 10 Personas. | K16: Por sesión de capacitación de 4 horas para un grupo de hasta 10 personas. | L16: Und | M16: Servicio | N16: Zona 2 | O16: Remoto | P16: Capacitador | Q16: IT-SW-03-03 | R16: Mensual por servicios efectivamente prestados | S16: 727800 | T16: 1 | U16: 1 | V16: COP
A17: Controles EmpresarialesCANALIT-SW-03-04 | B17: IT-SW-03-04CANAL | D17: Controles Empresariales | E17: IT-SW-03-04 | F17: CANAL | G17: Controles Empresariales | H17: COP | I17: N/A | J17: Capacitación para usuario técnico o administrador - hasta 10 Personas. | K17: Por sesión de capacitación de 4 horas para un grupo de hasta 10 personas. | L17: Und | M17: Servicio | N17: Zona 2 | O17: Sitio | P17: Capacitador | Q17: IT-SW-03-04 | R17: Mensual por servicios efectivamente prestados | S17: 767800 | T17: 1 | U17: 1 | V17: COP
A18: Controles EmpresarialesCANALIT-SW-03-05 | B18: IT-SW-03-05CANAL | D18: Controles Empresariales | E18: IT-SW-03-05 | F18: CANAL | G18: Controles Empresariales | H18: COP | I18: N/A | J18: Capacitación para usuario técnico o administrador - hasta 10 Personas. | K18: Por sesión de capacitación de 4 horas para un grupo de hasta 10 personas. | L18: Und | M18: Servicio | N18: Zona 3 | O18: Remoto | P18: Capacitador | Q18: IT-SW-03-05 | R18: Mensual por servicios efectivamente prestados | S18: 727800 | T18: 1 | U18: 1 | V18: COP
A19: Controles EmpresarialesCANALIT-SW-03-06 | B19: IT-SW-03-06CANAL | D19: Controles Empresariales | E19: IT-SW-03-06 | F19: CANAL | G19: Controles Empresariales | H19: COP | I19: N/A | J19: Capacitación para usuario técnico o administrador - hasta 10 Personas. | K19: Por sesión de capacitación de 4 horas para un grupo de hasta 10 personas. | L19: Und | M19: Servicio | N19: Zona 3 | O19: Sitio | P19: Capacitador | Q19: IT-SW-03-06 | R19: Mensual por servicios efectivamente prestados | S19: 862800 | T19: 1 | U19: 1 | V19: COP
A20: Controles EmpresarialesCANALIT-SW-04-01 | B20: IT-SW-04-01CANAL | D20: Controles Empresariales | E20: IT-SW-04-01 | F20: CANAL | G20: Controles Empresariales | H20: COP | I20: N/A | J20: Capacitación para usuario técnico o administrador hasta 20 Personas. | K20: Por sesión de capacitación de 4 horas para un grupo de hasta 20 personas. | L20: Und | M20: Servicio | N20: Zona 1 | O20: Remoto | P20: Capacitador | Q20: IT-SW-04-01 | R20: Mensual por servicios efectivamente prestados | S20: 727800 | T20: 1 | U20: 1 | V20: COP
A21: Controles EmpresarialesCANALIT-SW-04-02 | B21: IT-SW-04-02CANAL | D21: Controles Empresariales | E21: IT-SW-04-02 | F21: CANAL | G21: Controles Empresariales | H21: COP | I21: N/A | J21: Capacitación para usuario técnico o administrador hasta 20 Personas. | K21: Por sesión de capacitación de 4 horas para un grupo de hasta 20 personas. | L21: Und | M21: Servicio | N21: Zona 1 | O21: Sitio | P21: Capacitador | Q21: IT-SW-04-02 | R21: Mensual por servicios efectivamente prestados | S21: 737800 | T21: 1 | U21: 1 | V21: COP
A22: Controles EmpresarialesCANALIT-SW-04-03 | B22: IT-SW-04-03CANAL | D22: Controles Empresariales | E22: IT-SW-04-03 | F22: CANAL | G22: Controles Empresariales | H22: COP | I22: N/A | J22: Capacitación para usuario técnico o administrador hasta 20 Personas. | K22: Por sesión de capacitación de 4 horas para un grupo de hasta 20 personas. | L22: Und | M22: Servicio | N22: Zona 2 | O22: Remoto | P22: Capacitador | Q22: IT-SW-04-03 | R22: Mensual por servicios efectivamente prestados | S22: 727800 | T22: 1 | U22: 1 | V22: COP
A23: Controles EmpresarialesCANALIT-SW-04-04 | B23: IT-SW-04-04CANAL | D23: Controles Empresariales | E23: IT-SW-04-04 | F23: CANAL | G23: Controles Empresariales | H23: COP | I23: N/A | J23: Capacitación para usuario técnico o administrador hasta 20 Personas. | K23: Por sesión de capacitación de 4 horas para un grupo de hasta 20 personas. | L23: Und | M23: Servicio | N23: Zona 2 | O23: Sitio | P23: Capacitador | Q23: IT-SW-04-04 | R23: Mensual por servicios efectivamente prestados | S23: 767800 | T23: 1 | U23: 1 | V23: COP
A24: Controles EmpresarialesCANALIT-SW-04-05 | B24: IT-SW-04-05CANAL | D24: Controles Empresariales | E24: IT-SW-04-05 | F24: CANAL | G24: Controles Empresariales | H24: COP | I24: N/A | J24: Capacitación para usuario técnico o administrador hasta 20 Personas. | K24: Por sesión de capacitación de 4 horas para un grupo de hasta 20 personas. | L24: Und | M24: Servicio | N24: Zona 3 | O24: Remoto | P24: Capacitador | Q24: IT-SW-04-05 | R24: Mensual por servicios efectivamente prestados | S24: 727800 | T24: 1 | U24: 1 | V24: COP
A25: Controles EmpresarialesCANALIT-SW-04-06 | B25: IT-SW-04-06CANAL | D25: Controles Empresariales | E25: IT-SW-04-06 | F25: CANAL | G25: Controles Empresariales | H25: COP | I25: N/A | J25: Capacitación para usuario técnico o administrador hasta 20 Personas. | K25: Por sesión de capacitación de 4 horas para un grupo de hasta 20 personas. | L25: Und | M25: Servicio | N25: Zona 3 | O25: Sitio | P25: Capacitador | Q25: IT-SW-04-06 | R25: Mensual por servicios efectivamente prestados | S25: 862800 | T25: 1 | U25: 1 | V25: COP
A26: Controles EmpresarialesCANALIT-SW-05-01 | B26: IT-SW-05-01CANAL | D26: Controles Empresariales | E26: IT-SW-05-01 | F26: CANAL | G26: Controles Empresariales | H26: COP | I26: N/A | J26: Configuración y parametrización de los Productos | K26: Hora | L26: Und | M26: Servicio | N26: Zona 1 | O26: Remoto | P26: Profesional | Q26: IT-SW-05-01 | R26: Mensual por servicios efectivamente prestados | S26: 181950 | T26: 1 | U26: 1 | V26: COP
A27: Controles EmpresarialesCANALIT-SW-05-02 | B27: IT-SW-05-02CANAL | D27: Controles Empresariales | E27: IT-SW-05-02 | F27: CANAL | G27: Controles Empresariales | H27: COP | I27: N/A | J27: Configuración y parametrización de los Productos | K27: Hora | L27: Und | M27: Servicio | N27: Zona 1 | O27: Sitio | P27: Profesional | Q27: IT-SW-05-02 | R27: Mensual por servicios efectivamente prestados | S27: 186950 | T27: 1 | U27: 1 | V27: COP
A28: Controles EmpresarialesCANALIT-SW-05-03 | B28: IT-SW-05-03CANAL | D28: Controles Empresariales | E28: IT-SW-05-03 | F28: CANAL | G28: Controles Empresariales | H28: COP | I28: N/A | J28: Configuración y parametrización de los Productos | K28: Hora | L28: Und | M28: Servicio | N28: Zona 2 | O28: Remoto | P28: Profesional | Q28: IT-SW-05-03 | R28: Mensual por servicios efectivamente prestados | S28: 181950 | T28: 1 | U28: 1 | V28: COP
A29: Controles EmpresarialesCANALIT-SW-05-04 | B29: IT-SW-05-04CANAL | D29: Controles Empresariales | E29: IT-SW-05-04 | F29: CANAL | G29: Controles Empresariales | H29: COP | I29: N/A | J29: Configuración y parametrización de los Productos | K29: Hora | L29: Und | M29: Servicio | N29: Zona 2 | O29: Sitio | P29: Profesional | Q29: IT-SW-05-04 | R29: Mensual por servicios efectivamente prestados | S29: 194450 | T29: 1 | U29: 1 | V29: COP
A30: Controles EmpresarialesCANALIT-SW-05-05 | B30: IT-SW-05-05CANAL | D30: Controles Empresariales | E30: IT-SW-05-05 | F30: CANAL | G30: Controles Empresariales | H30: COP | I30: N/A | J30: Configuración y parametrización de los Productos | K30: Hora | L30: Und | M30: Servicio | N30: Zona 3 | O30: Remoto | P30: Profesional | Q30: IT-SW-05-05 | R30: Mensual por servicios efectivamente prestados | S30: 181950 | T30: 1 | U30: 1 | V30: COP
A31: Controles EmpresarialesCANALIT-SW-05-06 | B31: IT-SW-05-06CANAL | D31: Controles Empresariales | E31: IT-SW-05-06 | F31: CANAL | G31: Controles Empresariales | H31: COP | I31: N/A | J31: Configuración y parametrización de los Productos | K31: Hora | L31: Und | M31: Servicio | N31: Zona 3 | O31: Sitio | P31: Profesional | Q31: IT-SW-05-06 | R31: Mensual por servicios efectivamente prestados | S31: 206950 | T31: 1 | U31: 1 | V31: COP
A32: Controles EmpresarialesCANALIT-SW-06-01 | B32: IT-SW-06-01CANAL | D32: Controles Empresariales | E32: IT-SW-06-01 | F32: CANAL | G32: Controles Empresariales | H32: COP | I32: N/A | J32: Gerente de cuenta (soporte) | K32: Mes | L32: Und | M32: Servicio | N32: Zona 1 | O32: Sitio | P32: Profesional | Q32: IT-SW-06-01 | R32: Mensual por servicios efectivamente prestados | S32: 17948571 | T32: 1 | U32: 1 | V32: COP
A33: Controles EmpresarialesCANALIT-SW-06-02 | B33: IT-SW-06-02CANAL | D33: Controles Empresariales | E33: IT-SW-06-02 | F33: CANAL | G33: Controles Empresariales | H33: COP | I33: N/A | J33: Gerente de cuenta (soporte) | K33: Mes | L33: Und | M33: Servicio | N33: Zona 2 | O33: Sitio | P33: Profesional | Q33: IT-SW-06-02 | R33: Mensual por servicios efectivamente prestados | S33: 18848571 | T33: 1 | U33: 1 | V33: COP
A34: Controles EmpresarialesCANALIT-SW-06-03 | B34: IT-SW-06-03CANAL | D34: Controles Empresariales | E34: IT-SW-06-03 | F34: CANAL | G34: Controles Empresariales | H34: COP | I34: N/A | J34: Gerente de cuenta (soporte) | K34: Mes | L34: Und | M34: Servicio | N34: Zona 3 | O34: Sitio | P34: Profesional | Q34: IT-SW-06-03 | R34: Mensual por servicios efectivamente prestados | S34: 19748571 | T34: 1 | U34: 1 | V34: COP
A35: Controles EmpresarialesCANALIT-SW-07-01 | B35: IT-SW-07-01CANAL | D35: Controles Empresariales | E35: IT-SW-07-01 | F35: CANAL | G35: Controles Empresariales | H35: COP | I35: N/A | J35: Instalación de Licencia o Suscripción Anual, o afínes | K35: Unidad | L35: Und | M35: Servicio | N35: Zona 1 | O35: Remoto | P35: Técnico/Tecnólogo ó Profesional | Q35: IT-SW-07-01 | R35: Mensual por servicios efectivamente prestados | S35: 363900 | T35: 1 | U35: 1 | V35: COP
A36: Controles EmpresarialesCANALIT-SW-07-02 | B36: IT-SW-07-02CANAL | D36: Controles Empresariales | E36: IT-SW-07-02 | F36: CANAL | G36: Controles Empresariales | H36: COP | I36: N/A | J36: Instalación de Licencia o Suscripción Anual, o afínes | K36: Unidad | L36: Und | M36: Servicio | N36: Zona 1 | O36: Sitio | P36: Técnico/Tecnólogo ó Profesional | Q36: IT-SW-07-02 | R36: Mensual por servicios efectivamente prestados | S36: 368900 | T36: 1 | U36: 1 | V36: COP
A37: Controles EmpresarialesCANALIT-SW-07-03 | B37: IT-SW-07-03CANAL | D37: Controles Empresariales | E37: IT-SW-07-03 | F37: CANAL | G37: Controles Empresariales | H37: COP | I37: N/A | J37: Instalación de Licencia o Suscripción Anual, o afínes | K37: Unidad | L37: Und | M37: Servicio | N37: Zona 2 | O37: Remoto | P37: Técnico/Tecnólogo ó Profesional | Q37: IT-SW-07-03 | R37: Mensual por servicios efectivamente prestados | S37: 363900 | T37: 1 | U37: 1 | V37: COP
A38: Controles EmpresarialesCANALIT-SW-07-04 | B38: IT-SW-07-04CANAL | D38: Controles Empresariales | E38: IT-SW-07-04 | F38: CANAL | G38: Controles Empresariales | H38: COP | I38: N/A | J38: Instalación de Licencia o Suscripción Anual, o afínes | K38: Unidad | L38: Und | M38: Servicio | N38: Zona 2 | O38: Sitio | P38: Técnico/Tecnólogo ó Profesional | Q38: IT-SW-07-04 | R38: Mensual por servicios efectivamente prestados | S38: 383900 | T38: 1 | U38: 1 | V38: COP
A39: Controles EmpresarialesCANALIT-SW-07-05 | B39: IT-SW-07-05CANAL | D39: Controles Empresariales | E39: IT-SW-07-05 | F39: CANAL | G39: Controles Empresariales | H39: COP | I39: N/A | J39: Instalación de Licencia o Suscripción Anual, o afínes | K39: Unidad | L39: Und | M39: Servicio | N39: Zona 3 | O39: Remoto | P39: Técnico/Tecnólogo ó Profesional | Q39: IT-SW-07-05 | R39: Mensual por servicios efectivamente prestados | S39: 363900 | T39: 1 | U39: 1 | V39: COP
A40: Controles EmpresarialesCANALIT-SW-07-06 | B40: IT-SW-07-06CANAL | D40: Controles Empresariales | E40: IT-SW-07-06 | F40: CANAL | G40: Controles Empresariales | H40: COP | I40: N/A | J40: Instalación de Licencia o Suscripción Anual, o afínes | K40: Unidad | L40: Und | M40: Servicio | N40: Zona 3 | O40: Sitio | P40: Técnico/Tecnólogo ó Profesional | Q40: IT-SW-07-06 | R40: Mensual por servicios efectivamente prestados | S40: 431400 | T40: 1 | U40: 1 | V40: COP
A41: Controles EmpresarialesCANALIT-SW-08-01 | B41: IT-SW-08-01CANAL | D41: Controles Empresariales | E41: IT-SW-08-01 | F41: CANAL | G41: Controles Empresariales | H41: COP | I41: N/A | J41: Migración de información por volumen de datos almacenados | K41: GB | L41: Und | M41: Servicio | N41: Zona 1 | O41: Remoto | P41: Profesional | Q41: IT-SW-08-01 | R41: Mensual por servicios efectivamente prestados | S41: 100000 | T41: 1 | U41: 1 | V41: COP
A42: Controles EmpresarialesCANALIT-SW-08-02 | B42: IT-SW-08-02CANAL | D42: Controles Empresariales | E42: IT-SW-08-02 | F42: CANAL | G42: Controles Empresariales | H42: COP | I42: N/A | J42: Migración de información por volumen de datos almacenados | K42: GB | L42: Und | M42: Servicio | N42: Zona 1 | O42: Sitio | P42: Profesional | Q42: IT-SW-08-02 | R42: Mensual por servicios efectivamente prestados | S42: 105000 | T42: 1 | U42: 1 | V42: COP
A43: Controles EmpresarialesCANALIT-SW-08-03 | B43: IT-SW-08-03CANAL | D43: Controles Empresariales | E43: IT-SW-08-03 | F43: CANAL | G43: Controles Empresariales | H43: COP | I43: N/A | J43: Migración de información por volumen de datos almacenados | K43: GB | L43: Und | M43: Servicio | N43: Zona 2 | O43: Remoto | P43: Profesional | Q43: IT-SW-08-03 | R43: Mensual por servicios efectivamente prestados | S43: 100000 | T43: 1 | U43: 1 | V43: COP
A44: Controles EmpresarialesCANALIT-SW-08-04 | B44: IT-SW-08-04CANAL | D44: Controles Empresariales | E44: IT-SW-08-04 | F44: CANAL | G44: Controles Empresariales | H44: COP | I44: N/A | J44: Migración de información por volumen de datos almacenados | K44: GB | L44: Und | M44: Servicio | N44: Zona 2 | O44: Sitio | P44: Profesional | Q44: IT-SW-08-04 | R44: Mensual por servicios efectivamente prestados | S44: 112500 | T44: 1 | U44: 1 | V44: COP
A45: Controles EmpresarialesCANALIT-SW-08-05 | B45: IT-SW-08-05CANAL | D45: Controles Empresariales | E45: IT-SW-08-05 | F45: CANAL | G45: Controles Empresariales | H45: COP | I45: N/A | J45: Migración de información por volumen de datos almacenados | K45: GB | L45: Und | M45: Servicio | N45: Zona 3 | O45: Remoto | P45: Profesional | Q45: IT-SW-08-05 | R45: Mensual por servicios efectivamente prestados | S45: 100000 | T45: 1 | U45: 1 | V45: COP
A46: Controles EmpresarialesCANALIT-SW-08-06 | B46: IT-SW-08-06CANAL | D46: Controles Empresariales | E46: IT-SW-08-06 | F46: CANAL | G46: Controles Empresariales | H46: COP | I46: N/A | J46: Migración de información por volumen de datos almacenados | K46: GB | L46: Und | M46: Servicio | N46: Zona 3 | O46: Sitio | P46: Profesional | Q46: IT-SW-08-06 | R46: Mensual por servicios efectivamente prestados | S46: 125000 | T46: 1 | U46: 1 | V46: COP
A47: Controles EmpresarialesCANALIT-SW-09-01 | B47: IT-SW-09-01CANAL | D47: Controles Empresariales | E47: IT-SW-09-01 | F47: CANAL | G47: Controles Empresariales | H47: COP | I47: N/A | J47: Soporte técnico en sitio | K47: Mes | L47: Und | M47: Servicio | N47: Zona 1 | O47: Sitio | P47: Técnico/Tecnólogo ó Profesional | Q47: IT-SW-09-01 | R47: Mensual por servicios efectivamente prestados | S47: 17948571 | T47: 1 | U47: 1 | V47: COP
A48: Controles EmpresarialesCANALIT-SW-09-02 | B48: IT-SW-09-02CANAL | D48: Controles Empresariales | E48: IT-SW-09-02 | F48: CANAL | G48: Controles Empresariales | H48: COP | I48: N/A | J48: Soporte técnico en sitio | K48: Mes | L48: Und | M48: Servicio | N48: Zona 2 | O48: Sitio | P48: Técnico/Tecnólogo ó Profesional | Q48: IT-SW-09-02 | R48: Mensual por servicios efectivamente prestados | S48: 18848571 | T48: 1 | U48: 1 | V48: COP
A49: Controles EmpresarialesCANALIT-SW-09-03 | B49: IT-SW-09-03CANAL | D49: Controles Empresariales | E49: IT-SW-09-03 | F49: CANAL | G49: Controles Empresariales | H49: COP | I49: N/A | J49: Soporte técnico en sitio | K49: Mes | L49: Und | M49: Servicio | N49: Zona 3 | O49: Sitio | P49: Técnico/Tecnólogo ó Profesional | Q49: IT-SW-09-03 | R49: Mensual por servicios efectivamente prestados | S49: 19748571 | T49: 1 | U49: 1 | V49: COP
A50: Controles EmpresarialesCANALIT-SW-10-01 | B50: IT-SW-10-01CANAL | D50: Controles Empresariales | E50: IT-SW-10-01 | F50: CANAL | G50: Controles Empresariales | H50: COP | I50: N/A | J50: Soporte técnico proactivo | K50: Hora | L50: Und | M50: Servicio | N50: Zona 2 | O50: Remoto | P50: Técnico/Tecnólogo ó Profesional | Q50: IT-SW-10-01 | R50: Mensual por servicios efectivamente prestados | S50: 181950 | T50: 1 | U50: 1 | V50: COP
A51: Controles EmpresarialesCANALIT-SW-10-02 | B51: IT-SW-10-02CANAL | D51: Controles Empresariales | E51: IT-SW-10-02 | F51: CANAL | G51: Controles Empresariales | H51: COP | I51: N/A | J51: Soporte técnico proactivo | K51: Hora | L51: Und | M51: Servicio | N51: Zona 2 | O51: Sitio | P51: Técnico/Tecnólogo ó Profesional | Q51: IT-SW-10-02 | R51: Mensual por servicios efectivamente prestados | S51: 194450 | T51: 1 | U51: 1 | V51: COP
A52: Controles EmpresarialesCANALIT-SW-10-03 | B52: IT-SW-10-03CANAL | D52: Controles Empresariales | E52: IT-SW-10-03 | F52: CANAL | G52: Controles Empresariales | H52: COP | I52: N/A | J52: Soporte técnico proactivo | K52: Hora | L52: Und | M52: Servicio | N52: Zona 1 | O52: Remoto | P52: Técnico/Tecnólogo ó Profesional | Q52: IT-SW-10-03 | R52: Mensual por servicios efectivamente prestados | S52: 181950 | T52: 1 | U52: 1 | V52: COP
A53: Controles EmpresarialesCANALIT-SW-10-04 | B53: IT-SW-10-04CANAL | D53: Controles Empresariales | E53: IT-SW-10-04 | F53: CANAL | G53: Controles Empresariales | H53: COP | I53: N/A | J53: Soporte técnico proactivo | K53: Hora | L53: Und | M53: Servicio | N53: Zona 3 | O53: Remoto | P53: Técnico/Tecnólogo ó Profesional | Q53: IT-SW-10-04 | R53: Mensual por servicios efectivamente prestados | S53: 181950 | T53: 1 | U53: 1 | V53: COP
A54: Controles EmpresarialesCANALIT-SW-10-05 | B54: IT-SW-10-05CANAL | D54: Controles Empresariales | E54: IT-SW-10-05 | F54: CANAL | G54: Controles Empresariales | H54: COP | I54: N/A | J54: Soporte técnico proactivo | K54: Hora | L54: Und | M54: Servicio | N54: Zona 3 | O54: Sitio | P54: Técnico/Tecnólogo ó Profesional | Q54: IT-SW-10-05 | R54: Mensual por servicios efectivamente prestados | S54: 206950 | T54: 1 | U54: 1 | V54: COP
A55: Controles EmpresarialesCANALIT-SW-10-06 | B55: IT-SW-10-06CANAL | D55: Controles Empresariales | E55: IT-SW-10-06 | F55: CANAL | G55: Controles Empresariales | H55: COP | I55: N/A | J55: Soporte técnico proactivo | K55: Hora | L55: Und | M55: Servicio | N55: Zona 1 | O55: Sitio | P55: Técnico/Tecnólogo ó Profesional | Q55: IT-SW-10-06 | R55: Mensual por servicios efectivamente prestados | S55: 186950 | T55: 1 | U55: 1 | V55: COP
A56: Controles EmpresarialesCANALIT-SW-11-01 | B56: IT-SW-11-01CANAL | D56: Controles Empresariales | E56: IT-SW-11-01 | F56: CANAL | G56: Controles Empresariales | H56: COP | I56: N/A | J56: Soporte técnico reactivo | K56: Hora | L56: Und | M56: Servicio | N56: Zona 1 | O56: Sitio | P56: Técnico/Tecnólogo ó Profesional | Q56: IT-SW-11-01 | R56: Mensual por servicios efectivamente prestados | S56: 186950 | T56: 1 | U56: 1 | V56: COP
A57: Controles EmpresarialesCANALIT-SW-11-02 | B57: IT-SW-11-02CANAL | D57: Controles Empresariales | E57: IT-SW-11-02 | F57: CANAL | G57: Controles Empresariales | H57: COP | I57: N/A | J57: Soporte técnico reactivo | K57: Hora | L57: Und | M57: Servicio | N57: Zona 2 | O57: Remoto | P57: Técnico/Tecnólogo ó Profesional | Q57: IT-SW-11-02 | R57: Mensual por servicios efectivamente prestados | S57: 181950 | T57: 1 | U57: 1 | V57: COP
A58: Controles EmpresarialesCANALIT-SW-11-03 | B58: IT-SW-11-03CANAL | D58: Controles Empresariales | E58: IT-SW-11-03 | F58: CANAL | G58: Controles Empresariales | H58: COP | I58: N/A | J58: Soporte técnico reactivo | K58: Hora | L58: Und | M58: Servicio | N58: Zona 2 | O58: Sitio | P58: Técnico/Tecnólogo ó Profesional | Q58: IT-SW-11-03 | R58: Mensual por servicios efectivamente prestados | S58: 194450 | T58: 1 | U58: 1 | V58: COP
A59: Controles EmpresarialesCANALIT-SW-11-04 | B59: IT-SW-11-04CANAL | D59: Controles Empresariales | E59: IT-SW-11-04 | F59: CANAL | G59: Controles Empresariales | H59: COP | I59: N/A | J59: Soporte técnico reactivo | K59: Hora | L59: Und | M59: Servicio | N59: Zona 3 | O59: Remoto | P59: Técnico/Tecnólogo ó Profesional | Q59: IT-SW-11-04 | R59: Mensual por servicios efectivamente prestados | S59: 181950 | T59: 1 | U59: 1 | V59: COP
A60: Controles EmpresarialesCANALIT-SW-11-05 | B60: IT-SW-11-05CANAL | D60: Controles Empresariales | E60: IT-SW-11-05 | F60: CANAL | G60: Controles Empresariales | H60: COP | I60: N/A | J60: Soporte técnico reactivo | K60: Hora | L60: Und | M60: Servicio | N60: Zona 3 | O60: Sitio | P60: Técnico/Tecnólogo ó Profesional | Q60: IT-SW-11-05 | R60: Mensual por servicios efectivamente prestados | S60: 206950 | T60: 1 | U60: 1 | V60: COP
A61: Controles EmpresarialesCANALIT-SW-11-06 | B61: IT-SW-11-06CANAL | D61: Controles Empresariales | E61: IT-SW-11-06 | F61: CANAL | G61: Controles Empresariales | H61: COP | I61: N/A | J61: Soporte técnico reactivo | K61: Hora | L61: Und | M61: Servicio | N61: Zona 1 | O61: Remoto | P61: Técnico/Tecnólogo ó Profesional | Q61: IT-SW-11-06 | R61: Mensual por servicios efectivamente prestados | S61: 181950 | T61: 1 | U61: 1 | V61: COP
A62: Soluciones OriónCANALIT-SW-01-01 | B62: IT-SW-01-01CANAL | D62: Soluciones Orión | E62: IT-SW-01-01 | F62: CANAL | G62: Soluciones Orión | H62: COP | I62: N/A | J62: Capacitación para usuario final - hasta 10 Personas. | K62: Por sesión de capacitación de 4 horas para un grupo de hasta 10 personas. | L62: Und | M62: Servicio | N62: Zona 1 | O62: Remoto | P62: Capacitador | Q62: IT-SW-01-01 | R62: Mensual por servicios efectivamente prestados | S62: 750000 | T62: 1 | U62: 1 | V62: COP
A63: Soluciones OriónCANALIT-SW-01-02 | B63: IT-SW-01-02CANAL | D63: Soluciones Orión | E63: IT-SW-01-02 | F63: CANAL | G63: Soluciones Orión | H63: COP | I63: N/A | J63: Capacitación para usuario final - hasta 10 Personas. | K63: Por sesión de capacitación de 4 horas para un grupo de hasta 10 personas. | L63: Und | M63: Servicio | N63: Zona 1 | O63: Sitio | P63: Capacitador | Q63: IT-SW-01-02 | R63: Mensual por servicios efectivamente prestados | S63: 1500000 | T63: 1 | U63: 1 | V63: COP
A64: Soluciones OriónCANALIT-SW-01-03 | B64: IT-SW-01-03CANAL | D64: Soluciones Orión | E64: IT-SW-01-03 | F64: CANAL | G64: Soluciones Orión | H64: COP | I64: N/A | J64: Capacitación para usuario final - hasta 10 Personas. | K64: Por sesión de capacitación de 4 horas para un grupo de hasta 10 personas. | L64: Und | M64: Servicio | N64: Zona 2 | O64: Remoto | P64: Capacitador | Q64: IT-SW-01-03 | R64: Mensual por servicios efectivamente prestados | S64: 900000 | T64: 1 | U64: 1 | V64: COP
A65: Soluciones OriónCANALIT-SW-01-04 | B65: IT-SW-01-04CANAL | D65: Soluciones Orión | E65: IT-SW-01-04 | F65: CANAL | G65: Soluciones Orión | H65: COP | I65: N/A | J65: Capacitación para usuario final - hasta 10 Personas. | K65: Por sesión de capacitación de 4 horas para un grupo de hasta 10 personas. | L65: Und | M65: Servicio | N65: Zona 2 | O65: Sitio | P65: Capacitador | Q65: IT-SW-01-04 | R65: Mensual por servicios efectivamente prestados | S65: 1800000 | T65: 1 | U65: 1 | V65: COP
A66: Soluciones OriónCANALIT-SW-01-05 | B66: IT-SW-01-05CANAL | D66: Soluciones Orión | E66: IT-SW-01-05 | F66: CANAL | G66: Soluciones Orión | H66: COP | I66: N/A | J66: Capacitación para usuario final - hasta 10 Personas. | K66: Por sesión de capacitación de 4 horas para un grupo de hasta 10 personas. | L66: Und | M66: Servicio | N66: Zona 3 | O66: Remoto | P66: Capacitador | Q66: IT-SW-01-05 | R66: Mensual por servicios efectivamente prestados | S66: 1080000 | T66: 1 | U66: 1 | V66: COP
A67: =D67&F67&E67 -> Soluciones OriónCANALIT-SW-01-06 | B67: =E67&F67 -> IT-SW-01-06CANAL | D67: Soluciones Orión | E67: IT-SW-01-06 | F67: CANAL | G67: =D67 -> Soluciones Orión | H67: COP | I67: N/A | J67: Capacitación para usuario final - hasta 10 Personas. | K67: Por sesión de capacitación de 4 horas para un grupo de hasta 10 personas. | L67: Und | M67: Servicio | N67: Zona 3 | O67: Sitio | P67: Capacitador | Q67: IT-SW-01-06 | R67: Mensual por servicios efectivamente prestados | S67: 2160000 | T67: 1 | U67: 1 | V67: =H67 -> COP
A68: Soluciones OriónCANALIT-SW-02-01 | B68: IT-SW-02-01CANAL | D68: Soluciones Orión | E68: IT-SW-02-01 | F68: CANAL | G68: Soluciones Orión | H68: COP | I68: N/A | J68: Capacitación para usuario final hasta 20 Personas. | K68: Por sesión de capacitación de 4 horas para un grupo de hasta 20 personas. | L68: Und | M68: Servicio | N68: Zona 1 | O68: Remoto | P68: Capacitador | Q68: IT-SW-02-01 | R68: Mensual por servicios efectivamente prestados | S68: 862500 | T68: 1 | U68: 1 | V68: COP
A69: Soluciones OriónCANALIT-SW-02-02 | B69: IT-SW-02-02CANAL | D69: Soluciones Orión | E69: IT-SW-02-02 | F69: CANAL | G69: Soluciones Orión | H69: COP | I69: N/A | J69: Capacitación para usuario final hasta 20 Personas. | K69: Por sesión de capacitación de 4 horas para un grupo de hasta 20 personas. | L69: Und | M69: Servicio | N69: Zona 1 | O69: Sitio | P69: Capacitador | Q69: IT-SW-02-02 | R69: Mensual por servicios efectivamente prestados | S69: 1725000 | T69: 1 | U69: 1 | V69: COP
A70: Soluciones OriónCANALIT-SW-02-03 | B70: IT-SW-02-03CANAL | D70: Soluciones Orión | E70: IT-SW-02-03 | F70: CANAL | G70: Soluciones Orión | H70: COP | I70: N/A | J70: Capacitación para usuario final hasta 20 Personas. | K70: Por sesión de capacitación de 4 horas para un grupo de hasta 20 personas. | L70: Und | M70: Servicio | N70: Zona 2 | O70: Remoto | P70: Capacitador | Q70: IT-SW-02-03 | R70: Mensual por servicios efectivamente prestados | S70: 1035000 | T70: 1 | U70: 1 | V70: COP
A71: Soluciones OriónCANALIT-SW-02-04 | B71: IT-SW-02-04CANAL | D71: Soluciones Orión | E71: IT-SW-02-04 | F71: CANAL | G71: Soluciones Orión | H71: COP | I71: N/A | J71: Capacitación para usuario final hasta 20 Personas. | K71: Por sesión de capacitación de 4 horas para un grupo de hasta 20 personas. | L71: Und | M71: Servicio | N71: Zona 2 | O71: Sitio | P71: Capacitador | Q71: IT-SW-02-04 | R71: Mensual por servicios efectivamente prestados | S71: 2070000 | T71: 1 | U71: 1 | V71: COP
A72: Soluciones OriónCANALIT-SW-02-05 | B72: IT-SW-02-05CANAL | D72: Soluciones Orión | E72: IT-SW-02-05 | F72: CANAL | G72: Soluciones Orión | H72: COP | I72: N/A | J72: Capacitación para usuario final hasta 20 Personas. | K72: Por sesión de capacitación de 4 horas para un grupo de hasta 20 personas. | L72: Und | M72: Servicio | N72: Zona 3 | O72: Remoto | P72: Capacitador | Q72: IT-SW-02-05 | R72: Mensual por servicios efectivamente prestados | S72: 1242000 | T72: 1 | U72: 1 | V72: COP
A73: Soluciones OriónCANALIT-SW-02-06 | B73: IT-SW-02-06CANAL | D73: Soluciones Orión | E73: IT-SW-02-06 | F73: CANAL | G73: Soluciones Orión | H73: COP | I73: N/A | J73: Capacitación para usuario final hasta 20 Personas. | K73: Por sesión de capacitación de 4 horas para un grupo de hasta 20 personas. | L73: Und | M73: Servicio | N73: Zona 3 | O73: Sitio | P73: Capacitador | Q73: IT-SW-02-06 | R73: Mensual por servicios efectivamente prestados | S73: 2484000 | T73: 1 | U73: 1 | V73: COP
A74: Soluciones OriónCANALIT-SW-03-01 | B74: IT-SW-03-01CANAL | D74: Soluciones Orión | E74: IT-SW-03-01 | F74: CANAL | G74: Soluciones Orión | H74: COP | I74: N/A | J74: Capacitación para usuario técnico o administrador - hasta 10 Personas. | K74: Por sesión de capacitación de 4 horas para un grupo de hasta 10 personas. | L74: Und | M74: Servicio | N74: Zona 1 | O74: Remoto | P74: Capacitador | Q74: IT-SW-03-01 | R74: Mensual por servicios efectivamente prestados | S74: 862500 | T74: 1 | U74: 1 | V74: COP
A75: Soluciones OriónCANALIT-SW-03-02 | B75: IT-SW-03-02CANAL | D75: Soluciones Orión | E75: IT-SW-03-02 | F75: CANAL | G75: Soluciones Orión | H75: COP | I75: N/A | J75: Capacitación para usuario técnico o administrador - hasta 10 Personas. | K75: Por sesión de capacitación de 4 horas para un grupo de hasta 10 personas. | L75: Und | M75: Servicio | N75: Zona 1 | O75: Sitio | P75: Capacitador | Q75: IT-SW-03-02 | R75: Mensual por servicios efectivamente prestados | S75: 1725000 | T75: 1 | U75: 1 | V75: COP
A76: Soluciones OriónCANALIT-SW-03-03 | B76: IT-SW-03-03CANAL | D76: Soluciones Orión | E76: IT-SW-03-03 | F76: CANAL | G76: Soluciones Orión | H76: COP | I76: N/A | J76: Capacitación para usuario técnico o administrador - hasta 10 Personas. | K76: Por sesión de capacitación de 4 horas para un grupo de hasta 10 personas. | L76: Und | M76: Servicio | N76: Zona 2 | O76: Remoto | P76: Capacitador | Q76: IT-SW-03-03 | R76: Mensual por servicios efectivamente prestados | S76: 1035000 | T76: 1 | U76: 1 | V76: COP
A77: Soluciones OriónCANALIT-SW-03-04 | B77: IT-SW-03-04CANAL | D77: Soluciones Orión | E77: IT-SW-03-04 | F77: CANAL | G77: Soluciones Orión | H77: COP | I77: N/A | J77: Capacitación para usuario técnico o administrador - hasta 10 Personas. | K77: Por sesión de capacitación de 4 horas para un grupo de hasta 10 personas. | L77: Und | M77: Servicio | N77: Zona 2 | O77: Sitio | P77: Capacitador | Q77: IT-SW-03-04 | R77: Mensual por servicios efectivamente prestados | S77: 2070000 | T77: 1 | U77: 1 | V77: COP
A78: Soluciones OriónCANALIT-SW-03-05 | B78: IT-SW-03-05CANAL | D78: Soluciones Orión | E78: IT-SW-03-05 | F78: CANAL | G78: Soluciones Orión | H78: COP | I78: N/A | J78: Capacitación para usuario técnico o administrador - hasta 10 Personas. | K78: Por sesión de capacitación de 4 horas para un grupo de hasta 10 personas. | L78: Und | M78: Servicio | N78: Zona 3 | O78: Remoto | P78: Capacitador | Q78: IT-SW-03-05 | R78: Mensual por servicios efectivamente prestados | S78: 1242000 | T78: 1 | U78: 1 | V78: COP
A79: Soluciones OriónCANALIT-SW-03-06 | B79: IT-SW-03-06CANAL | D79: Soluciones Orión | E79: IT-SW-03-06 | F79: CANAL | G79: Soluciones Orión | H79: COP | I79: N/A | J79: Capacitación para usuario técnico o administrador - hasta 10 Personas. | K79: Por sesión de capacitación de 4 horas para un grupo de hasta 10 personas. | L79: Und | M79: Servicio | N79: Zona 3 | O79: Sitio | P79: Capacitador | Q79: IT-SW-03-06 | R79: Mensual por servicios efectivamente prestados | S79: 2484000 | T79: 1 | U79: 1 | V79: COP
A80: Soluciones OriónCANALIT-SW-04-01 | B80: IT-SW-04-01CANAL | D80: Soluciones Orión | E80: IT-SW-04-01 | F80: CANAL | G80: Soluciones Orión | H80: COP | I80: N/A | J80: Capacitación para usuario técnico o administrador hasta 20 Personas. | K80: Por sesión de capacitación de 4 horas para un grupo de hasta 20 personas. | L80: Und | M80: Servicio | N80: Zona 1 | O80: Remoto | P80: Capacitador | Q80: IT-SW-04-01 | R80: Mensual por servicios efectivamente prestados | S80: 991875 | T80: 1 | U80: 1 | V80: COP
A81: Soluciones OriónCANALIT-SW-04-02 | B81: IT-SW-04-02CANAL | D81: Soluciones Orión | E81: IT-SW-04-02 | F81: CANAL | G81: Soluciones Orión | H81: COP | I81: N/A | J81: Capacitación para usuario técnico o administrador hasta 20 Personas. | K81: Por sesión de capacitación de 4 horas para un grupo de hasta 20 personas. | L81: Und | M81: Servicio | N81: Zona 1 | O81: Sitio | P81: Capacitador | Q81: IT-SW-04-02 | R81: Mensual por servicios efectivamente prestados | S81: 1983750 | T81: 1 | U81: 1 | V81: COP
A82: Soluciones OriónCANALIT-SW-04-03 | B82: IT-SW-04-03CANAL | D82: Soluciones Orión | E82: IT-SW-04-03 | F82: CANAL | G82: Soluciones Orión | H82: COP | I82: N/A | J82: Capacitación para usuario técnico o administrador hasta 20 Personas. | K82: Por sesión de capacitación de 4 horas para un grupo de hasta 20 personas. | L82: Und | M82: Servicio | N82: Zona 2 | O82: Remoto | P82: Capacitador | Q82: IT-SW-04-03 | R82: Mensual por servicios efectivamente prestados | S82: 1190250 | T82: 1 | U82: 1 | V82: COP
A83: Soluciones OriónCANALIT-SW-04-04 | B83: IT-SW-04-04CANAL | D83: Soluciones Orión | E83: IT-SW-04-04 | F83: CANAL | G83: Soluciones Orión | H83: COP | I83: N/A | J83: Capacitación para usuario técnico o administrador hasta 20 Personas. | K83: Por sesión de capacitación de 4 horas para un grupo de hasta 20 personas. | L83: Und | M83: Servicio | N83: Zona 2 | O83: Sitio | P83: Capacitador | Q83: IT-SW-04-04 | R83: Mensual por servicios efectivamente prestados | S83: 2380500 | T83: 1 | U83: 1 | V83: COP
A84: Soluciones OriónCANALIT-SW-04-05 | B84: IT-SW-04-05CANAL | D84: Soluciones Orión | E84: IT-SW-04-05 | F84: CANAL | G84: Soluciones Orión | H84: COP | I84: N/A | J84: Capacitación para usuario técnico o administrador hasta 20 Personas. | K84: Por sesión de capacitación de 4 horas para un grupo de hasta 20 personas. | L84: Und | M84: Servicio | N84: Zona 3 | O84: Remoto | P84: Capacitador | Q84: IT-SW-04-05 | R84: Mensual por servicios efectivamente prestados | S84: 1428300 | T84: 1 | U84: 1 | V84: COP
A85: Soluciones OriónCANALIT-SW-04-06 | B85: IT-SW-04-06CANAL | D85: Soluciones Orión | E85: IT-SW-04-06 | F85: CANAL | G85: Soluciones Orión | H85: COP | I85: N/A | J85: Capacitación para usuario técnico o administrador hasta 20 Personas. | K85: Por sesión de capacitación de 4 horas para un grupo de hasta 20 personas. | L85: Und | M85: Servicio | N85: Zona 3 | O85: Sitio | P85: Capacitador | Q85: IT-SW-04-06 | R85: Mensual por servicios efectivamente prestados | S85: 2856600 | T85: 1 | U85: 1 | V85: COP
A86: Soluciones OriónCANALIT-SW-05-01 | B86: IT-SW-05-01CANAL | D86: Soluciones Orión | E86: IT-SW-05-01 | F86: CANAL | G86: Soluciones Orión | H86: COP | I86: N/A | J86: Configuración y parametrización de los Productos | K86: Hora | L86: Und | M86: Servicio | N86: Zona 1 | O86: Remoto | P86: Profesional | Q86: IT-SW-05-01 | R86: Mensual por servicios efectivamente prestados | S86: 250000 | T86: 1 | U86: 1 | V86: COP
A87: Soluciones OriónCANALIT-SW-05-02 | B87: IT-SW-05-02CANAL | D87: Soluciones Orión | E87: IT-SW-05-02 | F87: CANAL | G87: Soluciones Orión | H87: COP | I87: N/A | J87: Configuración y parametrización de los Productos | K87: Hora | L87: Und | M87: Servicio | N87: Zona 1 | O87: Sitio | P87: Profesional | Q87: IT-SW-05-02 | R87: Mensual por servicios efectivamente prestados | S87: 500000 | T87: 1 | U87: 1 | V87: COP
A88: Soluciones OriónCANALIT-SW-05-03 | B88: IT-SW-05-03CANAL | D88: Soluciones Orión | E88: IT-SW-05-03 | F88: CANAL | G88: Soluciones Orión | H88: COP | I88: N/A | J88: Configuración y parametrización de los Productos | K88: Hora | L88: Und | M88: Servicio | N88: Zona 2 | O88: Remoto | P88: Profesional | Q88: IT-SW-05-03 | R88: Mensual por servicios efectivamente prestados | S88: 300000 | T88: 1 | U88: 1 | V88: COP
A89: Soluciones OriónCANALIT-SW-05-04 | B89: IT-SW-05-04CANAL | D89: Soluciones Orión | E89: IT-SW-05-04 | F89: CANAL | G89: Soluciones Orión | H89: COP | I89: N/A | J89: Configuración y parametrización de los Productos | K89: Hora | L89: Und | M89: Servicio | N89: Zona 2 | O89: Sitio | P89: Profesional | Q89: IT-SW-05-04 | R89: Mensual por servicios efectivamente prestados | S89: 600000 | T89: 1 | U89: 1 | V89: COP
A90: Soluciones OriónCANALIT-SW-05-05 | B90: IT-SW-05-05CANAL | D90: Soluciones Orión | E90: IT-SW-05-05 | F90: CANAL | G90: Soluciones Orión | H90: COP | I90: N/A | J90: Configuración y parametrización de los Productos | K90: Hora | L90: Und | M90: Servicio | N90: Zona 3 | O90: Remoto | P90: Profesional | Q90: IT-SW-05-05 | R90: Mensual por servicios efectivamente prestados | S90: 300000 | T90: 1 | U90: 1 | V90: COP
A91: Soluciones OriónCANALIT-SW-05-06 | B91: IT-SW-05-06CANAL | D91: Soluciones Orión | E91: IT-SW-05-06 | F91: CANAL | G91: Soluciones Orión | H91: COP | I91: N/A | J91: Configuración y parametrización de los Productos | K91: Hora | L91: Und | M91: Servicio | N91: Zona 3 | O91: Sitio | P91: Profesional | Q91: IT-SW-05-06 | R91: Mensual por servicios efectivamente prestados | S91: 600000 | T91: 1 | U91: 1 | V91: COP
A92: Soluciones OriónCANALIT-SW-06-01 | B92: IT-SW-06-01CANAL | D92: Soluciones Orión | E92: IT-SW-06-01 | F92: CANAL | G92: Soluciones Orión | H92: COP | I92: N/A | J92: Gerente de cuenta (soporte) | K92: Mes | L92: Und | M92: Servicio | N92: Zona 1 | O92: Sitio | P92: Profesional | Q92: IT-SW-06-01 | R92: Mensual por servicios efectivamente prestados | S92: 11250000 | T92: 1 | U92: 1 | V92: COP
A93: Soluciones OriónCANALIT-SW-06-02 | B93: IT-SW-06-02CANAL | D93: Soluciones Orión | E93: IT-SW-06-02 | F93: CANAL | G93: Soluciones Orión | H93: COP | I93: N/A | J93: Gerente de cuenta (soporte) | K93: Mes | L93: Und | M93: Servicio | N93: Zona 2 | O93: Sitio | P93: Profesional | Q93: IT-SW-06-02 | R93: Mensual por servicios efectivamente prestados | S93: 14625000 | T93: 1 | U93: 1 | V93: COP
A94: Soluciones OriónCANALIT-SW-06-03 | B94: IT-SW-06-03CANAL | D94: Soluciones Orión | E94: IT-SW-06-03 | F94: CANAL | G94: Soluciones Orión | H94: COP | I94: N/A | J94: Gerente de cuenta (soporte) | K94: Mes | L94: Und | M94: Servicio | N94: Zona 3 | O94: Sitio | P94: Profesional | Q94: IT-SW-06-03 | R94: Mensual por servicios efectivamente prestados | S94: 19012500 | T94: 1 | U94: 1 | V94: COP
A95: Soluciones OriónCANALIT-SW-07-01 | B95: IT-SW-07-01CANAL | D95: Soluciones Orión | E95: IT-SW-07-01 | F95: CANAL | G95: Soluciones Orión | H95: COP | I95: N/A | J95: Instalación de Licencia o Suscripción Anual, o afínes | K95: Unidad | L95: Und | M95: Servicio | N95: Zona 1 | O95: Remoto | P95: Técnico/Tecnólogo ó Profesional | Q95: IT-SW-07-01 | R95: Mensual por servicios efectivamente prestados | S95: 250000 | T95: 1 | U95: 1 | V95: COP
A96: Soluciones OriónCANALIT-SW-07-02 | B96: IT-SW-07-02CANAL | D96: Soluciones Orión | E96: IT-SW-07-02 | F96: CANAL | G96: Soluciones Orión | H96: COP | I96: N/A | J96: Instalación de Licencia o Suscripción Anual, o afínes | K96: Unidad | L96: Und | M96: Servicio | N96: Zona 1 | O96: Sitio | P96: Técnico/Tecnólogo ó Profesional | Q96: IT-SW-07-02 | R96: Mensual por servicios efectivamente prestados | S96: 375000 | T96: 1 | U96: 1 | V96: COP
A97: Soluciones OriónCANALIT-SW-07-03 | B97: IT-SW-07-03CANAL | D97: Soluciones Orión | E97: IT-SW-07-03 | F97: CANAL | G97: Soluciones Orión | H97: COP | I97: N/A | J97: Instalación de Licencia o Suscripción Anual, o afínes | K97: Unidad | L97: Und | M97: Servicio | N97: Zona 2 | O97: Remoto | P97: Técnico/Tecnólogo ó Profesional | Q97: IT-SW-07-03 | R97: Mensual por servicios efectivamente prestados | S97: 287500 | T97: 1 | U97: 1 | V97: COP
A98: Soluciones OriónCANALIT-SW-07-04 | B98: IT-SW-07-04CANAL | D98: Soluciones Orión | E98: IT-SW-07-04 | F98: CANAL | G98: Soluciones Orión | H98: COP | I98: N/A | J98: Instalación de Licencia o Suscripción Anual, o afínes | K98: Unidad | L98: Und | M98: Servicio | N98: Zona 2 | O98: Sitio | P98: Técnico/Tecnólogo ó Profesional | Q98: IT-SW-07-04 | R98: Mensual por servicios efectivamente prestados | S98: 431250 | T98: 1 | U98: 1 | V98: COP
A99: Soluciones OriónCANALIT-SW-07-05 | B99: IT-SW-07-05CANAL | D99: Soluciones Orión | E99: IT-SW-07-05 | F99: CANAL | G99: Soluciones Orión | H99: COP | I99: N/A | J99: Instalación de Licencia o Suscripción Anual, o afínes | K99: Unidad | L99: Und | M99: Servicio | N99: Zona 3 | O99: Remoto | P99: Técnico/Tecnólogo ó Profesional | Q99: IT-SW-07-05 | R99: Mensual por servicios efectivamente prestados | S99: 330625 | T99: 1 | U99: 1 | V99: COP
A100: Soluciones OriónCANALIT-SW-07-06 | B100: IT-SW-07-06CANAL | D100: Soluciones Orión | E100: IT-SW-07-06 | F100: CANAL | G100: Soluciones Orión | H100: COP | I100: N/A | J100: Instalación de Licencia o Suscripción Anual, o afínes | K100: Unidad | L100: Und | M100: Servicio | N100: Zona 3 | O100: Sitio | P100: Técnico/Tecnólogo ó Profesional | Q100: IT-SW-07-06 | R100: Mensual por servicios efectivamente prestados | S100: 495937.5 | T100: 1 | U100: 1 | V100: COP
A101: Soluciones OriónCANALIT-SW-08-01 | B101: IT-SW-08-01CANAL | D101: Soluciones Orión | E101: IT-SW-08-01 | F101: CANAL | G101: Soluciones Orión | H101: COP | I101: N/A | J101: Migración de información por volumen de datos almacenados | K101: GB | L101: Und | M101: Servicio | N101: Zona 1 | O101: Remoto | P101: Profesional | Q101: IT-SW-08-01 | R101: Mensual por servicios efectivamente prestados | S101: 37500 | T101: 1 | U101: 1 | V101: COP
A102: Soluciones OriónCANALIT-SW-08-02 | B102: IT-SW-08-02CANAL | D102: Soluciones Orión | E102: IT-SW-08-02 | F102: CANAL | G102: Soluciones Orión | H102: COP | I102: N/A | J102: Migración de información por volumen de datos almacenados | K102: GB | L102: Und | M102: Servicio | N102: Zona 1 | O102: Sitio | P102: Profesional | Q102: IT-SW-08-02 | R102: Mensual por servicios efectivamente prestados | S102: 56250 | T102: 1 | U102: 1 | V102: COP
A103: Soluciones OriónCANALIT-SW-08-03 | B103: IT-SW-08-03CANAL | D103: Soluciones Orión | E103: IT-SW-08-03 | F103: CANAL | G103: Soluciones Orión | H103: COP | I103: N/A | J103: Migración de información por volumen de datos almacenados | K103: GB | L103: Und | M103: Servicio | N103: Zona 2 | O103: Remoto | P103: Profesional | Q103: IT-SW-08-03 | R103: Mensual por servicios efectivamente prestados | S103: 64687.5 | T103: 1 | U103: 1 | V103: COP
A104: Soluciones OriónCANALIT-SW-08-04 | B104: IT-SW-08-04CANAL | D104: Soluciones Orión | E104: IT-SW-08-04 | F104: CANAL | G104: Soluciones Orión | H104: COP | I104: N/A | J104: Migración de información por volumen de datos almacenados | K104: GB | L104: Und | M104: Servicio | N104: Zona 2 | O104: Sitio | P104: Profesional | Q104: IT-SW-08-04 | R104: Mensual por servicios efectivamente prestados | S104: 74390.625 | T104: 1 | U104: 1 | V104: COP
A105: Soluciones OriónCANALIT-SW-08-05 | B105: IT-SW-08-05CANAL | D105: Soluciones Orión | E105: IT-SW-08-05 | F105: CANAL | G105: Soluciones Orión | H105: COP | I105: N/A | J105: Migración de información por volumen de datos almacenados | K105: GB | L105: Und | M105: Servicio | N105: Zona 3 | O105: Remoto | P105: Profesional | Q105: IT-SW-08-05 | R105: Mensual por servicios efectivamente prestados | S105: 85549.21875 | T105: 1 | U105: 1 | V105: COP
A106: Soluciones OriónCANALIT-SW-08-06 | B106: IT-SW-08-06CANAL | D106: Soluciones Orión | E106: IT-SW-08-06 | F106: CANAL | G106: Soluciones Orión | H106: COP | I106: N/A | J106: Migración de información por volumen de datos almacenados | K106: GB | L106: Und | M106: Servicio | N106: Zona 3 | O106: Sitio | P106: Profesional | Q106: IT-SW-08-06 | R106: Mensual por servicios efectivamente prestados | S106: 98381.60156 | T106: 1 | U106: 1 | V106: COP
A107: Soluciones OriónCANALIT-SW-09-01 | B107: IT-SW-09-01CANAL | D107: Soluciones Orión | E107: IT-SW-09-01 | F107: CANAL | G107: Soluciones Orión | H107: COP | I107: N/A | J107: Soporte técnico en sitio | K107: Mes | L107: Und | M107: Servicio | N107: Zona 1 | O107: Sitio | P107: Técnico/Tecnólogo ó Profesional | Q107: IT-SW-09-01 | R107: Mensual por servicios efectivamente prestados | S107: 8750000 | T107: 1 | U107: 1 | V107: COP
A108: Soluciones OriónCANALIT-SW-09-02 | B108: IT-SW-09-02CANAL | D108: Soluciones Orión | E108: IT-SW-09-02 | F108: CANAL | G108: Soluciones Orión | H108: COP | I108: N/A | J108: Soporte técnico en sitio | K108: Mes | L108: Und | M108: Servicio | N108: Zona 2 | O108: Sitio | P108: Técnico/Tecnólogo ó Profesional | Q108: IT-SW-09-02 | R108: Mensual por servicios efectivamente prestados | S108: 13125000 | T108: 1 | U108: 1 | V108: COP
A109: Soluciones OriónCANALIT-SW-09-03 | B109: IT-SW-09-03CANAL | D109: Soluciones Orión | E109: IT-SW-09-03 | F109: CANAL | G109: Soluciones Orión | H109: COP | I109: N/A | J109: Soporte técnico en sitio | K109: Mes | L109: Und | M109: Servicio | N109: Zona 3 | O109: Sitio | P109: Técnico/Tecnólogo ó Profesional | Q109: IT-SW-09-03 | R109: Mensual por servicios efectivamente prestados | S109: 15093750 | T109: 1 | U109: 1 | V109: COP
A110: Soluciones OriónCANALIT-SW-10-01 | B110: IT-SW-10-01CANAL | D110: Soluciones Orión | E110: IT-SW-10-01 | F110: CANAL | G110: Soluciones Orión | H110: COP | I110: N/A | J110: Soporte técnico proactivo | K110: Hora | L110: Und | M110: Servicio | N110: Zona 2 | O110: Remoto | P110: Técnico/Tecnólogo ó Profesional | Q110: IT-SW-10-01 | R110: Mensual por servicios efectivamente prestados | S110: 300000 | T110: 1 | U110: 1 | V110: COP
A111: Soluciones OriónCANALIT-SW-10-02 | B111: IT-SW-10-02CANAL | D111: Soluciones Orión | E111: IT-SW-10-02 | F111: CANAL | G111: Soluciones Orión | H111: COP | I111: N/A | J111: Soporte técnico proactivo | K111: Hora | L111: Und | M111: Servicio | N111: Zona 2 | O111: Sitio | P111: Técnico/Tecnólogo ó Profesional | Q111: IT-SW-10-02 | R111: Mensual por servicios efectivamente prestados | S111: 600000 | T111: 1 | U111: 1 | V111: COP
A112: Soluciones OriónCANALIT-SW-10-03 | B112: IT-SW-10-03CANAL | D112: Soluciones Orión | E112: IT-SW-10-03 | F112: CANAL | G112: Soluciones Orión | H112: COP | I112: N/A | J112: Soporte técnico proactivo | K112: Hora | L112: Und | M112: Servicio | N112: Zona 1 | O112: Remoto | P112: Técnico/Tecnólogo ó Profesional | Q112: IT-SW-10-03 | R112: Mensual por servicios efectivamente prestados | S112: 250000 | T112: 1 | U112: 1 | V112: COP
A113: Soluciones OriónCANALIT-SW-10-04 | B113: IT-SW-10-04CANAL | D113: Soluciones Orión | E113: IT-SW-10-04 | F113: CANAL | G113: Soluciones Orión | H113: COP | I113: N/A | J113: Soporte técnico proactivo | K113: Hora | L113: Und | M113: Servicio | N113: Zona 3 | O113: Remoto | P113: Técnico/Tecnólogo ó Profesional | Q113: IT-SW-10-04 | R113: Mensual por servicios efectivamente prestados | S113: 300000 | T113: 1 | U113: 1 | V113: COP
A114: Soluciones OriónCANALIT-SW-10-05 | B114: IT-SW-10-05CANAL | D114: Soluciones Orión | E114: IT-SW-10-05 | F114: CANAL | G114: Soluciones Orión | H114: COP | I114: N/A | J114: Soporte técnico proactivo | K114: Hora | L114: Und | M114: Servicio | N114: Zona 3 | O114: Sitio | P114: Técnico/Tecnólogo ó Profesional | Q114: IT-SW-10-05 | R114: Mensual por servicios efectivamente prestados | S114: 600000 | T114: 1 | U114: 1 | V114: COP
A115: Soluciones OriónCANALIT-SW-10-06 | B115: IT-SW-10-06CANAL | D115: Soluciones Orión | E115: IT-SW-10-06 | F115: CANAL | G115: Soluciones Orión | H115: COP | I115: N/A | J115: Soporte técnico proactivo | K115: Hora | L115: Und | M115: Servicio | N115: Zona 1 | O115: Sitio | P115: Técnico/Tecnólogo ó Profesional | Q115: IT-SW-10-06 | R115: Mensual por servicios efectivamente prestados | S115: 500000 | T115: 1 | U115: 1 | V115: COP
A116: Soluciones OriónCANALIT-SW-11-01 | B116: IT-SW-11-01CANAL | D116: Soluciones Orión | E116: IT-SW-11-01 | F116: CANAL | G116: Soluciones Orión | H116: COP | I116: N/A | J116: Soporte técnico reactivo | K116: Hora | L116: Und | M116: Servicio | N116: Zona 1 | O116: Sitio | P116: Técnico/Tecnólogo ó Profesional | Q116: IT-SW-11-01 | R116: Mensual por servicios efectivamente prestados | S116: 500000 | T116: 1 | U116: 1 | V116: COP
A117: Soluciones OriónCANALIT-SW-11-02 | B117: IT-SW-11-02CANAL | D117: Soluciones Orión | E117: IT-SW-11-02 | F117: CANAL | G117: Soluciones Orión | H117: COP | I117: N/A | J117: Soporte técnico reactivo | K117: Hora | L117: Und | M117: Servicio | N117: Zona 2 | O117: Remoto | P117: Técnico/Tecnólogo ó Profesional | Q117: IT-SW-11-02 | R117: Mensual por servicios efectivamente prestados | S117: 300000 | T117: 1 | U117: 1 | V117: COP
A118: Soluciones OriónCANALIT-SW-11-03 | B118: IT-SW-11-03CANAL | D118: Soluciones Orión | E118: IT-SW-11-03 | F118: CANAL | G118: Soluciones Orión | H118: COP | I118: N/A | J118: Soporte técnico reactivo | K118: Hora | L118: Und | M118: Servicio | N118: Zona 2 | O118: Sitio | P118: Técnico/Tecnólogo ó Profesional | Q118: IT-SW-11-03 | R118: Mensual por servicios efectivamente prestados | S118: 600000 | T118: 1 | U118: 1 | V118: COP
A119: Soluciones OriónCANALIT-SW-11-04 | B119: IT-SW-11-04CANAL | D119: Soluciones Orión | E119: IT-SW-11-04 | F119: CANAL | G119: Soluciones Orión | H119: COP | I119: N/A | J119: Soporte técnico reactivo | K119: Hora | L119: Und | M119: Servicio | N119: Zona 3 | O119: Remoto | P119: Técnico/Tecnólogo ó Profesional | Q119: IT-SW-11-04 | R119: Mensual por servicios efectivamente prestados | S119: 300000 | T119: 1 | U119: 1 | V119: COP
A120: Soluciones OriónCANALIT-SW-11-05 | B120: IT-SW-11-05CANAL | D120: Soluciones Orión | E120: IT-SW-11-05 | F120: CANAL | G120: Soluciones Orión | H120: COP | I120: N/A | J120: Soporte técnico reactivo | K120: Hora | L120: Und | M120: Servicio | N120: Zona 3 | O120: Sitio | P120: Técnico/Tecnólogo ó Profesional | Q120: IT-SW-11-05 | R120: Mensual por servicios efectivamente prestados | S120: 600000 | T120: 1 | U120: 1 | V120: COP
A121: Soluciones OriónCANALIT-SW-11-06 | B121: IT-SW-11-06CANAL | D121: Soluciones Orión | E121: IT-SW-11-06 | F121: CANAL | G121: Soluciones Orión | H121: COP | I121: N/A | J121: Soporte técnico reactivo | K121: Hora | L121: Und | M121: Servicio | N121: Zona 1 | O121: Remoto | P121: Técnico/Tecnólogo ó Profesional | Q121: IT-SW-11-06 | R121: Mensual por servicios efectivamente prestados | S121: 250000 | T121: 1 | U121: 1 | V121: COP
A122: ColsofCANALIT-SW-01-01 | B122: IT-SW-01-01CANAL | D122: Colsof | E122: IT-SW-01-01 | F122: CANAL | G122: Colsof | H122: COP | I122: N/A | J122: Capacitación para usuario final - hasta 10 Personas. | K122: Por sesión de capacitación de 4 horas para un grupo de hasta 10 personas. | L122: Und | M122: Servicio | N122: Zona 1 | O122: Remoto | P122: Capacitador | Q122: IT-SW-01-01 | R122: Mensual por servicios efectivamente prestados | S122: 600000 | T122: 1 | U122: 1 | V122: COP
A123: ColsofCANALIT-SW-01-02 | B123: IT-SW-01-02CANAL | D123: Colsof | E123: IT-SW-01-02 | F123: CANAL | G123: Colsof | H123: COP | I123: N/A | J123: Capacitación para usuario final - hasta 10 Personas. | K123: Por sesión de capacitación de 4 horas para un grupo de hasta 10 personas. | L123: Und | M123: Servicio | N123: Zona 1 | O123: Sitio | P123: Capacitador | Q123: IT-SW-01-02 | R123: Mensual por servicios efectivamente prestados | S123: 720000 | T123: 1 | U123: 1 | V123: COP
A124: ColsofCANALIT-SW-01-03 | B124: IT-SW-01-03CANAL | D124: Colsof | E124: IT-SW-01-03 | F124: CANAL | G124: Colsof | H124: COP | I124: N/A | J124: Capacitación para usuario final - hasta 10 Personas. | K124: Por sesión de capacitación de 4 horas para un grupo de hasta 10 personas. | L124: Und | M124: Servicio | N124: Zona 2 | O124: Remoto | P124: Capacitador | Q124: IT-SW-01-03 | R124: Mensual por servicios efectivamente prestados | S124: 810000 | T124: 1 | U124: 1 | V124: COP
A125: ColsofCANALIT-SW-01-04 | B125: IT-SW-01-04CANAL | D125: Colsof | E125: IT-SW-01-04 | F125: CANAL | G125: Colsof | H125: COP | I125: N/A | J125: Capacitación para usuario final - hasta 10 Personas. | K125: Por sesión de capacitación de 4 horas para un grupo de hasta 10 personas. | L125: Und | M125: Servicio | N125: Zona 2 | O125: Sitio | P125: Capacitador | Q125: IT-SW-01-04 | R125: Mensual por servicios efectivamente prestados | S125: 972000 | T125: 1 | U125: 1 | V125: COP
A126: ColsofCANALIT-SW-01-05 | B126: IT-SW-01-05CANAL | D126: Colsof | E126: IT-SW-01-05 | F126: CANAL | G126: Colsof | H126: COP | I126: N/A | J126: Capacitación para usuario final - hasta 10 Personas. | K126: Por sesión de capacitación de 4 horas para un grupo de hasta 10 personas. | L126: Und | M126: Servicio | N126: Zona 3 | O126: Remoto | P126: Capacitador | Q126: IT-SW-01-05 | R126: Mensual por servicios efectivamente prestados | S126: 1080000 | T126: 1 | U126: 1 | V126: COP
A127: ColsofCANALIT-SW-01-06 | B127: IT-SW-01-06CANAL | D127: Colsof | E127: IT-SW-01-06 | F127: CANAL | G127: Colsof | H127: COP | I127: N/A | J127: Capacitación para usuario final - hasta 10 Personas. | K127: Por sesión de capacitación de 4 horas para un grupo de hasta 10 personas. | L127: Und | M127: Servicio | N127: Zona 3 | O127: Sitio | P127: Capacitador | Q127: IT-SW-01-06 | R127: Mensual por servicios efectivamente prestados | S127: 1296000 | T127: 1 | U127: 1 | V127: COP
A128: ColsofCANALIT-SW-02-01 | B128: IT-SW-02-01CANAL | D128: Colsof | E128: IT-SW-02-01 | F128: CANAL | G128: Colsof | H128: COP | I128: N/A | J128: Capacitación para usuario final hasta 20 Personas. | K128: Por sesión de capacitación de 4 horas para un grupo de hasta 20 personas. | L128: Und | M128: Servicio | N128: Zona 1 | O128: Remoto | P128: Capacitador | Q128: IT-SW-02-01 | R128: Mensual por servicios efectivamente prestados | S128: 750000 | T128: 1 | U128: 1 | V128: COP
A129: ColsofCANALIT-SW-02-02 | B129: IT-SW-02-02CANAL | D129: Colsof | E129: IT-SW-02-02 | F129: CANAL | G129: Colsof | H129: COP | I129: N/A | J129: Capacitación para usuario final hasta 20 Personas. | K129: Por sesión de capacitación de 4 horas para un grupo de hasta 20 personas. | L129: Und | M129: Servicio | N129: Zona 1 | O129: Sitio | P129: Capacitador | Q129: IT-SW-02-02 | R129: Mensual por servicios efectivamente prestados | S129: 1080000 | T129: 1 | U129: 1 | V129: COP
A130: ColsofCANALIT-SW-02-03 | B130: IT-SW-02-03CANAL | D130: Colsof | E130: IT-SW-02-03 | F130: CANAL | G130: Colsof | H130: COP | I130: N/A | J130: Capacitación para usuario final hasta 20 Personas. | K130: Por sesión de capacitación de 4 horas para un grupo de hasta 20 personas. | L130: Und | M130: Servicio | N130: Zona 2 | O130: Remoto | P130: Capacitador | Q130: IT-SW-02-03 | R130: Mensual por servicios efectivamente prestados | S130: 1012500 | T130: 1 | U130: 1 | V130: COP
A131: =D131&F131&E131 -> ColsofCANALIT-SW-02-04 | B131: =E131&F131 -> IT-SW-02-04CANAL | D131: Colsof | E131: IT-SW-02-04 | F131: CANAL | G131: =D131 -> Colsof | H131: COP | I131: N/A | J131: Capacitación para usuario final hasta 20 Personas. | K131: Por sesión de capacitación de 4 horas para un grupo de hasta 20 personas. | L131: Und | M131: Servicio | N131: Zona 2 | O131: Sitio | P131: Capacitador | Q131: IT-SW-02-04 | R131: Mensual por servicios efectivamente prestados | S131: 1458000 | T131: 1 | U131: 1 | V131: =H131 -> COP
A132: ColsofCANALIT-SW-02-05 | B132: IT-SW-02-05CANAL | D132: Colsof | E132: IT-SW-02-05 | F132: CANAL | G132: Colsof | H132: COP | I132: N/A | J132: Capacitación para usuario final hasta 20 Personas. | K132: Por sesión de capacitación de 4 horas para un grupo de hasta 20 personas. | L132: Und | M132: Servicio | N132: Zona 3 | O132: Remoto | P132: Capacitador | Q132: IT-SW-02-05 | R132: Mensual por servicios efectivamente prestados | S132: 1350000 | T132: 1 | U132: 1 | V132: COP
A133: ColsofCANALIT-SW-02-06 | B133: IT-SW-02-06CANAL | D133: Colsof | E133: IT-SW-02-06 | F133: CANAL | G133: Colsof | H133: COP | I133: N/A | J133: Capacitación para usuario final hasta 20 Personas. | K133: Por sesión de capacitación de 4 horas para un grupo de hasta 20 personas. | L133: Und | M133: Servicio | N133: Zona 3 | O133: Sitio | P133: Capacitador | Q133: IT-SW-02-06 | R133: Mensual por servicios efectivamente prestados | S133: 1944000 | T133: 1 | U133: 1 | V133: COP
A134: ColsofCANALIT-SW-03-01 | B134: IT-SW-03-01CANAL | D134: Colsof | E134: IT-SW-03-01 | F134: CANAL | G134: Colsof | H134: COP | I134: N/A | J134: Capacitación para usuario técnico o administrador - hasta 10 Personas. | K134: Por sesión de capacitación de 4 horas para un grupo de hasta 10 personas. | L134: Und | M134: Servicio | N134: Zona 1 | O134: Remoto | P134: Capacitador | Q134: IT-SW-03-01 | R134: Mensual por servicios efectivamente prestados | S134: 810000 | T134: 1 | U134: 1 | V134: COP
A135: ColsofCANALIT-SW-03-02 | B135: IT-SW-03-02CANAL | D135: Colsof | E135: IT-SW-03-02 | F135: CANAL | G135: Colsof | H135: COP | I135: N/A | J135: Capacitación para usuario técnico o administrador - hasta 10 Personas. | K135: Por sesión de capacitación de 4 horas para un grupo de hasta 10 personas. | L135: Und | M135: Servicio | N135: Zona 1 | O135: Sitio | P135: Capacitador | Q135: IT-SW-03-02 | R135: Mensual por servicios efectivamente prestados | S135: 972000 | T135: 1 | U135: 1 | V135: COP
A136: ColsofCANALIT-SW-03-03 | B136: IT-SW-03-03CANAL | D136: Colsof | E136: IT-SW-03-03 | F136: CANAL | G136: Colsof | H136: COP | I136: N/A | J136: Capacitación para usuario técnico o administrador - hasta 10 Personas. | K136: Por sesión de capacitación de 4 horas para un grupo de hasta 10 personas. | L136: Und | M136: Servicio | N136: Zona 2 | O136: Remoto | P136: Capacitador | Q136: IT-SW-03-03 | R136: Mensual por servicios efectivamente prestados | S136: 1093500 | T136: 1 | U136: 1 | V136: COP
A137: ColsofCANALIT-SW-03-04 | B137: IT-SW-03-04CANAL | D137: Colsof | E137: IT-SW-03-04 | F137: CANAL | G137: Colsof | H137: COP | I137: N/A | J137: Capacitación para usuario técnico o administrador - hasta 10 Personas. | K137: Por sesión de capacitación de 4 horas para un grupo de hasta 10 personas. | L137: Und | M137: Servicio | N137: Zona 2 | O137: Sitio | P137: Capacitador | Q137: IT-SW-03-04 | R137: Mensual por servicios efectivamente prestados | S137: 1312200 | T137: 1 | U137: 1 | V137: COP
A138: ColsofCANALIT-SW-03-05 | B138: IT-SW-03-05CANAL | D138: Colsof | E138: IT-SW-03-05 | F138: CANAL | G138: Colsof | H138: COP | I138: N/A | J138: Capacitación para usuario técnico o administrador - hasta 10 Personas. | K138: Por sesión de capacitación de 4 horas para un grupo de hasta 10 personas. | L138: Und | M138: Servicio | N138: Zona 3 | O138: Remoto | P138: Capacitador | Q138: IT-SW-03-05 | R138: Mensual por servicios efectivamente prestados | S138: 1458000 | T138: 1 | U138: 1 | V138: COP
A139: ColsofCANALIT-SW-03-06 | B139: IT-SW-03-06CANAL | D139: Colsof | E139: IT-SW-03-06 | F139: CANAL | G139: Colsof | H139: COP | I139: N/A | J139: Capacitación para usuario técnico o administrador - hasta 10 Personas. | K139: Por sesión de capacitación de 4 horas para un grupo de hasta 10 personas. | L139: Und | M139: Servicio | N139: Zona 3 | O139: Sitio | P139: Capacitador | Q139: IT-SW-03-06 | R139: Mensual por servicios efectivamente prestados | S139: 1749600 | T139: 1 | U139: 1 | V139: COP
A140: ColsofCANALIT-SW-04-01 | B140: IT-SW-04-01CANAL | D140: Colsof | E140: IT-SW-04-01 | F140: CANAL | G140: Colsof | H140: COP | I140: N/A | J140: Capacitación para usuario técnico o administrador hasta 20 Personas. | K140: Por sesión de capacitación de 4 horas para un grupo de hasta 20 personas. | L140: Und | M140: Servicio | N140: Zona 1 | O140: Remoto | P140: Capacitador | Q140: IT-SW-04-01 | R140: Mensual por servicios efectivamente prestados | S140: 1012500 | T140: 1 | U140: 1 | V140: COP
A141: ColsofCANALIT-SW-04-02 | B141: IT-SW-04-02CANAL | D141: Colsof | E141: IT-SW-04-02 | F141: CANAL | G141: Colsof | H141: COP | I141: N/A | J141: Capacitación para usuario técnico o administrador hasta 20 Personas. | K141: Por sesión de capacitación de 4 horas para un grupo de hasta 20 personas. | L141: Und | M141: Servicio | N141: Zona 1 | O141: Sitio | P141: Capacitador | Q141: IT-SW-04-02 | R141: Mensual por servicios efectivamente prestados | S141: 1458000 | T141: 1 | U141: 1 | V141: COP
A142: ColsofCANALIT-SW-04-03 | B142: IT-SW-04-03CANAL | D142: Colsof | E142: IT-SW-04-03 | F142: CANAL | G142: Colsof | H142: COP | I142: N/A | J142: Capacitación para usuario técnico o administrador hasta 20 Personas. | K142: Por sesión de capacitación de 4 horas para un grupo de hasta 20 personas. | L142: Und | M142: Servicio | N142: Zona 2 | O142: Remoto | P142: Capacitador | Q142: IT-SW-04-03 | R142: Mensual por servicios efectivamente prestados | S142: 1366875 | T142: 1 | U142: 1 | V142: COP
A143: ColsofCANALIT-SW-04-04 | B143: IT-SW-04-04CANAL | D143: Colsof | E143: IT-SW-04-04 | F143: CANAL | G143: Colsof | H143: COP | I143: N/A | J143: Capacitación para usuario técnico o administrador hasta 20 Personas. | K143: Por sesión de capacitación de 4 horas para un grupo de hasta 20 personas. | L143: Und | M143: Servicio | N143: Zona 2 | O143: Sitio | P143: Capacitador | Q143: IT-SW-04-04 | R143: Mensual por servicios efectivamente prestados | S143: 1968300 | T143: 1 | U143: 1 | V143: COP
A144: ColsofCANALIT-SW-04-05 | B144: IT-SW-04-05CANAL | D144: Colsof | E144: IT-SW-04-05 | F144: CANAL | G144: Colsof | H144: COP | I144: N/A | J144: Capacitación para usuario técnico o administrador hasta 20 Personas. | K144: Por sesión de capacitación de 4 horas para un grupo de hasta 20 personas. | L144: Und | M144: Servicio | N144: Zona 3 | O144: Remoto | P144: Capacitador | Q144: IT-SW-04-05 | R144: Mensual por servicios efectivamente prestados | S144: 1822500 | T144: 1 | U144: 1 | V144: COP
A145: ColsofCANALIT-SW-04-06 | B145: IT-SW-04-06CANAL | D145: Colsof | E145: IT-SW-04-06 | F145: CANAL | G145: Colsof | H145: COP | I145: N/A | J145: Capacitación para usuario técnico o administrador hasta 20 Personas. | K145: Por sesión de capacitación de 4 horas para un grupo de hasta 20 personas. | L145: Und | M145: Servicio | N145: Zona 3 | O145: Sitio | P145: Capacitador | Q145: IT-SW-04-06 | R145: Mensual por servicios efectivamente prestados | S145: 2624400 | T145: 1 | U145: 1 | V145: COP
A146: ColsofCANALIT-SW-05-01 | B146: IT-SW-05-01CANAL | D146: Colsof | E146: IT-SW-05-01 | F146: CANAL | G146: Colsof | H146: COP | I146: N/A | J146: Configuración y parametrización de los Productos | K146: Hora | L146: Und | M146: Servicio | N146: Zona 1 | O146: Remoto | P146: Profesional | Q146: IT-SW-05-01 | R146: Mensual por servicios efectivamente prestados | S146: 180000 | T146: 1 | U146: 1 | V146: COP
A147: ColsofCANALIT-SW-05-02 | B147: IT-SW-05-02CANAL | D147: Colsof | E147: IT-SW-05-02 | F147: CANAL | G147: Colsof | H147: COP | I147: N/A | J147: Configuración y parametrización de los Productos | K147: Hora | L147: Und | M147: Servicio | N147: Zona 1 | O147: Sitio | P147: Profesional | Q147: IT-SW-05-02 | R147: Mensual por servicios efectivamente prestados | S147: 250000 | T147: 1 | U147: 1 | V147: COP
A148: ColsofCANALIT-SW-05-03 | B148: IT-SW-05-03CANAL | D148: Colsof | E148: IT-SW-05-03 | F148: CANAL | G148: Colsof | H148: COP | I148: N/A | J148: Configuración y parametrización de los Productos | K148: Hora | L148: Und | M148: Servicio | N148: Zona 2 | O148: Remoto | P148: Profesional | Q148: IT-SW-05-03 | R148: Mensual por servicios efectivamente prestados | S148: 200000 | T148: 1 | U148: 1 | V148: COP
A149: ColsofCANALIT-SW-05-04 | B149: IT-SW-05-04CANAL | D149: Colsof | E149: IT-SW-05-04 | F149: CANAL | G149: Colsof | H149: COP | I149: N/A | J149: Configuración y parametrización de los Productos | K149: Hora | L149: Und | M149: Servicio | N149: Zona 2 | O149: Sitio | P149: Profesional | Q149: IT-SW-05-04 | R149: Mensual por servicios efectivamente prestados | S149: 300000 | T149: 1 | U149: 1 | V149: COP
A150: ColsofCANALIT-SW-05-05 | B150: IT-SW-05-05CANAL | D150: Colsof | E150: IT-SW-05-05 | F150: CANAL | G150: Colsof | H150: COP | I150: N/A | J150: Configuración y parametrización de los Productos | K150: Hora | L150: Und | M150: Servicio | N150: Zona 3 | O150: Remoto | P150: Profesional | Q150: IT-SW-05-05 | R150: Mensual por servicios efectivamente prestados | S150: 250000 | T150: 1 | U150: 1 | V150: COP
A151: ColsofCANALIT-SW-05-06 | B151: IT-SW-05-06CANAL | D151: Colsof | E151: IT-SW-05-06 | F151: CANAL | G151: Colsof | H151: COP | I151: N/A | J151: Configuración y parametrización de los Productos | K151: Hora | L151: Und | M151: Servicio | N151: Zona 3 | O151: Sitio | P151: Profesional | Q151: IT-SW-05-06 | R151: Mensual por servicios efectivamente prestados | S151: 400000 | T151: 1 | U151: 1 | V151: COP
A152: ColsofCANALIT-SW-06-01 | B152: IT-SW-06-01CANAL | D152: Colsof | E152: IT-SW-06-01 | F152: CANAL | G152: Colsof | H152: COP | I152: N/A | J152: Gerente de cuenta (soporte) | K152: Mes | L152: Und | M152: Servicio | N152: Zona 1 | O152: Sitio | P152: Profesional | Q152: IT-SW-06-01 | R152: Mensual por servicios efectivamente prestados | S152: 18687500 | T152: 1 | U152: 1 | V152: COP
A153: ColsofCANALIT-SW-06-02 | B153: IT-SW-06-02CANAL | D153: Colsof | E153: IT-SW-06-02 | F153: CANAL | G153: Colsof | H153: COP | I153: N/A | J153: Gerente de cuenta (soporte) | K153: Mes | L153: Und | M153: Servicio | N153: Zona 2 | O153: Sitio | P153: Profesional | Q153: IT-SW-06-02 | R153: Mensual por servicios efectivamente prestados | S153: 24375000 | T153: 1 | U153: 1 | V153: COP
A154: ColsofCANALIT-SW-06-03 | B154: IT-SW-06-03CANAL | D154: Colsof | E154: IT-SW-06-03 | F154: CANAL | G154: Colsof | H154: COP | I154: N/A | J154: Gerente de cuenta (soporte) | K154: Mes | L154: Und | M154: Servicio | N154: Zona 3 | O154: Sitio | P154: Profesional | Q154: IT-SW-06-03 | R154: Mensual por servicios efectivamente prestados | S154: 30875000 | T154: 1 | U154: 1 | V154: COP
A155: ColsofCANALIT-SW-07-01 | B155: IT-SW-07-01CANAL | D155: Colsof | E155: IT-SW-07-01 | F155: CANAL | G155: Colsof | H155: COP | I155: N/A | J155: Instalación de Licencia o Suscripción Anual, o afínes | K155: Unidad | L155: Und | M155: Servicio | N155: Zona 1 | O155: Remoto | P155: Técnico/Tecnólogo ó Profesional | Q155: IT-SW-07-01 | R155: Mensual por servicios efectivamente prestados | S155: 720000 | T155: 1 | U155: 1 | V155: COP
A156: ColsofCANALIT-SW-07-02 | B156: IT-SW-07-02CANAL | D156: Colsof | E156: IT-SW-07-02 | F156: CANAL | G156: Colsof | H156: COP | I156: N/A | J156: Instalación de Licencia o Suscripción Anual, o afínes | K156: Unidad | L156: Und | M156: Servicio | N156: Zona 1 | O156: Sitio | P156: Técnico/Tecnólogo ó Profesional | Q156: IT-SW-07-02 | R156: Mensual por servicios efectivamente prestados | S156: 1000000 | T156: 1 | U156: 1 | V156: COP
A157: ColsofCANALIT-SW-07-03 | B157: IT-SW-07-03CANAL | D157: Colsof | E157: IT-SW-07-03 | F157: CANAL | G157: Colsof | H157: COP | I157: N/A | J157: Instalación de Licencia o Suscripción Anual, o afínes | K157: Unidad | L157: Und | M157: Servicio | N157: Zona 2 | O157: Remoto | P157: Técnico/Tecnólogo ó Profesional | Q157: IT-SW-07-03 | R157: Mensual por servicios efectivamente prestados | S157: 800000 | T157: 1 | U157: 1 | V157: COP
A158: ColsofCANALIT-SW-07-04 | B158: IT-SW-07-04CANAL | D158: Colsof | E158: IT-SW-07-04 | F158: CANAL | G158: Colsof | H158: COP | I158: N/A | J158: Instalación de Licencia o Suscripción Anual, o afínes | K158: Unidad | L158: Und | M158: Servicio | N158: Zona 2 | O158: Sitio | P158: Técnico/Tecnólogo ó Profesional | Q158: IT-SW-07-04 | R158: Mensual por servicios efectivamente prestados | S158: 1200000 | T158: 1 | U158: 1 | V158: COP
A159: ColsofCANALIT-SW-07-05 | B159: IT-SW-07-05CANAL | D159: Colsof | E159: IT-SW-07-05 | F159: CANAL | G159: Colsof | H159: COP | I159: N/A | J159: Instalación de Licencia o Suscripción Anual, o afínes | K159: Unidad | L159: Und | M159: Servicio | N159: Zona 3 | O159: Remoto | P159: Técnico/Tecnólogo ó Profesional | Q159: IT-SW-07-05 | R159: Mensual por servicios efectivamente prestados | S159: 1000000 | T159: 1 | U159: 1 | V159: COP
A160: ColsofCANALIT-SW-07-06 | B160: IT-SW-07-06CANAL | D160: Colsof | E160: IT-SW-07-06 | F160: CANAL | G160: Colsof | H160: COP | I160: N/A | J160: Instalación de Licencia o Suscripción Anual, o afínes | K160: Unidad | L160: Und | M160: Servicio | N160: Zona 3 | O160: Sitio | P160: Técnico/Tecnólogo ó Profesional | Q160: IT-SW-07-06 | R160: Mensual por servicios efectivamente prestados | S160: 1600000 | T160: 1 | U160: 1 | V160: COP
A161: ColsofCANALIT-SW-08-01 | B161: IT-SW-08-01CANAL | D161: Colsof | E161: IT-SW-08-01 | F161: CANAL | G161: Colsof | H161: COP | I161: N/A | J161: Migración de información por volumen de datos almacenados | K161: GB | L161: Und | M161: Servicio | N161: Zona 1 | O161: Remoto | P161: Profesional | Q161: IT-SW-08-01 | R161: Mensual por servicios efectivamente prestados | S161: 56250 | T161: 1 | U161: 1 | V161: COP
A162: ColsofCANALIT-SW-08-02 | B162: IT-SW-08-02CANAL | D162: Colsof | E162: IT-SW-08-02 | F162: CANAL | G162: Colsof | H162: COP | I162: N/A | J162: Migración de información por volumen de datos almacenados | K162: GB | L162: Und | M162: Servicio | N162: Zona 1 | O162: Sitio | P162: Profesional | Q162: IT-SW-08-02 | R162: Mensual por servicios efectivamente prestados | S162: 62500 | T162: 1 | U162: 1 | V162: COP
A163: ColsofCANALIT-SW-08-03 | B163: IT-SW-08-03CANAL | D163: Colsof | E163: IT-SW-08-03 | F163: CANAL | G163: Colsof | H163: COP | I163: N/A | J163: Migración de información por volumen de datos almacenados | K163: GB | L163: Und | M163: Servicio | N163: Zona 2 | O163: Remoto | P163: Profesional | Q163: IT-SW-08-03 | R163: Mensual por servicios efectivamente prestados | S163: 75000 | T163: 1 | U163: 1 | V163: COP
A164: ColsofCANALIT-SW-08-04 | B164: IT-SW-08-04CANAL | D164: Colsof | E164: IT-SW-08-04 | F164: CANAL | G164: Colsof | H164: COP | I164: N/A | J164: Migración de información por volumen de datos almacenados | K164: GB | L164: Und | M164: Servicio | N164: Zona 2 | O164: Sitio | P164: Profesional | Q164: IT-SW-08-04 | R164: Mensual por servicios efectivamente prestados | S164: 87500 | T164: 1 | U164: 1 | V164: COP
A165: ColsofCANALIT-SW-08-05 | B165: IT-SW-08-05CANAL | D165: Colsof | E165: IT-SW-08-05 | F165: CANAL | G165: Colsof | H165: COP | I165: N/A | J165: Migración de información por volumen de datos almacenados | K165: GB | L165: Und | M165: Servicio | N165: Zona 3 | O165: Remoto | P165: Profesional | Q165: IT-SW-08-05 | R165: Mensual por servicios efectivamente prestados | S165: 93750 | T165: 1 | U165: 1 | V165: COP
A166: ColsofCANALIT-SW-08-06 | B166: IT-SW-08-06CANAL | D166: Colsof | E166: IT-SW-08-06 | F166: CANAL | G166: Colsof | H166: COP | I166: N/A | J166: Migración de información por volumen de datos almacenados | K166: GB | L166: Und | M166: Servicio | N166: Zona 3 | O166: Sitio | P166: Profesional | Q166: IT-SW-08-06 | R166: Mensual por servicios efectivamente prestados | S166: 125000 | T166: 1 | U166: 1 | V166: COP
A167: ColsofCANALIT-SW-09-01 | B167: IT-SW-09-01CANAL | D167: Colsof | E167: IT-SW-09-01 | F167: CANAL | G167: Colsof | H167: COP | I167: N/A | J167: Soporte técnico en sitio | K167: Mes | L167: Und | M167: Servicio | N167: Zona 1 | O167: Sitio | P167: Técnico/Tecnólogo ó Profesional | Q167: IT-SW-09-01 | R167: Mensual por servicios efectivamente prestados | S167: 18687500 | T167: 1 | U167: 1 | V167: COP
A168: ColsofCANALIT-SW-09-02 | B168: IT-SW-09-02CANAL | D168: Colsof | E168: IT-SW-09-02 | F168: CANAL | G168: Colsof | H168: COP | I168: N/A | J168: Soporte técnico en sitio | K168: Mes | L168: Und | M168: Servicio | N168: Zona 2 | O168: Sitio | P168: Técnico/Tecnólogo ó Profesional | Q168: IT-SW-09-02 | R168: Mensual por servicios efectivamente prestados | S168: 24375000 | T168: 1 | U168: 1 | V168: COP
A169: ColsofCANALIT-SW-09-03 | B169: IT-SW-09-03CANAL | D169: Colsof | E169: IT-SW-09-03 | F169: CANAL | G169: Colsof | H169: COP | I169: N/A | J169: Soporte técnico en sitio | K169: Mes | L169: Und | M169: Servicio | N169: Zona 3 | O169: Sitio | P169: Técnico/Tecnólogo ó Profesional | Q169: IT-SW-09-03 | R169: Mensual por servicios efectivamente prestados | S169: 30875000 | T169: 1 | U169: 1 | V169: COP
A170: ColsofCANALIT-SW-10-01 | B170: IT-SW-10-01CANAL | D170: Colsof | E170: IT-SW-10-01 | F170: CANAL | G170: Colsof | H170: COP | I170: N/A | J170: Soporte técnico proactivo | K170: Hora | L170: Und | M170: Servicio | N170: Zona 2 | O170: Remoto | P170: Técnico/Tecnólogo ó Profesional | Q170: IT-SW-10-01 | R170: Mensual por servicios efectivamente prestados | S170: 270000 | T170: 1 | U170: 1 | V170: COP
A171: ColsofCANALIT-SW-10-02 | B171: IT-SW-10-02CANAL | D171: Colsof | E171: IT-SW-10-02 | F171: CANAL | G171: Colsof | H171: COP | I171: N/A | J171: Soporte técnico proactivo | K171: Hora | L171: Und | M171: Servicio | N171: Zona 2 | O171: Sitio | P171: Técnico/Tecnólogo ó Profesional | Q171: IT-SW-10-02 | R171: Mensual por servicios efectivamente prestados | S171: 375000 | T171: 1 | U171: 1 | V171: COP
A172: ColsofCANALIT-SW-10-03 | B172: IT-SW-10-03CANAL | D172: Colsof | E172: IT-SW-10-03 | F172: CANAL | G172: Colsof | H172: COP | I172: N/A | J172: Soporte técnico proactivo | K172: Hora | L172: Und | M172: Servicio | N172: Zona 1 | O172: Remoto | P172: Técnico/Tecnólogo ó Profesional | Q172: IT-SW-10-03 | R172: Mensual por servicios efectivamente prestados | S172: 300000 | T172: 1 | U172: 1 | V172: COP
A173: ColsofCANALIT-SW-10-04 | B173: IT-SW-10-04CANAL | D173: Colsof | E173: IT-SW-10-04 | F173: CANAL | G173: Colsof | H173: COP | I173: N/A | J173: Soporte técnico proactivo | K173: Hora | L173: Und | M173: Servicio | N173: Zona 3 | O173: Remoto | P173: Técnico/Tecnólogo ó Profesional | Q173: IT-SW-10-04 | R173: Mensual por servicios efectivamente prestados | S173: 450000 | T173: 1 | U173: 1 | V173: COP
A174: ColsofCANALIT-SW-10-05 | B174: IT-SW-10-05CANAL | D174: Colsof | E174: IT-SW-10-05 | F174: CANAL | G174: Colsof | H174: COP | I174: N/A | J174: Soporte técnico proactivo | K174: Hora | L174: Und | M174: Servicio | N174: Zona 3 | O174: Sitio | P174: Técnico/Tecnólogo ó Profesional | Q174: IT-SW-10-05 | R174: Mensual por servicios efectivamente prestados | S174: 375000 | T174: 1 | U174: 1 | V174: COP
A175: ColsofCANALIT-SW-10-06 | B175: IT-SW-10-06CANAL | D175: Colsof | E175: IT-SW-10-06 | F175: CANAL | G175: Colsof | H175: COP | I175: N/A | J175: Soporte técnico proactivo | K175: Hora | L175: Und | M175: Servicio | N175: Zona 1 | O175: Sitio | P175: Técnico/Tecnólogo ó Profesional | Q175: IT-SW-10-06 | R175: Mensual por servicios efectivamente prestados | S175: 600000 | T175: 1 | U175: 1 | V175: COP
A176: ColsofCANALIT-SW-11-01 | B176: IT-SW-11-01CANAL | D176: Colsof | E176: IT-SW-11-01 | F176: CANAL | G176: Colsof | H176: COP | I176: N/A | J176: Soporte técnico reactivo | K176: Hora | L176: Und | M176: Servicio | N176: Zona 1 | O176: Sitio | P176: Técnico/Tecnólogo ó Profesional | Q176: IT-SW-11-01 | R176: Mensual por servicios efectivamente prestados | S176: 450000 | T176: 1 | U176: 1 | V176: COP
A177: ColsofCANALIT-SW-11-02 | B177: IT-SW-11-02CANAL | D177: Colsof | E177: IT-SW-11-02 | F177: CANAL | G177: Colsof | H177: COP | I177: N/A | J177: Soporte técnico reactivo | K177: Hora | L177: Und | M177: Servicio | N177: Zona 2 | O177: Remoto | P177: Técnico/Tecnólogo ó Profesional | Q177: IT-SW-11-02 | R177: Mensual por servicios efectivamente prestados | S177: 380000 | T177: 1 | U177: 1 | V177: COP
A178: ColsofCANALIT-SW-11-03 | B178: IT-SW-11-03CANAL | D178: Colsof | E178: IT-SW-11-03 | F178: CANAL | G178: Colsof | H178: COP | I178: N/A | J178: Soporte técnico reactivo | K178: Hora | L178: Und | M178: Servicio | N178: Zona 2 | O178: Sitio | P178: Técnico/Tecnólogo ó Profesional | Q178: IT-SW-11-03 | R178: Mensual por servicios efectivamente prestados | S178: 540000 | T178: 1 | U178: 1 | V178: COP
A179: ColsofCANALIT-SW-11-04 | B179: IT-SW-11-04CANAL | D179: Colsof | E179: IT-SW-11-04 | F179: CANAL | G179: Colsof | H179: COP | I179: N/A | J179: Soporte técnico reactivo | K179: Hora | L179: Und | M179: Servicio | N179: Zona 3 | O179: Remoto | P179: Técnico/Tecnólogo ó Profesional | Q179: IT-SW-11-04 | R179: Mensual por servicios efectivamente prestados | S179: 450000 | T179: 1 | U179: 1 | V179: COP
A180: ColsofCANALIT-SW-11-05 | B180: IT-SW-11-05CANAL | D180: Colsof | E180: IT-SW-11-05 | F180: CANAL | G180: Colsof | H180: COP | I180: N/A | J180: Soporte técnico reactivo | K180: Hora | L180: Und | M180: Servicio | N180: Zona 3 | O180: Sitio | P180: Técnico/Tecnólogo ó Profesional | Q180: IT-SW-11-05 | R180: Mensual por servicios efectivamente prestados | S180: 720000 | T180: 1 | U180: 1 | V180: COP
A181: ColsofCANALIT-SW-11-06 | B181: IT-SW-11-06CANAL | D181: Colsof | E181: IT-SW-11-06 | F181: CANAL | G181: Colsof | H181: COP | I181: N/A | J181: Soporte técnico reactivo | K181: Hora | L181: Und | M181: Servicio | N181: Zona 1 | O181: Remoto | P181: Técnico/Tecnólogo ó Profesional | Q181: IT-SW-11-06 | R181: Mensual por servicios efectivamente prestados | S181: 324000 | T181: 1 | U181: 1 | V181: COP
A182: UT Softlinebext 20202CANALIT-SW-01-01 | B182: IT-SW-01-01CANAL | D182: UT Softlinebext 20202 | E182: IT-SW-01-01 | F182: CANAL | G182: UT Softlinebext 20202 | H182: COP | I182: N/A | J182: Capacitación para usuario final - hasta 10 Personas. | K182: Por sesión de capacitación de 4 horas para un grupo de hasta 10 personas. | L182: Und | M182: Servicio | N182: Zona 1 | O182: Remoto | P182: Capacitador | Q182: IT-SW-01-01 | R182: Mensual por servicios efectivamente prestados | S182: 934400 | T182: 1 | U182: 1 | V182: COP
A183: UT Softlinebext 20202CANALIT-SW-01-02 | B183: IT-SW-01-02CANAL | D183: UT Softlinebext 20202 | E183: IT-SW-01-02 | F183: CANAL | G183: UT Softlinebext 20202 | H183: COP | I183: N/A | J183: Capacitación para usuario final - hasta 10 Personas. | K183: Por sesión de capacitación de 4 horas para un grupo de hasta 10 personas. | L183: Und | M183: Servicio | N183: Zona 1 | O183: Sitio | P183: Capacitador | Q183: IT-SW-01-02 | R183: Mensual por servicios efectivamente prestados | S183: 1052666.667 | T183: 1 | U183: 1 | V183: COP
A184: UT Softlinebext 20202CANALIT-SW-01-03 | B184: IT-SW-01-03CANAL | D184: UT Softlinebext 20202 | E184: IT-SW-01-03 | F184: CANAL | G184: UT Softlinebext 20202 | H184: COP | I184: N/A | J184: Capacitación para usuario final - hasta 10 Personas. | K184: Por sesión de capacitación de 4 horas para un grupo de hasta 10 personas. | L184: Und | M184: Servicio | N184: Zona 2 | O184: Remoto | P184: Capacitador | Q184: IT-SW-01-03 | R184: Mensual por servicios efectivamente prestados | S184: 934400 | T184: 1 | U184: 1 | V184: COP
A185: UT Softlinebext 20202CANALIT-SW-01-04 | B185: IT-SW-01-04CANAL | D185: UT Softlinebext 20202 | E185: IT-SW-01-04 | F185: CANAL | G185: UT Softlinebext 20202 | H185: COP | I185: N/A | J185: Capacitación para usuario final - hasta 10 Personas. | K185: Por sesión de capacitación de 4 horas para un grupo de hasta 10 personas. | L185: Und | M185: Servicio | N185: Zona 2 | O185: Sitio | P185: Capacitador | Q185: IT-SW-01-04 | R185: Mensual por servicios efectivamente prestados | S185: 1259333.333 | T185: 1 | U185: 1 | V185: COP
A186: UT Softlinebext 20202CANALIT-SW-01-05 | B186: IT-SW-01-05CANAL | D186: UT Softlinebext 20202 | E186: IT-SW-01-05 | F186: CANAL | G186: UT Softlinebext 20202 | H186: COP | I186: N/A | J186: Capacitación para usuario final - hasta 10 Personas. | K186: Por sesión de capacitación de 4 horas para un grupo de hasta 10 personas. | L186: Und | M186: Servicio | N186: Zona 3 | O186: Remoto | P186: Capacitador | Q186: IT-SW-01-05 | R186: Mensual por servicios efectivamente prestados | S186: 934400 | T186: 1 | U186: 1 | V186: COP
A187: UT Softlinebext 20202CANALIT-SW-01-06 | B187: IT-SW-01-06CANAL | D187: UT Softlinebext 20202 | E187: IT-SW-01-06 | F187: CANAL | G187: UT Softlinebext 20202 | H187: COP | I187: N/A | J187: Capacitación para usuario final - hasta 10 Personas. | K187: Por sesión de capacitación de 4 horas para un grupo de hasta 10 personas. | L187: Und | M187: Servicio | N187: Zona 3 | O187: Sitio | P187: Capacitador | Q187: IT-SW-01-06 | R187: Mensual por servicios efectivamente prestados | S187: 1633866.667 | T187: 1 | U187: 1 | V187: COP
A188: UT Softlinebext 20202CANALIT-SW-02-01 | B188: IT-SW-02-01CANAL | D188: UT Softlinebext 20202 | E188: IT-SW-02-01 | F188: CANAL | G188: UT Softlinebext 20202 | H188: COP | I188: N/A | J188: Capacitación para usuario final hasta 20 Personas. | K188: Por sesión de capacitación de 4 horas para un grupo de hasta 20 personas. | L188: Und | M188: Servicio | N188: Zona 1 | O188: Remoto | P188: Capacitador | Q188: IT-SW-02-01 | R188: Mensual por servicios efectivamente prestados | S188: 934400 | T188: 1 | U188: 1 | V188: COP
A189: UT Softlinebext 20202CANALIT-SW-02-02 | B189: IT-SW-02-02CANAL | D189: UT Softlinebext 20202 | E189: IT-SW-02-02 | F189: CANAL | G189: UT Softlinebext 20202 | H189: COP | I189: N/A | J189: Capacitación para usuario final hasta 20 Personas. | K189: Por sesión de capacitación de 4 horas para un grupo de hasta 20 personas. | L189: Und | M189: Servicio | N189: Zona 1 | O189: Sitio | P189: Capacitador | Q189: IT-SW-02-02 | R189: Mensual por servicios efectivamente prestados | S189: 1642666.667 | T189: 1 | U189: 1 | V189: COP
A190: UT Softlinebext 20202CANALIT-SW-02-03 | B190: IT-SW-02-03CANAL | D190: UT Softlinebext 20202 | E190: IT-SW-02-03 | F190: CANAL | G190: UT Softlinebext 20202 | H190: COP | I190: N/A | J190: Capacitación para usuario final hasta 20 Personas. | K190: Por sesión de capacitación de 4 horas para un grupo de hasta 20 personas. | L190: Und | M190: Servicio | N190: Zona 2 | O190: Remoto | P190: Capacitador | Q190: IT-SW-02-03 | R190: Mensual por servicios efectivamente prestados | S190: 934400 | T190: 1 | U190: 1 | V190: COP
A191: UT Softlinebext 20202CANALIT-SW-02-04 | B191: IT-SW-02-04CANAL | D191: UT Softlinebext 20202 | E191: IT-SW-02-04 | F191: CANAL | G191: UT Softlinebext 20202 | H191: COP | I191: N/A | J191: Capacitación para usuario final hasta 20 Personas. | K191: Por sesión de capacitación de 4 horas para un grupo de hasta 20 personas. | L191: Und | M191: Servicio | N191: Zona 2 | O191: Sitio | P191: Capacitador | Q191: IT-SW-02-04 | R191: Mensual por servicios efectivamente prestados | S191: 1880000 | T191: 1 | U191: 1 | V191: COP
A192: UT Softlinebext 20202CANALIT-SW-02-05 | B192: IT-SW-02-05CANAL | D192: UT Softlinebext 20202 | E192: IT-SW-02-05 | F192: CANAL | G192: UT Softlinebext 20202 | H192: COP | I192: N/A | J192: Capacitación para usuario final hasta 20 Personas. | K192: Por sesión de capacitación de 4 horas para un grupo de hasta 20 personas. | L192: Und | M192: Servicio | N192: Zona 3 | O192: Remoto | P192: Capacitador | Q192: IT-SW-02-05 | R192: Mensual por servicios efectivamente prestados | S192: 934400 | T192: 1 | U192: 1 | V192: COP
A193: UT Softlinebext 20202CANALIT-SW-02-06 | B193: IT-SW-02-06CANAL | D193: UT Softlinebext 20202 | E193: IT-SW-02-06 | F193: CANAL | G193: UT Softlinebext 20202 | H193: COP | I193: N/A | J193: Capacitación para usuario final hasta 20 Personas. | K193: Por sesión de capacitación de 4 horas para un grupo de hasta 20 personas. | L193: Und | M193: Servicio | N193: Zona 3 | O193: Sitio | P193: Capacitador | Q193: IT-SW-02-06 | R193: Mensual por servicios efectivamente prestados | S193: 2217333.333 | T193: 1 | U193: 1 | V193: COP
A194: UT Softlinebext 20202CANALIT-SW-03-01 | B194: IT-SW-03-01CANAL | D194: UT Softlinebext 20202 | E194: IT-SW-03-01 | F194: CANAL | G194: UT Softlinebext 20202 | H194: COP | I194: N/A | J194: Capacitación para usuario técnico o administrador - hasta 10 Personas. | K194: Por sesión de capacitación de 4 horas para un grupo de hasta 10 personas. | L194: Und | M194: Servicio | N194: Zona 1 | O194: Remoto | P194: Capacitador | Q194: IT-SW-03-01 | R194: Mensual por servicios efectivamente prestados | S194: 1116000 | T194: 1 | U194: 1 | V194: COP
A195: =D195&F195&E195 -> UT Softlinebext 20202CANALIT-SW-03-02 | B195: =E195&F195 -> IT-SW-03-02CANAL | D195: UT Softlinebext 20202 | E195: IT-SW-03-02 | F195: CANAL | G195: =D195 -> UT Softlinebext 20202 | H195: COP | I195: N/A | J195: Capacitación para usuario técnico o administrador - hasta 10 Personas. | K195: Por sesión de capacitación de 4 horas para un grupo de hasta 10 personas. | L195: Und | M195: Servicio | N195: Zona 1 | O195: Sitio | P195: Capacitador | Q195: IT-SW-03-02 | R195: Mensual por servicios efectivamente prestados | S195: 1466666.667 | T195: 1 | U195: 1 | V195: =H195 -> COP
A196: UT Softlinebext 20202CANALIT-SW-03-03 | B196: IT-SW-03-03CANAL | D196: UT Softlinebext 20202 | E196: IT-SW-03-03 | F196: CANAL | G196: UT Softlinebext 20202 | H196: COP | I196: N/A | J196: Capacitación para usuario técnico o administrador - hasta 10 Personas. | K196: Por sesión de capacitación de 4 horas para un grupo de hasta 10 personas. | L196: Und | M196: Servicio | N196: Zona 2 | O196: Remoto | P196: Capacitador | Q196: IT-SW-03-03 | R196: Mensual por servicios efectivamente prestados | S196: 1116000 | T196: 1 | U196: 1 | V196: COP
A197: UT Softlinebext 20202CANALIT-SW-03-04 | B197: IT-SW-03-04CANAL | D197: UT Softlinebext 20202 | E197: IT-SW-03-04 | F197: CANAL | G197: UT Softlinebext 20202 | H197: COP | I197: N/A | J197: Capacitación para usuario técnico o administrador - hasta 10 Personas. | K197: Por sesión de capacitación de 4 horas para un grupo de hasta 10 personas. | L197: Und | M197: Servicio | N197: Zona 2 | O197: Sitio | P197: Capacitador | Q197: IT-SW-03-04 | R197: Mensual por servicios efectivamente prestados | S197: 1662000 | T197: 1 | U197: 1 | V197: COP
A198: UT Softlinebext 20202CANALIT-SW-03-05 | B198: IT-SW-03-05CANAL | D198: UT Softlinebext 20202 | E198: IT-SW-03-05 | F198: CANAL | G198: UT Softlinebext 20202 | H198: COP | I198: N/A | J198: Capacitación para usuario técnico o administrador - hasta 10 Personas. | K198: Por sesión de capacitación de 4 horas para un grupo de hasta 10 personas. | L198: Und | M198: Servicio | N198: Zona 3 | O198: Remoto | P198: Capacitador | Q198: IT-SW-03-05 | R198: Mensual por servicios efectivamente prestados | S198: 1116000 | T198: 1 | U198: 1 | V198: COP
A199: UT Softlinebext 20202CANALIT-SW-03-06 | B199: IT-SW-03-06CANAL | D199: UT Softlinebext 20202 | E199: IT-SW-03-06 | F199: CANAL | G199: UT Softlinebext 20202 | H199: COP | I199: N/A | J199: Capacitación para usuario técnico o administrador - hasta 10 Personas. | K199: Por sesión de capacitación de 4 horas para un grupo de hasta 10 personas. | L199: Und | M199: Servicio | N199: Zona 3 | O199: Sitio | P199: Capacitador | Q199: IT-SW-03-06 | R199: Mensual por servicios efectivamente prestados | S199: 2034266.667 | T199: 1 | U199: 1 | V199: COP
A200: UT Softlinebext 20202CANALIT-SW-04-01 | B200: IT-SW-04-01CANAL | D200: UT Softlinebext 20202 | E200: IT-SW-04-01 | F200: CANAL | G200: UT Softlinebext 20202 | H200: COP | I200: N/A | J200: Capacitación para usuario técnico o administrador hasta 20 Personas. | K200: Por sesión de capacitación de 4 horas para un grupo de hasta 20 personas. | L200: Und | M200: Servicio | N200: Zona 1 | O200: Remoto | P200: Capacitador | Q200: IT-SW-04-01 | R200: Mensual por servicios efectivamente prestados | S200: 1116000 | T200: 1 | U200: 1 | V200: COP
... 2436 more rows

Sheet CSV (hidden)
A1: Tipo | B1: Cantidad | C1: Código de unidad de medida* | D1: Precio base | E1: Divisa | F1: Descripción | G1: Mercancía
A2: item | B2: 10 | C2: Und | D2: 482000 | E2: COP | F2: wms01--IT-SW-01-04 Capacitación para usuario final - hasta 10 Personas.
A3: item | B3: 10 | C3: Und | D3: 1855 | E3: COP | F3: wms01--V7U-00166 Microsoft® Mobile Asset Mgmt All Language Subscription Open Value No Level 1 Month Additional Product Distance Matrix Per Asset Manual ROW
A4: item | B4: 1 | C4: Und | D4: 919324,5 | E4: COP | F4: wms01--IVA

Sheet Categorias (hidden)
A1: Categoría 1 | B1: Sistema Operativo, Plataforma, Nube e Infraestructura y Desarrollo Aplicaciones (Open – CSP)
A2: Categoría 2 | B2: Productividad Administración y análisis de datos (Open - CSP)
A3: Categoría 3 | B3: Movilidad (Open - CSP)
A4: Categoría 4 | B4: Aplicaciones empresariales (Open - CSP)
A5: Categoría 5 | B5: Campus (Educativo)
A6: Categoría 6 | B6: OVS (Educativo)
A7: Categoría 7 | B7: Open - CSP (Educativo)

Sheet ProXCat (hidden)
A3: Etiquetas de fila
A4: 1
A5: Controles Empresariales S.A.S.
A6: The Best Experience in Technology S.A
A7: UT Soft-IG
A8: UT Soluciones Microsoft 2017
A9: Total 1
A10: 2
A11: Controles Empresariales S.A.S.
A12: Dell Colombia INC
A13: The Best Experience in Technology S.A
A14: UT Soft-IG
A15: UT Soluciones Microsoft 2017
A16: Total 2
A17: 3
A18: Controles Empresariales S.A.S.
A19: UT Soft-IG
A20: UT Soluciones Microsoft 2017
A21: Total 3
A22: 4
A23: Controles Empresariales S.A.S.
A24: UT Soft-IG
A25: Total 4
A26: 5
A27: Controles Empresariales S.A.S.
A28: UT Soft-IG
A29: Vision Software S.A.S.
A30: Total 5
A31: 6
A32: Controles Empresariales S.A.S.
A33: The Best Experience in Technology S.A
A34: UT Soft-IG
A35: UT Soluciones Microsoft 2017
A36: Total 6
A37: 7
A38: Controles Empresariales S.A.S.
A39: The Best Experience in Technology S.A
A40: UT Soft-IG
A41: UT Soluciones Microsoft 2017
A42: Vision Software S.A.S.
A43: Total 7
A44: Total general

Sheet Cuadro Totales (hidden)
A1: Precio Unitario | B1: Precio Unitario + Gravamen | C1: Subtotal | D1: IVA | E1: Precio Total
D3: Valor Total | E3: =SUM(E2) -> 0
A8: Precio Unitario | B8: Precio Unitario + Gravamen | C8: Descuento adicional | D8: Precio con Descuento | E8: Subtotal | F8: IVA | G8: Vr IVA | H8: Precio Total
G10: Valor Total | H10: =SUM(H9) -> 0
A13: Servicios Azure
A14: Subtotal | B14: IVA | C14: Precio Total

Sheet Listas (hidden)
A1: Categoria | B1: Zona | C1: Marca | D1: ProductoInicial | E1: Producto | F1: Proveedores | G1: UT DELL EMC
A2: CANAL | D2: IT-SW-01-01 | F2: Colsof
A3: OVS_ES ACADEMICO | D3: IT-SW-01-02 | F3: Colombia Telecomunicaciones S.A. ESP.
A4: CSP ACADEMICO | D4: IT-SW-01-03 | F4: Controles Empresariales
A5: OPEN VALUE - CSP GOBIERNO | D5: IT-SW-01-04 | F5: Soluciones Orión
A6: OPEN VALUE ENTIDADES NO CUALIFICADAS | D6: IT-SW-01-05 | F6: UT Softlinebext 20202
A7: CSP ENTIDADES NO CUALIFICADAS | D7: IT-SW-01-06
D8: IT-SW-02-01
D9: IT-SW-02-02
D10: IT-SW-02-03
D11: IT-SW-02-04
D12: IT-SW-02-05
D13: IT-SW-02-06
D14: IT-SW-03-01
D15: IT-SW-03-02
D16: IT-SW-03-03
D17: IT-SW-03-04
D18: IT-SW-03-05
D19: IT-SW-03-06
D20: IT-SW-04-01
D21: IT-SW-04-02
D22: IT-SW-04-03
D23: IT-SW-04-04
D24: IT-SW-04-05
D25: IT-SW-04-06
D26: IT-SW-05-01
D27: IT-SW-05-02
D28: IT-SW-05-03
D29: IT-SW-05-04
D30: IT-SW-05-05
D31: IT-SW-05-06
D32: IT-SW-06-01
D33: IT-SW-06-02
D34: IT-SW-06-03
D35: IT-SW-07-01
D36: IT-SW-07-02
D37: IT-SW-07-03
D38: IT-SW-07-04
D39: IT-SW-07-05
D40: IT-SW-07-06
D41: IT-SW-08-01
D42: IT-SW-08-02
D43: IT-SW-08-03
D44: IT-SW-08-04
D45: IT-SW-08-05
D46: IT-SW-08-06
D47: IT-SW-09-01
D48: IT-SW-09-02
D49: IT-SW-09-03
D50: IT-SW-10-01
D51: IT-SW-10-02
D52: IT-SW-10-03
D53: IT-SW-10-04
D54: IT-SW-10-05
D55: IT-SW-10-06
D56: IT-SW-11-01
D57: IT-SW-11-02
D58: IT-SW-11-03
D59: IT-SW-11-04
D60: IT-SW-11-05
D61: IT-SW-11-06
D62: DG7GMGF0G49Z-0002
D63: DG7GMGF0G49X-0001
D64: DG7GMGF0G49W-0002
D65: DG7GMGF0F4MF-0003
D66: DG7GMGF0F4MD-0005
D67: DG7GMGF0F4MD-0004
D68: DG7GMGF0F4MC-0003
D69: DG7GMGF0F4MB-0005
D70: DG7GMGF0F4MB-0004
D71: DG7GMGF0F4MH-0003
D72: DG7GMGF0F4LF-0003
D73: DG7GMGF0F4LF-0001
D74: DG7GMGF0F4LV-0003
D75: DG7GMGF0F4LV-0002
D76: DG7GMGF0F4LT-0002
D77: DG7GMGF0F4LS-0003
D78: DG7GMGF0F4LS-0002
D79: DG7GMGF0F4LQ-0002
D80: DG7GMGF0F4LP-0003
D81: DG7GMGF0F4LP-0002
D82: DG7GMGF0F4LN-0003
D83: DG7GMGF0F4LN-0002
D84: DG7GMGF0F4K1-0003
D85: DG7GMGF0F4K1-0002
D86: DG7GMGF0FKZW-0002
D87: DG7GMGF0FKZW-0003
D88: DG7GMGF0FKZV-0001
D89: DG7GMGF0FKX9-0003
D90: DG7GMGF0FLR2-0002
D91: 021-08708
D92: 021-08713
D93: 076-04349
D94: 076-04354
D95: 125-00509
D96: 125-00526
D97: 126-01019
D98: 126-01020
D99: 126-01021
D100: 126-01022
D101: 228-07278
D102: 228-07285
D103: 2PM-00005
D104: 312-03709
D105: 312-03716
D106: 359-04608
D107: 359-04613
D108: 359-04620
D109: 359-04625
D110: 381-03621
D111: 381-03626
D112: 381-03633
D113: 381-03638
D114: 395-04132
D115: 395-04138
D116: 395-04144
D117: 3LN-00009
D118: 3ND-00162
D119: 3ND-00163
D120: 3ND-00174
D121: 3ND-00175
D122: 3NN-00023
D123: 3PP-00005
D124: 3VU-00034
D125: 3VU-00035
D126: 3YF-00238
D127: 3YF-00239
D128: 3ZK-00466
D129: 3ZK-00467
D130: 3ZK-00468
D131: 3ZK-00469
D132: 4ZF-00017
D133: 5A5-00005
D134: 5A9-00005
D135: 5HK-00162
D136: 5HK-00163
D137: 5HU-00152
D138: 5HU-00153
D139: 6EM-00008
D140: 6KV-00006
D141: 6PV-00006
D142: 6VC-00998
D143: 6VC-00999
D144: 6VC-01000
D145: 6VC-01001
D146: 6XC-00171
D147: 6XC-00172
D148: 6YH-00263
D149: 6YH-00264
D150: 6ZH-00245
D151: 6ZH-00246
D152: 6ZH-00247
D153: 6ZH-00248
D154: 76A-00794
D155: 76A-00795
D156: 76A-00796
D157: 76A-00797
D158: 76A-00798
D159: 76A-00799
D160: 76M-01045
D161: 76M-01046
D162: 76M-01055
D163: 76M-01056
D164: 76N-03090
D165: 76N-03097
D166: 76N-03103
D167: 76N-03108
D168: 76P-00733
D169: 76P-00738
D170: 77D-00079
D171: 77D-00080
D172: 79P-01696
D173: 79P-01705
D174: 79P-01711
D175: 7AH-00103
D176: 7AH-00104
D177: 7AH-00105
D178: 7AH-00106
D179: 7JQ-00279
D180: 7JQ-00281
D181: 7JQ-00447
D182: 7JT-00002
D183: 7NQ-00187
D184: 7NQ-00188
D185: 7NS-00005
D186: 7YC-00005
D187: 810-06380
D188: 9A3-00028
D189: 9A6-00024
D190: 9EA-00702
D191: 9EA-00703
D192: 9EA-00704
D193: 9EA-00705
D194: 9EA-00706
D195: 9EA-00707
D196: 9EM-00556
D197: 9EM-00557
D198: 9EM-00558
D199: 9EM-00559
D200: 9EN-00484
... 540 more rows

Sheet minimo (hidden)
C1: categoria | D1: CANAL
C3: Etiquetas de fila | D3: Suma de total
C4: Controles Empresariales | D4: 0
C5: Soluciones Orión | D5: 0
C6: Colsof | D6: 0
C7: UT Softlinebext 20202 | D7: 0
C8: Total general | D8: 0

Sheet temp (hidden)
A1: LLAVE | B1: TEMP1 | C1: TEMP2 | D1: PROVEEDOR | E1: Código matriz Colombia Compra Eficiente | F1: categoria | G1: PROVEEDOR2 | H1: Moneda | I1: Parametrización de los Servicios | J1: Nombre Producto | K1: Unidad de Medida | L1: Unidad TVEC | M1: Tipo | N1: Zona | O1: Asistencia | P1: Perfil | Q1: Número de parte | R1: Forma de Pago | S1: Precio | T1: Activo | U1: IVA | V1: cant | W1: valor base | X1: valor con gravamenes | Y1: total
A2: =D2&F2&E2 -> Controles EmpresarialesCANALIT-SW-01-01 | B2: =E2&F2 -> IT-SW-01-01CANAL | D2: Controles Empresariales | E2: IT-SW-01-01 | F2: CANAL | G2: =D2 -> Controles Empresariales | H2: COP | I2: N/A | J2: Capacitación para usuario final - hasta 10 Personas. | K2: Por sesión de capacitación de 4 horas para un grupo de hasta 10 personas. | L2: Und | M2: Servicio | N2: Zona 1 | O2: Remoto | P2: Capacitador | Q2: IT-SW-01-01 | R2: Mensual por servicios efectivamente prestados | S2: 650000 | T2: 1 | U2: 1 | V2: =SUMIF(ResumenCotizacion!$C:$C,E2,ResumenCotizacion!$P:$P) -> 0 | W2: =IF(H2="USD",S2*SolCotizacion!$J$18,S2) -> 650000 | X2: =ROUND(W2/(1-VLOOKUP("Total porcentaje:",ResumenCotizacion!$F:$H,3,0)),2) -> 674273.86 | Y2: =V2*X2 -> 0
A3: =D3&F3&E3 -> Controles EmpresarialesCANALIT-SW-01-02 | B3: =E3&F3 -> IT-SW-01-02CANAL | D3: Controles Empresariales | E3: IT-SW-01-02 | F3: CANAL | G3: =D3 -> Controles Empresariales | H3: COP | I3: N/A | J3: Capacitación para usuario final - hasta 10 Personas. | K3: Por sesión de capacitación de 4 horas para un grupo de hasta 10 personas. | L3: Und | M3: Servicio | N3: Zona 1 | O3: Sitio | P3: Capacitador | Q3: IT-SW-01-02 | R3: Mensual por servicios efectivamente prestados | S3: 670000 | T3: 1 | U3: 1 | V3: =SUMIF(ResumenCotizacion!$C:$C,E3,ResumenCotizacion!$P:$P) -> 0 | W3: =IF(H3="USD",S3*SolCotizacion!$J$18,S3) -> 670000 | X3: =ROUND(W3/(1-VLOOKUP("Total porcentaje:",ResumenCotizacion!$F:$H,3,0)),2) -> 695020.75 | Y3: =V3*X3 -> 0
A4: Controles EmpresarialesCANALIT-SW-01-03 | B4: IT-SW-01-03CANAL | D4: Controles Empresariales | E4: IT-SW-01-03 | F4: CANAL | G4: Controles Empresariales | H4: COP | I4: N/A | J4: Capacitación para usuario final - hasta 10 Personas. | K4: Por sesión de capacitación de 4 horas para un grupo de hasta 10 personas. | L4: Und | M4: Servicio | N4: Zona 2 | O4: Remoto | P4: Capacitador | Q4: IT-SW-01-03 | R4: Mensual por servicios efectivamente prestados | S4: 650000 | T4: 1 | U4: 1 | V4: =SUMIF(ResumenCotizacion!$C:$C,E4,ResumenCotizacion!$P:$P) -> 0 | W4: =IF(H4="USD",S4*SolCotizacion!$J$18,S4) -> 650000 | X4: =ROUND(W4/(1-VLOOKUP("Total porcentaje:",ResumenCotizacion!$F:$H,3,0)),2) -> 674273.86 | Y4: 0
A5: Controles EmpresarialesCANALIT-SW-01-04 | B5: IT-SW-01-04CANAL | D5: Controles Empresariales | E5: IT-SW-01-04 | F5: CANAL | G5: Controles Empresariales | H5: COP | I5: N/A | J5: Capacitación para usuario final - hasta 10 Personas. | K5: Por sesión de capacitación de 4 horas para un grupo de hasta 10 personas. | L5: Und | M5: Servicio | N5: Zona 2 | O5: Sitio | P5: Capacitador | Q5: IT-SW-01-04 | R5: Mensual por servicios efectivamente prestados | S5: 700000 | T5: 1 | U5: 1 | V5: =SUMIF(ResumenCotizacion!$C:$C,E5,ResumenCotizacion!$P:$P) -> 0 | W5: =IF(H5="USD",S5*SolCotizacion!$J$18,S5) -> 700000 | X5: =ROUND(W5/(1-VLOOKUP("Total porcentaje:",ResumenCotizacion!$F:$H,3,0)),2) -> 726141.08 | Y5: 0
A6: Controles EmpresarialesCANALIT-SW-01-05 | B6: IT-SW-01-05CANAL | D6: Controles Empresariales | E6: IT-SW-01-05 | F6: CANAL | G6: Controles Empresariales | H6: COP | I6: N/A | J6: Capacitación para usuario final - hasta 10 Personas. | K6: Por sesión de capacitación de 4 horas para un grupo de hasta 10 personas. | L6: Und | M6: Servicio | N6: Zona 3 | O6: Remoto | P6: Capacitador | Q6: IT-SW-01-05 | R6: Mensual por servicios efectivamente prestados | S6: 650000 | T6: 1 | U6: 1 | V6: =SUMIF(ResumenCotizacion!$C:$C,E6,ResumenCotizacion!$P:$P) -> 0 | W6: =IF(H6="USD",S6*SolCotizacion!$J$18,S6) -> 650000 | X6: =ROUND(W6/(1-VLOOKUP("Total porcentaje:",ResumenCotizacion!$F:$H,3,0)),2) -> 674273.86 | Y6: 0
A7: Controles EmpresarialesCANALIT-SW-01-06 | B7: IT-SW-01-06CANAL | D7: Controles Empresariales | E7: IT-SW-01-06 | F7: CANAL | G7: Controles Empresariales | H7: COP | I7: N/A | J7: Capacitación para usuario final - hasta 10 Personas. | K7: Por sesión de capacitación de 4 horas para un grupo de hasta 10 personas. | L7: Und | M7: Servicio | N7: Zona 3 | O7: Sitio | P7: Capacitador | Q7: IT-SW-01-06 | R7: Mensual por servicios efectivamente prestados | S7: 750000 | T7: 1 | U7: 1 | V7: =SUMIF(ResumenCotizacion!$C:$C,E7,ResumenCotizacion!$P:$P) -> 0 | W7: =IF(H7="USD",S7*SolCotizacion!$J$18,S7) -> 750000 | X7: =ROUND(W7/(1-VLOOKUP("Total porcentaje:",ResumenCotizacion!$F:$H,3,0)),2) -> 778008.3 | Y7: 0
A8: Controles EmpresarialesCANALIT-SW-02-01 | B8: IT-SW-02-01CANAL | D8: Controles Empresariales | E8: IT-SW-02-01 | F8: CANAL | G8: Controles Empresariales | H8: COP | I8: N/A | J8: Capacitación para usuario final hasta 20 Personas. | K8: Por sesión de capacitación de 4 horas para un grupo de hasta 20 personas. | L8: Und | M8: Servicio | N8: Zona 1 | O8: Remoto | P8: Capacitador | Q8: IT-SW-02-01 | R8: Mensual por servicios efectivamente prestados | S8: 650000 | T8: 1 | U8: 1 | V8: =SUMIF(ResumenCotizacion!$C:$C,E8,ResumenCotizacion!$P:$P) -> 0 | W8: =IF(H8="USD",S8*SolCotizacion!$J$18,S8) -> 650000 | X8: =ROUND(W8/(1-VLOOKUP("Total porcentaje:",ResumenCotizacion!$F:$H,3,0)),2) -> 674273.86 | Y8: 0
A9: Controles EmpresarialesCANALIT-SW-02-02 | B9: IT-SW-02-02CANAL | D9: Controles Empresariales | E9: IT-SW-02-02 | F9: CANAL | G9: Controles Empresariales | H9: COP | I9: N/A | J9: Capacitación para usuario final hasta 20 Personas. | K9: Por sesión de capacitación de 4 horas para un grupo de hasta 20 personas. | L9: Und | M9: Servicio | N9: Zona 1 | O9: Sitio | P9: Capacitador | Q9: IT-SW-02-02 | R9: Mensual por servicios efectivamente prestados | S9: 670000 | T9: 1 | U9: 1 | V9: =SUMIF(ResumenCotizacion!$C:$C,E9,ResumenCotizacion!$P:$P) -> 0 | W9: =IF(H9="USD",S9*SolCotizacion!$J$18,S9) -> 670000 | X9: =ROUND(W9/(1-VLOOKUP("Total porcentaje:",ResumenCotizacion!$F:$H,3,0)),2) -> 695020.75 | Y9: 0
A10: Controles EmpresarialesCANALIT-SW-02-03 | B10: IT-SW-02-03CANAL | D10: Controles Empresariales | E10: IT-SW-02-03 | F10: CANAL | G10: Controles Empresariales | H10: COP | I10: N/A | J10: Capacitación para usuario final hasta 20 Personas. | K10: Por sesión de capacitación de 4 horas para un grupo de hasta 20 personas. | L10: Und | M10: Servicio | N10: Zona 2 | O10: Remoto | P10: Capacitador | Q10: IT-SW-02-03 | R10: Mensual por servicios efectivamente prestados | S10: 650000 | T10: 1 | U10: 1 | V10: =SUMIF(ResumenCotizacion!$C:$C,E10,ResumenCotizacion!$P:$P) -> 0 | W10: =IF(H10="USD",S10*SolCotizacion!$J$18,S10) -> 650000 | X10: =ROUND(W10/(1-VLOOKUP("Total porcentaje:",ResumenCotizacion!$F:$H,3,0)),2) -> 674273.86 | Y10: 0
A11: Controles EmpresarialesCANALIT-SW-02-04 | B11: IT-SW-02-04CANAL | D11: Controles Empresariales | E11: IT-SW-02-04 | F11: CANAL | G11: Controles Empresariales | H11: COP | I11: N/A | J11: Capacitación para usuario final hasta 20 Personas. | K11: Por sesión de capacitación de 4 horas para un grupo de hasta 20 personas. | L11: Und | M11: Servicio | N11: Zona 2 | O11: Sitio | P11: Capacitador | Q11: IT-SW-02-04 | R11: Mensual por servicios efectivamente prestados | S11: 700000 | T11: 1 | U11: 1 | V11: =SUMIF(ResumenCotizacion!$C:$C,E11,ResumenCotizacion!$P:$P) -> 0 | W11: =IF(H11="USD",S11*SolCotizacion!$J$18,S11) -> 700000 | X11: =ROUND(W11/(1-VLOOKUP("Total porcentaje:",ResumenCotizacion!$F:$H,3,0)),2) -> 726141.08 | Y11: 0
A12: Controles EmpresarialesCANALIT-SW-02-05 | B12: IT-SW-02-05CANAL | D12: Controles Empresariales | E12: IT-SW-02-05 | F12: CANAL | G12: Controles Empresariales | H12: COP | I12: N/A | J12: Capacitación para usuario final hasta 20 Personas. | K12: Por sesión de capacitación de 4 horas para un grupo de hasta 20 personas. | L12: Und | M12: Servicio | N12: Zona 3 | O12: Remoto | P12: Capacitador | Q12: IT-SW-02-05 | R12: Mensual por servicios efectivamente prestados | S12: 650000 | T12: 1 | U12: 1 | V12: =SUMIF(ResumenCotizacion!$C:$C,E12,ResumenCotizacion!$P:$P) -> 0 | W12: =IF(H12="USD",S12*SolCotizacion!$J$18,S12) -> 650000 | X12: =ROUND(W12/(1-VLOOKUP("Total porcentaje:",ResumenCotizacion!$F:$H,3,0)),2) -> 674273.86 | Y12: 0
A13: Controles EmpresarialesCANALIT-SW-02-06 | B13: IT-SW-02-06CANAL | D13: Controles Empresariales | E13: IT-SW-02-06 | F13: CANAL | G13: Controles Empresariales | H13: COP | I13: N/A | J13: Capacitación para usuario final hasta 20 Personas. | K13: Por sesión de capacitación de 4 horas para un grupo de hasta 20 personas. | L13: Und | M13: Servicio | N13: Zona 3 | O13: Sitio | P13: Capacitador | Q13: IT-SW-02-06 | R13: Mensual por servicios efectivamente prestados | S13: 750000 | T13: 1 | U13: 1 | V13: =SUMIF(ResumenCotizacion!$C:$C,E13,ResumenCotizacion!$P:$P) -> 0 | W13: =IF(H13="USD",S13*SolCotizacion!$J$18,S13) -> 750000 | X13: =ROUND(W13/(1-VLOOKUP("Total porcentaje:",ResumenCotizacion!$F:$H,3,0)),2) -> 778008.3 | Y13: 0
A14: Controles EmpresarialesCANALIT-SW-03-01 | B14: IT-SW-03-01CANAL | D14: Controles Empresariales | E14: IT-SW-03-01 | F14: CANAL | G14: Controles Empresariales | H14: COP | I14: N/A | J14: Capacitación para usuario técnico o administrador - hasta 10 Personas. | K14: Por sesión de capacitación de 4 horas para un grupo de hasta 10 personas. | L14: Und | M14: Servicio | N14: Zona 1 | O14: Remoto | P14: Capacitador | Q14: IT-SW-03-01 | R14: Mensual por servicios efectivamente prestados | S14: 727800 | T14: 1 | U14: 1 | V14: =SUMIF(ResumenCotizacion!$C:$C,E14,ResumenCotizacion!$P:$P) -> 0 | W14: =IF(H14="USD",S14*SolCotizacion!$J$18,S14) -> 727800 | X14: =ROUND(W14/(1-VLOOKUP("Total porcentaje:",ResumenCotizacion!$F:$H,3,0)),2) -> 754979.25 | Y14: 0
A15: Controles EmpresarialesCANALIT-SW-03-02 | B15: IT-SW-03-02CANAL | D15: Controles Empresariales | E15: IT-SW-03-02 | F15: CANAL | G15: Controles Empresariales | H15: COP | I15: N/A | J15: Capacitación para usuario técnico o administrador - hasta 10 Personas. | K15: Por sesión de capacitación de 4 horas para un grupo de hasta 10 personas. | L15: Und | M15: Servicio | N15: Zona 1 | O15: Sitio | P15: Capacitador | Q15: IT-SW-03-02 | R15: Mensual por servicios efectivamente prestados | S15: 737800 | T15: 1 | U15: 1 | V15: =SUMIF(ResumenCotizacion!$C:$C,E15,ResumenCotizacion!$P:$P) -> 0 | W15: =IF(H15="USD",S15*SolCotizacion!$J$18,S15) -> 737800 | X15: =ROUND(W15/(1-VLOOKUP("Total porcentaje:",ResumenCotizacion!$F:$H,3,0)),2) -> 765352.7 | Y15: 0
A16: Controles EmpresarialesCANALIT-SW-03-03 | B16: IT-SW-03-03CANAL | D16: Controles Empresariales | E16: IT-SW-03-03 | F16: CANAL | G16: Controles Empresariales | H16: COP | I16: N/A | J16: Capacitación para usuario técnico o administrador - hasta 10 Personas. | K16: Por sesión de capacitación de 4 horas para un grupo de hasta 10 personas. | L16: Und | M16: Servicio | N16: Zona 2 | O16: Remoto | P16: Capacitador | Q16: IT-SW-03-03 | R16: Mensual por servicios efectivamente prestados | S16: 727800 | T16: 1 | U16: 1 | V16: =SUMIF(ResumenCotizacion!$C:$C,E16,ResumenCotizacion!$P:$P) -> 0 | W16: =IF(H16="USD",S16*SolCotizacion!$J$18,S16) -> 727800 | X16: =ROUND(W16/(1-VLOOKUP("Total porcentaje:",ResumenCotizacion!$F:$H,3,0)),2) -> 754979.25 | Y16: 0
A17: Controles EmpresarialesCANALIT-SW-03-04 | B17: IT-SW-03-04CANAL | D17: Controles Empresariales | E17: IT-SW-03-04 | F17: CANAL | G17: Controles Empresariales | H17: COP | I17: N/A | J17: Capacitación para usuario técnico o administrador - hasta 10 Personas. | K17: Por sesión de capacitación de 4 horas para un grupo de hasta 10 personas. | L17: Und | M17: Servicio | N17: Zona 2 | O17: Sitio | P17: Capacitador | Q17: IT-SW-03-04 | R17: Mensual por servicios efectivamente prestados | S17: 767800 | T17: 1 | U17: 1 | V17: =SUMIF(ResumenCotizacion!$C:$C,E17,ResumenCotizacion!$P:$P) -> 0 | W17: =IF(H17="USD",S17*SolCotizacion!$J$18,S17) -> 767800 | X17: =ROUND(W17/(1-VLOOKUP("Total porcentaje:",ResumenCotizacion!$F:$H,3,0)),2) -> 796473.03 | Y17: 0
A18: Controles EmpresarialesCANALIT-SW-03-05 | B18: IT-SW-03-05CANAL | D18: Controles Empresariales | E18: IT-SW-03-05 | F18: CANAL | G18: Controles Empresariales | H18: COP | I18: N/A | J18: Capacitación para usuario técnico o administrador - hasta 10 Personas. | K18: Por sesión de capacitación de 4 horas para un grupo de hasta 10 personas. | L18: Und | M18: Servicio | N18: Zona 3 | O18: Remoto | P18: Capacitador | Q18: IT-SW-03-05 | R18: Mensual por servicios efectivamente prestados | S18: 727800 | T18: 1 | U18: 1 | V18: =SUMIF(ResumenCotizacion!$C:$C,E18,ResumenCotizacion!$P:$P) -> 0 | W18: =IF(H18="USD",S18*SolCotizacion!$J$18,S18) -> 727800 | X18: =ROUND(W18/(1-VLOOKUP("Total porcentaje:",ResumenCotizacion!$F:$H,3,0)),2) -> 754979.25 | Y18: 0
A19: Controles EmpresarialesCANALIT-SW-03-06 | B19: IT-SW-03-06CANAL | D19: Controles Empresariales | E19: IT-SW-03-06 | F19: CANAL | G19: Controles Empresariales | H19: COP | I19: N/A | J19: Capacitación para usuario técnico o administrador - hasta 10 Personas. | K19: Por sesión de capacitación de 4 horas para un grupo de hasta 10 personas. | L19: Und | M19: Servicio | N19: Zona 3 | O19: Sitio | P19: Capacitador | Q19: IT-SW-03-06 | R19: Mensual por servicios efectivamente prestados | S19: 862800 | T19: 1 | U19: 1 | V19: =SUMIF(ResumenCotizacion!$C:$C,E19,ResumenCotizacion!$P:$P) -> 0 | W19: =IF(H19="USD",S19*SolCotizacion!$J$18,S19) -> 862800 | X19: =ROUND(W19/(1-VLOOKUP("Total porcentaje:",ResumenCotizacion!$F:$H,3,0)),2) -> 895020.75 | Y19: 0
A20: Controles EmpresarialesCANALIT-SW-04-01 | B20: IT-SW-04-01CANAL | D20: Controles Empresariales | E20: IT-SW-04-01 | F20: CANAL | G20: Controles Empresariales | H20: COP | I20: N/A | J20: Capacitación para usuario técnico o administrador hasta 20 Personas. | K20: Por sesión de capacitación de 4 horas para un grupo de hasta 20 personas. | L20: Und | M20: Servicio | N20: Zona 1 | O20: Remoto | P20: Capacitador | Q20: IT-SW-04-01 | R20: Mensual por servicios efectivamente prestados | S20: 727800 | T20: 1 | U20: 1 | V20: =SUMIF(ResumenCotizacion!$C:$C,E20,ResumenCotizacion!$P:$P) -> 0 | W20: =IF(H20="USD",S20*SolCotizacion!$J$18,S20) -> 727800 | X20: =ROUND(W20/(1-VLOOKUP("Total porcentaje:",ResumenCotizacion!$F:$H,3,0)),2) -> 754979.25 | Y20: 0
A21: Controles EmpresarialesCANALIT-SW-04-02 | B21: IT-SW-04-02CANAL | D21: Controles Empresariales | E21: IT-SW-04-02 | F21: CANAL | G21: Controles Empresariales | H21: COP | I21: N/A | J21: Capacitación para usuario técnico o administrador hasta 20 Personas. | K21: Por sesión de capacitación de 4 horas para un grupo de hasta 20 personas. | L21: Und | M21: Servicio | N21: Zona 1 | O21: Sitio | P21: Capacitador | Q21: IT-SW-04-02 | R21: Mensual por servicios efectivamente prestados | S21: 737800 | T21: 1 | U21: 1 | V21: =SUMIF(ResumenCotizacion!$C:$C,E21,ResumenCotizacion!$P:$P) -> 0 | W21: =IF(H21="USD",S21*SolCotizacion!$J$18,S21) -> 737800 | X21: =ROUND(W21/(1-VLOOKUP("Total porcentaje:",ResumenCotizacion!$F:$H,3,0)),2) -> 765352.7 | Y21: 0
A22: Controles EmpresarialesCANALIT-SW-04-03 | B22: IT-SW-04-03CANAL | D22: Controles Empresariales | E22: IT-SW-04-03 | F22: CANAL | G22: Controles Empresariales | H22: COP | I22: N/A | J22: Capacitación para usuario técnico o administrador hasta 20 Personas. | K22: Por sesión de capacitación de 4 horas para un grupo de hasta 20 personas. | L22: Und | M22: Servicio | N22: Zona 2 | O22: Remoto | P22: Capacitador | Q22: IT-SW-04-03 | R22: Mensual por servicios efectivamente prestados | S22: 727800 | T22: 1 | U22: 1 | V22: =SUMIF(ResumenCotizacion!$C:$C,E22,ResumenCotizacion!$P:$P) -> 0 | W22: =IF(H22="USD",S22*SolCotizacion!$J$18,S22) -> 727800 | X22: =ROUND(W22/(1-VLOOKUP("Total porcentaje:",ResumenCotizacion!$F:$H,3,0)),2) -> 754979.25 | Y22: 0
A23: Controles EmpresarialesCANALIT-SW-04-04 | B23: IT-SW-04-04CANAL | D23: Controles Empresariales | E23: IT-SW-04-04 | F23: CANAL | G23: Controles Empresariales | H23: COP | I23: N/A | J23: Capacitación para usuario técnico o administrador hasta 20 Personas. | K23: Por sesión de capacitación de 4 horas para un grupo de hasta 20 personas. | L23: Und | M23: Servicio | N23: Zona 2 | O23: Sitio | P23: Capacitador | Q23: IT-SW-04-04 | R23: Mensual por servicios efectivamente prestados | S23: 767800 | T23: 1 | U23: 1 | V23: =SUMIF(ResumenCotizacion!$C:$C,E23,ResumenCotizacion!$P:$P) -> 0 | W23: =IF(H23="USD",S23*SolCotizacion!$J$18,S23) -> 767800 | X23: =ROUND(W23/(1-VLOOKUP("Total porcentaje:",ResumenCotizacion!$F:$H,3,0)),2) -> 796473.03 | Y23: 0
A24: Controles EmpresarialesCANALIT-SW-04-05 | B24: IT-SW-04-05CANAL | D24: Controles Empresariales | E24: IT-SW-04-05 | F24: CANAL | G24: Controles Empresariales | H24: COP | I24: N/A | J24: Capacitación para usuario técnico o administrador hasta 20 Personas. | K24: Por sesión de capacitación de 4 horas para un grupo de hasta 20 personas. | L24: Und | M24: Servicio | N24: Zona 3 | O24: Remoto | P24: Capacitador | Q24: IT-SW-04-05 | R24: Mensual por servicios efectivamente prestados | S24: 727800 | T24: 1 | U24: 1 | V24: =SUMIF(ResumenCotizacion!$C:$C,E24,ResumenCotizacion!$P:$P) -> 0 | W24: =IF(H24="USD",S24*SolCotizacion!$J$18,S24) -> 727800 | X24: =ROUND(W24/(1-VLOOKUP("Total porcentaje:",ResumenCotizacion!$F:$H,3,0)),2) -> 754979.25 | Y24: 0
A25: Controles EmpresarialesCANALIT-SW-04-06 | B25: IT-SW-04-06CANAL | D25: Controles Empresariales | E25: IT-SW-04-06 | F25: CANAL | G25: Controles Empresariales | H25: COP | I25: N/A | J25: Capacitación para usuario técnico o administrador hasta 20 Personas. | K25: Por sesión de capacitación de 4 horas para un grupo de hasta 20 personas. | L25: Und | M25: Servicio | N25: Zona 3 | O25: Sitio | P25: Capacitador | Q25: IT-SW-04-06 | R25: Mensual por servicios efectivamente prestados | S25: 862800 | T25: 1 | U25: 1 | V25: =SUMIF(ResumenCotizacion!$C:$C,E25,ResumenCotizacion!$P:$P) -> 0 | W25: =IF(H25="USD",S25*SolCotizacion!$J$18,S25) -> 862800 | X25: =ROUND(W25/(1-VLOOKUP("Total porcentaje:",ResumenCotizacion!$F:$H,3,0)),2) -> 895020.75 | Y25: 0
A26: Controles EmpresarialesCANALIT-SW-05-01 | B26: IT-SW-05-01CANAL | D26: Controles Empresariales | E26: IT-SW-05-01 | F26: CANAL | G26: Controles Empresariales | H26: COP | I26: N/A | J26: Configuración y parametrización de los Productos | K26: Hora | L26: Und | M26: Servicio | N26: Zona 1 | O26: Remoto | P26: Profesional | Q26: IT-SW-05-01 | R26: Mensual por servicios efectivamente prestados | S26: 181950 | T26: 1 | U26: 1 | V26: =SUMIF(ResumenCotizacion!$C:$C,E26,ResumenCotizacion!$P:$P) -> 0 | W26: =IF(H26="USD",S26*SolCotizacion!$J$18,S26) -> 181950 | X26: =ROUND(W26/(1-VLOOKUP("Total porcentaje:",ResumenCotizacion!$F:$H,3,0)),2) -> 188744.81 | Y26: 0
A27: Controles EmpresarialesCANALIT-SW-05-02 | B27: IT-SW-05-02CANAL | D27: Controles Empresariales | E27: IT-SW-05-02 | F27: CANAL | G27: Controles Empresariales | H27: COP | I27: N/A | J27: Configuración y parametrización de los Productos | K27: Hora | L27: Und | M27: Servicio | N27: Zona 1 | O27: Sitio | P27: Profesional | Q27: IT-SW-05-02 | R27: Mensual por servicios efectivamente prestados | S27: 186950 | T27: 1 | U27: 1 | V27: =SUMIF(ResumenCotizacion!$C:$C,E27,ResumenCotizacion!$P:$P) -> 0 | W27: =IF(H27="USD",S27*SolCotizacion!$J$18,S27) -> 186950 | X27: =ROUND(W27/(1-VLOOKUP("Total porcentaje:",ResumenCotizacion!$F:$H,3,0)),2) -> 193931.54 | Y27: 0
A28: Controles EmpresarialesCANALIT-SW-05-03 | B28: IT-SW-05-03CANAL | D28: Controles Empresariales | E28: IT-SW-05-03 | F28: CANAL | G28: Controles Empresariales | H28: COP | I28: N/A | J28: Configuración y parametrización de los Productos | K28: Hora | L28: Und | M28: Servicio | N28: Zona 2 | O28: Remoto | P28: Profesional | Q28: IT-SW-05-03 | R28: Mensual por servicios efectivamente prestados | S28: 181950 | T28: 1 | U28: 1 | V28: =SUMIF(ResumenCotizacion!$C:$C,E28,ResumenCotizacion!$P:$P) -> 0 | W28: =IF(H28="USD",S28*SolCotizacion!$J$18,S28) -> 181950 | X28: =ROUND(W28/(1-VLOOKUP("Total porcentaje:",ResumenCotizacion!$F:$H,3,0)),2) -> 188744.81 | Y28: 0
A29: Controles EmpresarialesCANALIT-SW-05-04 | B29: IT-SW-05-04CANAL | D29: Controles Empresariales | E29: IT-SW-05-04 | F29: CANAL | G29: Controles Empresariales | H29: COP | I29: N/A | J29: Configuración y parametrización de los Productos | K29: Hora | L29: Und | M29: Servicio | N29: Zona 2 | O29: Sitio | P29: Profesional | Q29: IT-SW-05-04 | R29: Mensual por servicios efectivamente prestados | S29: 194450 | T29: 1 | U29: 1 | V29: =SUMIF(ResumenCotizacion!$C:$C,E29,ResumenCotizacion!$P:$P) -> 0 | W29: =IF(H29="USD",S29*SolCotizacion!$J$18,S29) -> 194450 | X29: =ROUND(W29/(1-VLOOKUP("Total porcentaje:",ResumenCotizacion!$F:$H,3,0)),2) -> 201711.62 | Y29: 0
A30: Controles EmpresarialesCANALIT-SW-05-05 | B30: IT-SW-05-05CANAL | D30: Controles Empresariales | E30: IT-SW-05-05 | F30: CANAL | G30: Controles Empresariales | H30: COP | I30: N/A | J30: Configuración y parametrización de los Productos | K30: Hora | L30: Und | M30: Servicio | N30: Zona 3 | O30: Remoto | P30: Profesional | Q30: IT-SW-05-05 | R30: Mensual por servicios efectivamente prestados | S30: 181950 | T30: 1 | U30: 1 | V30: =SUMIF(ResumenCotizacion!$C:$C,E30,ResumenCotizacion!$P:$P) -> 0 | W30: =IF(H30="USD",S30*SolCotizacion!$J$18,S30) -> 181950 | X30: =ROUND(W30/(1-VLOOKUP("Total porcentaje:",ResumenCotizacion!$F:$H,3,0)),2) -> 188744.81 | Y30: 0
A31: Controles EmpresarialesCANALIT-SW-05-06 | B31: IT-SW-05-06CANAL | D31: Controles Empresariales | E31: IT-SW-05-06 | F31: CANAL | G31: Controles Empresariales | H31: COP | I31: N/A | J31: Configuración y parametrización de los Productos | K31: Hora | L31: Und | M31: Servicio | N31: Zona 3 | O31: Sitio | P31: Profesional | Q31: IT-SW-05-06 | R31: Mensual por servicios efectivamente prestados | S31: 206950 | T31: 1 | U31: 1 | V31: =SUMIF(ResumenCotizacion!$C:$C,E31,ResumenCotizacion!$P:$P) -> 0 | W31: =IF(H31="USD",S31*SolCotizacion!$J$18,S31) -> 206950 | X31: =ROUND(W31/(1-VLOOKUP("Total porcentaje:",ResumenCotizacion!$F:$H,3,0)),2) -> 214678.42 | Y31: 0
A32: Controles EmpresarialesCANALIT-SW-06-01 | B32: IT-SW-06-01CANAL | D32: Controles Empresariales | E32: IT-SW-06-01 | F32: CANAL | G32: Controles Empresariales | H32: COP | I32: N/A | J32: Gerente de cuenta (soporte) | K32: Mes | L32: Und | M32: Servicio | N32: Zona 1 | O32: Sitio | P32: Profesional | Q32: IT-SW-06-01 | R32: Mensual por servicios efectivamente prestados | S32: 17948571 | T32: 1 | U32: 1 | V32: =SUMIF(ResumenCotizacion!$C:$C,E32,ResumenCotizacion!$P:$P) -> 0 | W32: =IF(H32="USD",S32*SolCotizacion!$J$18,S32) -> 17948571 | X32: =ROUND(W32/(1-VLOOKUP("Total porcentaje:",ResumenCotizacion!$F:$H,3,0)),2) -> 18618849.59 | Y32: 0
A33: Controles EmpresarialesCANALIT-SW-06-02 | B33: IT-SW-06-02CANAL | D33: Controles Empresariales | E33: IT-SW-06-02 | F33: CANAL | G33: Controles Empresariales | H33: COP | I33: N/A | J33: Gerente de cuenta (soporte) | K33: Mes | L33: Und | M33: Servicio | N33: Zona 2 | O33: Sitio | P33: Profesional | Q33: IT-SW-06-02 | R33: Mensual por servicios efectivamente prestados | S33: 18848571 | T33: 1 | U33: 1 | V33: =SUMIF(ResumenCotizacion!$C:$C,E33,ResumenCotizacion!$P:$P) -> 0 | W33: =IF(H33="USD",S33*SolCotizacion!$J$18,S33) -> 18848571 | X33: =ROUND(W33/(1-VLOOKUP("Total porcentaje:",ResumenCotizacion!$F:$H,3,0)),2) -> 19552459.54 | Y33: 0
A34: Controles EmpresarialesCANALIT-SW-06-03 | B34: IT-SW-06-03CANAL | D34: Controles Empresariales | E34: IT-SW-06-03 | F34: CANAL | G34: Controles Empresariales | H34: COP | I34: N/A | J34: Gerente de cuenta (soporte) | K34: Mes | L34: Und | M34: Servicio | N34: Zona 3 | O34: Sitio | P34: Profesional | Q34: IT-SW-06-03 | R34: Mensual por servicios efectivamente prestados | S34: 19748571 | T34: 1 | U34: 1 | V34: =SUMIF(ResumenCotizacion!$C:$C,E34,ResumenCotizacion!$P:$P) -> 0 | W34: =IF(H34="USD",S34*SolCotizacion!$J$18,S34) -> 19748571 | X34: =ROUND(W34/(1-VLOOKUP("Total porcentaje:",ResumenCotizacion!$F:$H,3,0)),2) -> 20486069.5 | Y34: 0
A35: Controles EmpresarialesCANALIT-SW-07-01 | B35: IT-SW-07-01CANAL | D35: Controles Empresariales | E35: IT-SW-07-01 | F35: CANAL | G35: Controles Empresariales | H35: COP | I35: N/A | J35: Instalación de Licencia o Suscripción Anual, o afínes | K35: Unidad | L35: Und | M35: Servicio | N35: Zona 1 | O35: Remoto | P35: Técnico/Tecnólogo ó Profesional | Q35: IT-SW-07-01 | R35: Mensual por servicios efectivamente prestados | S35: 363900 | T35: 1 | U35: 1 | V35: =SUMIF(ResumenCotizacion!$C:$C,E35,ResumenCotizacion!$P:$P) -> 0 | W35: =IF(H35="USD",S35*SolCotizacion!$J$18,S35) -> 363900 | X35: =ROUND(W35/(1-VLOOKUP("Total porcentaje:",ResumenCotizacion!$F:$H,3,0)),2) -> 377489.63 | Y35: 0
A36: Controles EmpresarialesCANALIT-SW-07-02 | B36: IT-SW-07-02CANAL | D36: Controles Empresariales | E36: IT-SW-07-02 | F36: CANAL | G36: Controles Empresariales | H36: COP | I36: N/A | J36: Instalación de Licencia o Suscripción Anual, o afínes | K36: Unidad | L36: Und | M36: Servicio | N36: Zona 1 | O36: Sitio | P36: Técnico/Tecnólogo ó Profesional | Q36: IT-SW-07-02 | R36: Mensual por servicios efectivamente prestados | S36: 368900 | T36: 1 | U36: 1 | V36: =SUMIF(ResumenCotizacion!$C:$C,E36,ResumenCotizacion!$P:$P) -> 0 | W36: =IF(H36="USD",S36*SolCotizacion!$J$18,S36) -> 368900 | X36: =ROUND(W36/(1-VLOOKUP("Total porcentaje:",ResumenCotizacion!$F:$H,3,0)),2) -> 382676.35 | Y36: 0
A37: Controles EmpresarialesCANALIT-SW-07-03 | B37: IT-SW-07-03CANAL | D37: Controles Empresariales | E37: IT-SW-07-03 | F37: CANAL | G37: Controles Empresariales | H37: COP | I37: N/A | J37: Instalación de Licencia o Suscripción Anual, o afínes | K37: Unidad | L37: Und | M37: Servicio | N37: Zona 2 | O37: Remoto | P37: Técnico/Tecnólogo ó Profesional | Q37: IT-SW-07-03 | R37: Mensual por servicios efectivamente prestados | S37: 363900 | T37: 1 | U37: 1 | V37: =SUMIF(ResumenCotizacion!$C:$C,E37,ResumenCotizacion!$P:$P) -> 0 | W37: =IF(H37="USD",S37*SolCotizacion!$J$18,S37) -> 363900 | X37: =ROUND(W37/(1-VLOOKUP("Total porcentaje:",ResumenCotizacion!$F:$H,3,0)),2) -> 377489.63 | Y37: 0
A38: Controles EmpresarialesCANALIT-SW-07-04 | B38: IT-SW-07-04CANAL | D38: Controles Empresariales | E38: IT-SW-07-04 | F38: CANAL | G38: Controles Empresariales | H38: COP | I38: N/A | J38: Instalación de Licencia o Suscripción Anual, o afínes | K38: Unidad | L38: Und | M38: Servicio | N38: Zona 2 | O38: Sitio | P38: Técnico/Tecnólogo ó Profesional | Q38: IT-SW-07-04 | R38: Mensual por servicios efectivamente prestados | S38: 383900 | T38: 1 | U38: 1 | V38: =SUMIF(ResumenCotizacion!$C:$C,E38,ResumenCotizacion!$P:$P) -> 0 | W38: =IF(H38="USD",S38*SolCotizacion!$J$18,S38) -> 383900 | X38: =ROUND(W38/(1-VLOOKUP("Total porcentaje:",ResumenCotizacion!$F:$H,3,0)),2) -> 398236.51 | Y38: 0
A39: Controles EmpresarialesCANALIT-SW-07-05 | B39: IT-SW-07-05CANAL | D39: Controles Empresariales | E39: IT-SW-07-05 | F39: CANAL | G39: Controles Empresariales | H39: COP | I39: N/A | J39: Instalación de Licencia o Suscripción Anual, o afínes | K39: Unidad | L39: Und | M39: Servicio | N39: Zona 3 | O39: Remoto | P39: Técnico/Tecnólogo ó Profesional | Q39: IT-SW-07-05 | R39: Mensual por servicios efectivamente prestados | S39: 363900 | T39: 1 | U39: 1 | V39: =SUMIF(ResumenCotizacion!$C:$C,E39,ResumenCotizacion!$P:$P) -> 0 | W39: =IF(H39="USD",S39*SolCotizacion!$J$18,S39) -> 363900 | X39: =ROUND(W39/(1-VLOOKUP("Total porcentaje:",ResumenCotizacion!$F:$H,3,0)),2) -> 377489.63 | Y39: 0
A40: Controles EmpresarialesCANALIT-SW-07-06 | B40: IT-SW-07-06CANAL | D40: Controles Empresariales | E40: IT-SW-07-06 | F40: CANAL | G40: Controles Empresariales | H40: COP | I40: N/A | J40: Instalación de Licencia o Suscripción Anual, o afínes | K40: Unidad | L40: Und | M40: Servicio | N40: Zona 3 | O40: Sitio | P40: Técnico/Tecnólogo ó Profesional | Q40: IT-SW-07-06 | R40: Mensual por servicios efectivamente prestados | S40: 431400 | T40: 1 | U40: 1 | V40: =SUMIF(ResumenCotizacion!$C:$C,E40,ResumenCotizacion!$P:$P) -> 0 | W40: =IF(H40="USD",S40*SolCotizacion!$J$18,S40) -> 431400 | X40: =ROUND(W40/(1-VLOOKUP("Total porcentaje:",ResumenCotizacion!$F:$H,3,0)),2) -> 447510.37 | Y40: 0
A41: Controles EmpresarialesCANALIT-SW-08-01 | B41: IT-SW-08-01CANAL | D41: Controles Empresariales | E41: IT-SW-08-01 | F41: CANAL | G41: Controles Empresariales | H41: COP | I41: N/A | J41: Migración de información por volumen de datos almacenados | K41: GB | L41: Und | M41: Servicio | N41: Zona 1 | O41: Remoto | P41: Profesional | Q41: IT-SW-08-01 | R41: Mensual por servicios efectivamente prestados | S41: 100000 | T41: 1 | U41: 1 | V41: =SUMIF(ResumenCotizacion!$C:$C,E41,ResumenCotizacion!$P:$P) -> 0 | W41: =IF(H41="USD",S41*SolCotizacion!$J$18,S41) -> 100000 | X41: =ROUND(W41/(1-VLOOKUP("Total porcentaje:",ResumenCotizacion!$F:$H,3,0)),2) -> 103734.44 | Y41: 0
A42: Controles EmpresarialesCANALIT-SW-08-02 | B42: IT-SW-08-02CANAL | D42: Controles Empresariales | E42: IT-SW-08-02 | F42: CANAL | G42: Controles Empresariales | H42: COP | I42: N/A | J42: Migración de información por volumen de datos almacenados | K42: GB | L42: Und | M42: Servicio | N42: Zona 1 | O42: Sitio | P42: Profesional | Q42: IT-SW-08-02 | R42: Mensual por servicios efectivamente prestados | S42: 105000 | T42: 1 | U42: 1 | V42: =SUMIF(ResumenCotizacion!$C:$C,E42,ResumenCotizacion!$P:$P) -> 0 | W42: =IF(H42="USD",S42*SolCotizacion!$J$18,S42) -> 105000 | X42: =ROUND(W42/(1-VLOOKUP("Total porcentaje:",ResumenCotizacion!$F:$H,3,0)),2) -> 108921.16 | Y42: 0
A43: Controles EmpresarialesCANALIT-SW-08-03 | B43: IT-SW-08-03CANAL | D43: Controles Empresariales | E43: IT-SW-08-03 | F43: CANAL | G43: Controles Empresariales | H43: COP | I43: N/A | J43: Migración de información por volumen de datos almacenados | K43: GB | L43: Und | M43: Servicio | N43: Zona 2 | O43: Remoto | P43: Profesional | Q43: IT-SW-08-03 | R43: Mensual por servicios efectivamente prestados | S43: 100000 | T43: 1 | U43: 1 | V43: =SUMIF(ResumenCotizacion!$C:$C,E43,ResumenCotizacion!$P:$P) -> 0 | W43: =IF(H43="USD",S43*SolCotizacion!$J$18,S43) -> 100000 | X43: =ROUND(W43/(1-VLOOKUP("Total porcentaje:",ResumenCotizacion!$F:$H,3,0)),2) -> 103734.44 | Y43: 0
A44: Controles EmpresarialesCANALIT-SW-08-04 | B44: IT-SW-08-04CANAL | D44: Controles Empresariales | E44: IT-SW-08-04 | F44: CANAL | G44: Controles Empresariales | H44: COP | I44: N/A | J44: Migración de información por volumen de datos almacenados | K44: GB | L44: Und | M44: Servicio | N44: Zona 2 | O44: Sitio | P44: Profesional | Q44: IT-SW-08-04 | R44: Mensual por servicios efectivamente prestados | S44: 112500 | T44: 1 | U44: 1 | V44: =SUMIF(ResumenCotizacion!$C:$C,E44,ResumenCotizacion!$P:$P) -> 0 | W44: =IF(H44="USD",S44*SolCotizacion!$J$18,S44) -> 112500 | X44: =ROUND(W44/(1-VLOOKUP("Total porcentaje:",ResumenCotizacion!$F:$H,3,0)),2) -> 116701.24 | Y44: 0
A45: Controles EmpresarialesCANALIT-SW-08-05 | B45: IT-SW-08-05CANAL | D45: Controles Empresariales | E45: IT-SW-08-05 | F45: CANAL | G45: Controles Empresariales | H45: COP | I45: N/A | J45: Migración de información por volumen de datos almacenados | K45: GB | L45: Und | M45: Servicio | N45: Zona 3 | O45: Remoto | P45: Profesional | Q45: IT-SW-08-05 | R45: Mensual por servicios efectivamente prestados | S45: 100000 | T45: 1 | U45: 1 | V45: =SUMIF(ResumenCotizacion!$C:$C,E45,ResumenCotizacion!$P:$P) -> 0 | W45: =IF(H45="USD",S45*SolCotizacion!$J$18,S45) -> 100000 | X45: =ROUND(W45/(1-VLOOKUP("Total porcentaje:",ResumenCotizacion!$F:$H,3,0)),2) -> 103734.44 | Y45: 0
A46: Controles EmpresarialesCANALIT-SW-08-06 | B46: IT-SW-08-06CANAL | D46: Controles Empresariales | E46: IT-SW-08-06 | F46: CANAL | G46: Controles Empresariales | H46: COP | I46: N/A | J46: Migración de información por volumen de datos almacenados | K46: GB | L46: Und | M46: Servicio | N46: Zona 3 | O46: Sitio | P46: Profesional | Q46: IT-SW-08-06 | R46: Mensual por servicios efectivamente prestados | S46: 125000 | T46: 1 | U46: 1 | V46: =SUMIF(ResumenCotizacion!$C:$C,E46,ResumenCotizacion!$P:$P) -> 0 | W46: =IF(H46="USD",S46*SolCotizacion!$J$18,S46) -> 125000 | X46: =ROUND(W46/(1-VLOOKUP("Total porcentaje:",ResumenCotizacion!$F:$H,3,0)),2) -> 129668.05 | Y46: 0
A47: Controles EmpresarialesCANALIT-SW-09-01 | B47: IT-SW-09-01CANAL | D47: Controles Empresariales | E47: IT-SW-09-01 | F47: CANAL | G47: Controles Empresariales | H47: COP | I47: N/A | J47: Soporte técnico en sitio | K47: Mes | L47: Und | M47: Servicio | N47: Zona 1 | O47: Sitio | P47: Técnico/Tecnólogo ó Profesional | Q47: IT-SW-09-01 | R47: Mensual por servicios efectivamente prestados | S47: 17948571 | T47: 1 | U47: 1 | V47: =SUMIF(ResumenCotizacion!$C:$C,E47,ResumenCotizacion!$P:$P) -> 0 | W47: =IF(H47="USD",S47*SolCotizacion!$J$18,S47) -> 17948571 | X47: =ROUND(W47/(1-VLOOKUP("Total porcentaje:",ResumenCotizacion!$F:$H,3,0)),2) -> 18618849.59 | Y47: 0
A48: Controles EmpresarialesCANALIT-SW-09-02 | B48: IT-SW-09-02CANAL | D48: Controles Empresariales | E48: IT-SW-09-02 | F48: CANAL | G48: Controles Empresariales | H48: COP | I48: N/A | J48: Soporte técnico en sitio | K48: Mes | L48: Und | M48: Servicio | N48: Zona 2 | O48: Sitio | P48: Técnico/Tecnólogo ó Profesional | Q48: IT-SW-09-02 | R48: Mensual por servicios efectivamente prestados | S48: 18848571 | T48: 1 | U48: 1 | V48: =SUMIF(ResumenCotizacion!$C:$C,E48,ResumenCotizacion!$P:$P) -> 0 | W48: =IF(H48="USD",S48*SolCotizacion!$J$18,S48) -> 18848571 | X48: =ROUND(W48/(1-VLOOKUP("Total porcentaje:",ResumenCotizacion!$F:$H,3,0)),2) -> 19552459.54 | Y48: 0
A49: Controles EmpresarialesCANALIT-SW-09-03 | B49: IT-SW-09-03CANAL | D49: Controles Empresariales | E49: IT-SW-09-03 | F49: CANAL | G49: Controles Empresariales | H49: COP | I49: N/A | J49: Soporte técnico en sitio | K49: Mes | L49: Und | M49: Servicio | N49: Zona 3 | O49: Sitio | P49: Técnico/Tecnólogo ó Profesional | Q49: IT-SW-09-03 | R49: Mensual por servicios efectivamente prestados | S49: 19748571 | T49: 1 | U49: 1 | V49: =SUMIF(ResumenCotizacion!$C:$C,E49,ResumenCotizacion!$P:$P) -> 0 | W49: =IF(H49="USD",S49*SolCotizacion!$J$18,S49) -> 19748571 | X49: =ROUND(W49/(1-VLOOKUP("Total porcentaje:",ResumenCotizacion!$F:$H,3,0)),2) -> 20486069.5 | Y49: 0
A50: Controles EmpresarialesCANALIT-SW-10-01 | B50: IT-SW-10-01CANAL | D50: Controles Empresariales | E50: IT-SW-10-01 | F50: CANAL | G50: Controles Empresariales | H50: COP | I50: N/A | J50: Soporte técnico proactivo | K50: Hora | L50: Und | M50: Servicio | N50: Zona 2 | O50: Remoto | P50: Técnico/Tecnólogo ó Profesional | Q50: IT-SW-10-01 | R50: Mensual por servicios efectivamente prestados | S50: 181950 | T50: 1 | U50: 1 | V50: =SUMIF(ResumenCotizacion!$C:$C,E50,ResumenCotizacion!$P:$P) -> 0 | W50: =IF(H50="USD",S50*SolCotizacion!$J$18,S50) -> 181950 | X50: =ROUND(W50/(1-VLOOKUP("Total porcentaje:",ResumenCotizacion!$F:$H,3,0)),2) -> 188744.81 | Y50: 0
A51: Controles EmpresarialesCANALIT-SW-10-02 | B51: IT-SW-10-02CANAL | D51: Controles Empresariales | E51: IT-SW-10-02 | F51: CANAL | G51: Controles Empresariales | H51: COP | I51: N/A | J51: Soporte técnico proactivo | K51: Hora | L51: Und | M51: Servicio | N51: Zona 2 | O51: Sitio | P51: Técnico/Tecnólogo ó Profesional | Q51: IT-SW-10-02 | R51: Mensual por servicios efectivamente prestados | S51: 194450 | T51: 1 | U51: 1 | V51: =SUMIF(ResumenCotizacion!$C:$C,E51,ResumenCotizacion!$P:$P) -> 0 | W51: =IF(H51="USD",S51*SolCotizacion!$J$18,S51) -> 194450 | X51: =ROUND(W51/(1-VLOOKUP("Total porcentaje:",ResumenCotizacion!$F:$H,3,0)),2) -> 201711.62 | Y51: 0
A52: Controles EmpresarialesCANALIT-SW-10-03 | B52: IT-SW-10-03CANAL | D52: Controles Empresariales | E52: IT-SW-10-03 | F52: CANAL | G52: Controles Empresariales | H52: COP | I52: N/A | J52: Soporte técnico proactivo | K52: Hora | L52: Und | M52: Servicio | N52: Zona 1 | O52: Remoto | P52: Técnico/Tecnólogo ó Profesional | Q52: IT-SW-10-03 | R52: Mensual por servicios efectivamente prestados | S52: 181950 | T52: 1 | U52: 1 | V52: =SUMIF(ResumenCotizacion!$C:$C,E52,ResumenCotizacion!$P:$P) -> 0 | W52: =IF(H52="USD",S52*SolCotizacion!$J$18,S52) -> 181950 | X52: =ROUND(W52/(1-VLOOKUP("Total porcentaje:",ResumenCotizacion!$F:$H,3,0)),2) -> 188744.81 | Y52: 0
A53: Controles EmpresarialesCANALIT-SW-10-04 | B53: IT-SW-10-04CANAL | D53: Controles Empresariales | E53: IT-SW-10-04 | F53: CANAL | G53: Controles Empresariales | H53: COP | I53: N/A | J53: Soporte técnico proactivo | K53: Hora | L53: Und | M53: Servicio | N53: Zona 3 | O53: Remoto | P53: Técnico/Tecnólogo ó Profesional | Q53: IT-SW-10-04 | R53: Mensual por servicios efectivamente prestados | S53: 181950 | T53: 1 | U53: 1 | V53: =SUMIF(ResumenCotizacion!$C:$C,E53,ResumenCotizacion!$P:$P) -> 0 | W53: =IF(H53="USD",S53*SolCotizacion!$J$18,S53) -> 181950 | X53: =ROUND(W53/(1-VLOOKUP("Total porcentaje:",ResumenCotizacion!$F:$H,3,0)),2) -> 188744.81 | Y53: 0
A54: Controles EmpresarialesCANALIT-SW-10-05 | B54: IT-SW-10-05CANAL | D54: Controles Empresariales | E54: IT-SW-10-05 | F54: CANAL | G54: Controles Empresariales | H54: COP | I54: N/A | J54: Soporte técnico proactivo | K54: Hora | L54: Und | M54: Servicio | N54: Zona 3 | O54: Sitio | P54: Técnico/Tecnólogo ó Profesional | Q54: IT-SW-10-05 | R54: Mensual por servicios efectivamente prestados | S54: 206950 | T54: 1 | U54: 1 | V54: =SUMIF(ResumenCotizacion!$C:$C,E54,ResumenCotizacion!$P:$P) -> 0 | W54: =IF(H54="USD",S54*SolCotizacion!$J$18,S54) -> 206950 | X54: =ROUND(W54/(1-VLOOKUP("Total porcentaje:",ResumenCotizacion!$F:$H,3,0)),2) -> 214678.42 | Y54: 0
A55: Controles EmpresarialesCANALIT-SW-10-06 | B55: IT-SW-10-06CANAL | D55: Controles Empresariales | E55: IT-SW-10-06 | F55: CANAL | G55: Controles Empresariales | H55: COP | I55: N/A | J55: Soporte técnico proactivo | K55: Hora | L55: Und | M55: Servicio | N55: Zona 1 | O55: Sitio | P55: Técnico/Tecnólogo ó Profesional | Q55: IT-SW-10-06 | R55: Mensual por servicios efectivamente prestados | S55: 186950 | T55: 1 | U55: 1 | V55: =SUMIF(ResumenCotizacion!$C:$C,E55,ResumenCotizacion!$P:$P) -> 0 | W55: =IF(H55="USD",S55*SolCotizacion!$J$18,S55) -> 186950 | X55: =ROUND(W55/(1-VLOOKUP("Total porcentaje:",ResumenCotizacion!$F:$H,3,0)),2) -> 193931.54 | Y55: 0
A56: Controles EmpresarialesCANALIT-SW-11-01 | B56: IT-SW-11-01CANAL | D56: Controles Empresariales | E56: IT-SW-11-01 | F56: CANAL | G56: Controles Empresariales | H56: COP | I56: N/A | J56: Soporte técnico reactivo | K56: Hora | L56: Und | M56: Servicio | N56: Zona 1 | O56: Sitio | P56: Técnico/Tecnólogo ó Profesional | Q56: IT-SW-11-01 | R56: Mensual por servicios efectivamente prestados | S56: 186950 | T56: 1 | U56: 1 | V56: =SUMIF(ResumenCotizacion!$C:$C,E56,ResumenCotizacion!$P:$P) -> 0 | W56: =IF(H56="USD",S56*SolCotizacion!$J$18,S56) -> 186950 | X56: =ROUND(W56/(1-VLOOKUP("Total porcentaje:",ResumenCotizacion!$F:$H,3,0)),2) -> 193931.54 | Y56: 0
A57: Controles EmpresarialesCANALIT-SW-11-02 | B57: IT-SW-11-02CANAL | D57: Controles Empresariales | E57: IT-SW-11-02 | F57: CANAL | G57: Controles Empresariales | H57: COP | I57: N/A | J57: Soporte técnico reactivo | K57: Hora | L57: Und | M57: Servicio | N57: Zona 2 | O57: Remoto | P57: Técnico/Tecnólogo ó Profesional | Q57: IT-SW-11-02 | R57: Mensual por servicios efectivamente prestados | S57: 181950 | T57: 1 | U57: 1 | V57: =SUMIF(ResumenCotizacion!$C:$C,E57,ResumenCotizacion!$P:$P) -> 0 | W57: =IF(H57="USD",S57*SolCotizacion!$J$18,S57) -> 181950 | X57: =ROUND(W57/(1-VLOOKUP("Total porcentaje:",ResumenCotizacion!$F:$H,3,0)),2) -> 188744.81 | Y57: 0
A58: Controles EmpresarialesCANALIT-SW-11-03 | B58: IT-SW-11-03CANAL | D58: Controles Empresariales | E58: IT-SW-11-03 | F58: CANAL | G58: Controles Empresariales | H58: COP | I58: N/A | J58: Soporte técnico reactivo | K58: Hora | L58: Und | M58: Servicio | N58: Zona 2 | O58: Sitio | P58: Técnico/Tecnólogo ó Profesional | Q58: IT-SW-11-03 | R58: Mensual por servicios efectivamente prestados | S58: 194450 | T58: 1 | U58: 1 | V58: =SUMIF(ResumenCotizacion!$C:$C,E58,ResumenCotizacion!$P:$P) -> 0 | W58: =IF(H58="USD",S58*SolCotizacion!$J$18,S58) -> 194450 | X58: =ROUND(W58/(1-VLOOKUP("Total porcentaje:",ResumenCotizacion!$F:$H,3,0)),2) -> 201711.62 | Y58: 0
A59: Controles EmpresarialesCANALIT-SW-11-04 | B59: IT-SW-11-04CANAL | D59: Controles Empresariales | E59: IT-SW-11-04 | F59: CANAL | G59: Controles Empresariales | H59: COP | I59: N/A | J59: Soporte técnico reactivo | K59: Hora | L59: Und | M59: Servicio | N59: Zona 3 | O59: Remoto | P59: Técnico/Tecnólogo ó Profesional | Q59: IT-SW-11-04 | R59: Mensual por servicios efectivamente prestados | S59: 181950 | T59: 1 | U59: 1 | V59: =SUMIF(ResumenCotizacion!$C:$C,E59,ResumenCotizacion!$P:$P) -> 0 | W59: =IF(H59="USD",S59*SolCotizacion!$J$18,S59) -> 181950 | X59: =ROUND(W59/(1-VLOOKUP("Total porcentaje:",ResumenCotizacion!$F:$H,3,0)),2) -> 188744.81 | Y59: 0
A60: Controles EmpresarialesCANALIT-SW-11-05 | B60: IT-SW-11-05CANAL | D60: Controles Empresariales | E60: IT-SW-11-05 | F60: CANAL | G60: Controles Empresariales | H60: COP | I60: N/A | J60: Soporte técnico reactivo | K60: Hora | L60: Und | M60: Servicio | N60: Zona 3 | O60: Sitio | P60: Técnico/Tecnólogo ó Profesional | Q60: IT-SW-11-05 | R60: Mensual por servicios efectivamente prestados | S60: 206950 | T60: 1 | U60: 1 | V60: =SUMIF(ResumenCotizacion!$C:$C,E60,ResumenCotizacion!$P:$P) -> 0 | W60: =IF(H60="USD",S60*SolCotizacion!$J$18,S60) -> 206950 | X60: =ROUND(W60/(1-VLOOKUP("Total porcentaje:",ResumenCotizacion!$F:$H,3,0)),2) -> 214678.42 | Y60: 0
A61: Controles EmpresarialesCANALIT-SW-11-06 | B61: IT-SW-11-06CANAL | D61: Controles Empresariales | E61: IT-SW-11-06 | F61: CANAL | G61: Controles Empresariales | H61: COP | I61: N/A | J61: Soporte técnico reactivo | K61: Hora | L61: Und | M61: Servicio | N61: Zona 1 | O61: Remoto | P61: Técnico/Tecnólogo ó Profesional | Q61: IT-SW-11-06 | R61: Mensual por servicios efectivamente prestados | S61: 181950 | T61: 1 | U61: 1 | V61: =SUMIF(ResumenCotizacion!$C:$C,E61,ResumenCotizacion!$P:$P) -> 0 | W61: =IF(H61="USD",S61*SolCotizacion!$J$18,S61) -> 181950 | X61: =ROUND(W61/(1-VLOOKUP("Total porcentaje:",ResumenCotizacion!$F:$H,3,0)),2) -> 188744.81 | Y61: 0
A62: Soluciones OriónCANALIT-SW-01-01 | B62: IT-SW-01-01CANAL | D62: Soluciones Orión | E62: IT-SW-01-01 | F62: CANAL | G62: Soluciones Orión | H62: COP | I62: N/A | J62: Capacitación para usuario final - hasta 10 Personas. | K62: Por sesión de capacitación de 4 horas para un grupo de hasta 10 personas. | L62: Und | M62: Servicio | N62: Zona 1 | O62: Remoto | P62: Capacitador | Q62: IT-SW-01-01 | R62: Mensual por servicios efectivamente prestados | S62: 750000 | T62: 1 | U62: 1 | V62: =SUMIF(ResumenCotizacion!$C:$C,E62,ResumenCotizacion!$P:$P) -> 0 | W62: =IF(H62="USD",S62*SolCotizacion!$J$18,S62) -> 750000 | X62: =ROUND(W62/(1-VLOOKUP("Total porcentaje:",ResumenCotizacion!$F:$H,3,0)),2) -> 778008.3 | Y62: 0
A63: Soluciones OriónCANALIT-SW-01-02 | B63: IT-SW-01-02CANAL | D63: Soluciones Orión | E63: IT-SW-01-02 | F63: CANAL | G63: Soluciones Orión | H63: COP | I63: N/A | J63: Capacitación para usuario final - hasta 10 Personas. | K63: Por sesión de capacitación de 4 horas para un grupo de hasta 10 personas. | L63: Und | M63: Servicio | N63: Zona 1 | O63: Sitio | P63: Capacitador | Q63: IT-SW-01-02 | R63: Mensual por servicios efectivamente prestados | S63: 1500000 | T63: 1 | U63: 1 | V63: =SUMIF(ResumenCotizacion!$C:$C,E63,ResumenCotizacion!$P:$P) -> 0 | W63: =IF(H63="USD",S63*SolCotizacion!$J$18,S63) -> 1500000 | X63: =ROUND(W63/(1-VLOOKUP("Total porcentaje:",ResumenCotizacion!$F:$H,3,0)),2) -> 1556016.6 | Y63: 0
A64: Soluciones OriónCANALIT-SW-01-03 | B64: IT-SW-01-03CANAL | D64: Soluciones Orión | E64: IT-SW-01-03 | F64: CANAL | G64: Soluciones Orión | H64: COP | I64: N/A | J64: Capacitación para usuario final - hasta 10 Personas. | K64: Por sesión de capacitación de 4 horas para un grupo de hasta 10 personas. | L64: Und | M64: Servicio | N64: Zona 2 | O64: Remoto | P64: Capacitador | Q64: IT-SW-01-03 | R64: Mensual por servicios efectivamente prestados | S64: 900000 | T64: 1 | U64: 1 | V64: =SUMIF(ResumenCotizacion!$C:$C,E64,ResumenCotizacion!$P:$P) -> 0 | W64: =IF(H64="USD",S64*SolCotizacion!$J$18,S64) -> 900000 | X64: =ROUND(W64/(1-VLOOKUP("Total porcentaje:",ResumenCotizacion!$F:$H,3,0)),2) -> 933609.96 | Y64: 0
A65: Soluciones OriónCANALIT-SW-01-04 | B65: IT-SW-01-04CANAL | D65: Soluciones Orión | E65: IT-SW-01-04 | F65: CANAL | G65: Soluciones Orión | H65: COP | I65: N/A | J65: Capacitación para usuario final - hasta 10 Personas. | K65: Por sesión de capacitación de 4 horas para un grupo de hasta 10 personas. | L65: Und | M65: Servicio | N65: Zona 2 | O65: Sitio | P65: Capacitador | Q65: IT-SW-01-04 | R65: Mensual por servicios efectivamente prestados | S65: 1800000 | T65: 1 | U65: 1 | V65: =SUMIF(ResumenCotizacion!$C:$C,E65,ResumenCotizacion!$P:$P) -> 0 | W65: =IF(H65="USD",S65*SolCotizacion!$J$18,S65) -> 1800000 | X65: =ROUND(W65/(1-VLOOKUP("Total porcentaje:",ResumenCotizacion!$F:$H,3,0)),2) -> 1867219.92 | Y65: 0
A66: Soluciones OriónCANALIT-SW-01-05 | B66: IT-SW-01-05CANAL | D66: Soluciones Orión | E66: IT-SW-01-05 | F66: CANAL | G66: Soluciones Orión | H66: COP | I66: N/A | J66: Capacitación para usuario final - hasta 10 Personas. | K66: Por sesión de capacitación de 4 horas para un grupo de hasta 10 personas. | L66: Und | M66: Servicio | N66: Zona 3 | O66: Remoto | P66: Capacitador | Q66: IT-SW-01-05 | R66: Mensual por servicios efectivamente prestados | S66: 1080000 | T66: 1 | U66: 1 | V66: =SUMIF(ResumenCotizacion!$C:$C,E66,ResumenCotizacion!$P:$P) -> 0 | W66: =IF(H66="USD",S66*SolCotizacion!$J$18,S66) -> 1080000 | X66: =ROUND(W66/(1-VLOOKUP("Total porcentaje:",ResumenCotizacion!$F:$H,3,0)),2) -> 1120331.95 | Y66: 0
A67: =D67&F67&E67 -> Soluciones OriónCANALIT-SW-01-06 | B67: =E67&F67 -> IT-SW-01-06CANAL | D67: Soluciones Orión | E67: IT-SW-01-06 | F67: CANAL | G67: =D67 -> Soluciones Orión | H67: COP | I67: N/A | J67: Capacitación para usuario final - hasta 10 Personas. | K67: Por sesión de capacitación de 4 horas para un grupo de hasta 10 personas. | L67: Und | M67: Servicio | N67: Zona 3 | O67: Sitio | P67: Capacitador | Q67: IT-SW-01-06 | R67: Mensual por servicios efectivamente prestados | S67: 2160000 | T67: 1 | U67: 1 | V67: =SUMIF(ResumenCotizacion!$C:$C,E67,ResumenCotizacion!$P:$P) -> 0 | W67: =IF(H67="USD",S67*SolCotizacion!$J$18,S67) -> 2160000 | X67: =ROUND(W67/(1-VLOOKUP("Total porcentaje:",ResumenCotizacion!$F:$H,3,0)),2) -> 2240663.9 | Y67: =V67*X67 -> 0
A68: Soluciones OriónCANALIT-SW-02-01 | B68: IT-SW-02-01CANAL | D68: Soluciones Orión | E68: IT-SW-02-01 | F68: CANAL | G68: Soluciones Orión | H68: COP | I68: N/A | J68: Capacitación para usuario final hasta 20 Personas. | K68: Por sesión de capacitación de 4 horas para un grupo de hasta 20 personas. | L68: Und | M68: Servicio | N68: Zona 1 | O68: Remoto | P68: Capacitador | Q68: IT-SW-02-01 | R68: Mensual por servicios efectivamente prestados | S68: 862500 | T68: 1 | U68: 1 | V68: =SUMIF(ResumenCotizacion!$C:$C,E68,ResumenCotizacion!$P:$P) -> 0 | W68: =IF(H68="USD",S68*SolCotizacion!$J$18,S68) -> 862500 | X68: =ROUND(W68/(1-VLOOKUP("Total porcentaje:",ResumenCotizacion!$F:$H,3,0)),2) -> 894709.54 | Y68: 0
A69: Soluciones OriónCANALIT-SW-02-02 | B69: IT-SW-02-02CANAL | D69: Soluciones Orión | E69: IT-SW-02-02 | F69: CANAL | G69: Soluciones Orión | H69: COP | I69: N/A | J69: Capacitación para usuario final hasta 20 Personas. | K69: Por sesión de capacitación de 4 horas para un grupo de hasta 20 personas. | L69: Und | M69: Servicio | N69: Zona 1 | O69: Sitio | P69: Capacitador | Q69: IT-SW-02-02 | R69: Mensual por servicios efectivamente prestados | S69: 1725000 | T69: 1 | U69: 1 | V69: =SUMIF(ResumenCotizacion!$C:$C,E69,ResumenCotizacion!$P:$P) -> 0 | W69: =IF(H69="USD",S69*SolCotizacion!$J$18,S69) -> 1725000 | X69: =ROUND(W69/(1-VLOOKUP("Total porcentaje:",ResumenCotizacion!$F:$H,3,0)),2) -> 1789419.09 | Y69: 0
A70: Soluciones OriónCANALIT-SW-02-03 | B70: IT-SW-02-03CANAL | D70: Soluciones Orión | E70: IT-SW-02-03 | F70: CANAL | G70: Soluciones Orión | H70: COP | I70: N/A | J70: Capacitación para usuario final hasta 20 Personas. | K70: Por sesión de capacitación de 4 horas para un grupo de hasta 20 personas. | L70: Und | M70: Servicio | N70: Zona 2 | O70: Remoto | P70: Capacitador | Q70: IT-SW-02-03 | R70: Mensual por servicios efectivamente prestados | S70: 1035000 | T70: 1 | U70: 1 | V70: =SUMIF(ResumenCotizacion!$C:$C,E70,ResumenCotizacion!$P:$P) -> 0 | W70: =IF(H70="USD",S70*SolCotizacion!$J$18,S70) -> 1035000 | X70: =ROUND(W70/(1-VLOOKUP("Total porcentaje:",ResumenCotizacion!$F:$H,3,0)),2) -> 1073651.45 | Y70: 0
A71: Soluciones OriónCANALIT-SW-02-04 | B71: IT-SW-02-04CANAL | D71: Soluciones Orión | E71: IT-SW-02-04 | F71: CANAL | G71: Soluciones Orión | H71: COP | I71: N/A | J71: Capacitación para usuario final hasta 20 Personas. | K71: Por sesión de capacitación de 4 horas para un grupo de hasta 20 personas. | L71: Und | M71: Servicio | N71: Zona 2 | O71: Sitio | P71: Capacitador | Q71: IT-SW-02-04 | R71: Mensual por servicios efectivamente prestados | S71: 2070000 | T71: 1 | U71: 1 | V71: =SUMIF(ResumenCotizacion!$C:$C,E71,ResumenCotizacion!$P:$P) -> 0 | W71: =IF(H71="USD",S71*SolCotizacion!$J$18,S71) -> 2070000 | X71: =ROUND(W71/(1-VLOOKUP("Total porcentaje:",ResumenCotizacion!$F:$H,3,0)),2) -> 2147302.9 | Y71: 0
A72: Soluciones OriónCANALIT-SW-02-05 | B72: IT-SW-02-05CANAL | D72: Soluciones Orión | E72: IT-SW-02-05 | F72: CANAL | G72: Soluciones Orión | H72: COP | I72: N/A | J72: Capacitación para usuario final hasta 20 Personas. | K72: Por sesión de capacitación de 4 horas para un grupo de hasta 20 personas. | L72: Und | M72: Servicio | N72: Zona 3 | O72: Remoto | P72: Capacitador | Q72: IT-SW-02-05 | R72: Mensual por servicios efectivamente prestados | S72: 1242000 | T72: 1 | U72: 1 | V72: =SUMIF(ResumenCotizacion!$C:$C,E72,ResumenCotizacion!$P:$P) -> 0 | W72: =IF(H72="USD",S72*SolCotizacion!$J$18,S72) -> 1242000 | X72: =ROUND(W72/(1-VLOOKUP("Total porcentaje:",ResumenCotizacion!$F:$H,3,0)),2) -> 1288381.74 | Y72: 0
A73: Soluciones OriónCANALIT-SW-02-06 | B73: IT-SW-02-06CANAL | D73: Soluciones Orión | E73: IT-SW-02-06 | F73: CANAL | G73: Soluciones Orión | H73: COP | I73: N/A | J73: Capacitación para usuario final hasta 20 Personas. | K73: Por sesión de capacitación de 4 horas para un grupo de hasta 20 personas. | L73: Und | M73: Servicio | N73: Zona 3 | O73: Sitio | P73: Capacitador | Q73: IT-SW-02-06 | R73: Mensual por servicios efectivamente prestados | S73: 2484000 | T73: 1 | U73: 1 | V73: =SUMIF(ResumenCotizacion!$C:$C,E73,ResumenCotizacion!$P:$P) -> 0 | W73: =IF(H73="USD",S73*SolCotizacion!$J$18,S73) -> 2484000 | X73: =ROUND(W73/(1-VLOOKUP("Total porcentaje:",ResumenCotizacion!$F:$H,3,0)),2) -> 2576763.49 | Y73: 0
A74: Soluciones OriónCANALIT-SW-03-01 | B74: IT-SW-03-01CANAL | D74: Soluciones Orión | E74: IT-SW-03-01 | F74: CANAL | G74: Soluciones Orión | H74: COP | I74: N/A | J74: Capacitación para usuario técnico o administrador - hasta 10 Personas. | K74: Por sesión de capacitación de 4 horas para un grupo de hasta 10 personas. | L74: Und | M74: Servicio | N74: Zona 1 | O74: Remoto | P74: Capacitador | Q74: IT-SW-03-01 | R74: Mensual por servicios efectivamente prestados | S74: 862500 | T74: 1 | U74: 1 | V74: =SUMIF(ResumenCotizacion!$C:$C,E74,ResumenCotizacion!$P:$P) -> 0 | W74: =IF(H74="USD",S74*SolCotizacion!$J$18,S74) -> 862500 | X74: =ROUND(W74/(1-VLOOKUP("Total porcentaje:",ResumenCotizacion!$F:$H,3,0)),2) -> 894709.54 | Y74: 0
A75: Soluciones OriónCANALIT-SW-03-02 | B75: IT-SW-03-02CANAL | D75: Soluciones Orión | E75: IT-SW-03-02 | F75: CANAL | G75: Soluciones Orión | H75: COP | I75: N/A | J75: Capacitación para usuario técnico o administrador - hasta 10 Personas. | K75: Por sesión de capacitación de 4 horas para un grupo de hasta 10 personas. | L75: Und | M75: Servicio | N75: Zona 1 | O75: Sitio | P75: Capacitador | Q75: IT-SW-03-02 | R75: Mensual por servicios efectivamente prestados | S75: 1725000 | T75: 1 | U75: 1 | V75: =SUMIF(ResumenCotizacion!$C:$C,E75,ResumenCotizacion!$P:$P) -> 0 | W75: =IF(H75="USD",S75*SolCotizacion!$J$18,S75) -> 1725000 | X75: =ROUND(W75/(1-VLOOKUP("Total porcentaje:",ResumenCotizacion!$F:$H,3,0)),2) -> 1789419.09 | Y75: 0
A76: Soluciones OriónCANALIT-SW-03-03 | B76: IT-SW-03-03CANAL | D76: Soluciones Orión | E76: IT-SW-03-03 | F76: CANAL | G76: Soluciones Orión | H76: COP | I76: N/A | J76: Capacitación para usuario técnico o administrador - hasta 10 Personas. | K76: Por sesión de capacitación de 4 horas para un grupo de hasta 10 personas. | L76: Und | M76: Servicio | N76: Zona 2 | O76: Remoto | P76: Capacitador | Q76: IT-SW-03-03 | R76: Mensual por servicios efectivamente prestados | S76: 1035000 | T76: 1 | U76: 1 | V76: =SUMIF(ResumenCotizacion!$C:$C,E76,ResumenCotizacion!$P:$P) -> 0 | W76: =IF(H76="USD",S76*SolCotizacion!$J$18,S76) -> 1035000 | X76: =ROUND(W76/(1-VLOOKUP("Total porcentaje:",ResumenCotizacion!$F:$H,3,0)),2) -> 1073651.45 | Y76: 0
A77: Soluciones OriónCANALIT-SW-03-04 | B77: IT-SW-03-04CANAL | D77: Soluciones Orión | E77: IT-SW-03-04 | F77: CANAL | G77: Soluciones Orión | H77: COP | I77: N/A | J77: Capacitación para usuario técnico o administrador - hasta 10 Personas. | K77: Por sesión de capacitación de 4 horas para un grupo de hasta 10 personas. | L77: Und | M77: Servicio | N77: Zona 2 | O77: Sitio | P77: Capacitador | Q77: IT-SW-03-04 | R77: Mensual por servicios efectivamente prestados | S77: 2070000 | T77: 1 | U77: 1 | V77: =SUMIF(ResumenCotizacion!$C:$C,E77,ResumenCotizacion!$P:$P) -> 0 | W77: =IF(H77="USD",S77*SolCotizacion!$J$18,S77) -> 2070000 | X77: =ROUND(W77/(1-VLOOKUP("Total porcentaje:",ResumenCotizacion!$F:$H,3,0)),2) -> 2147302.9 | Y77: 0
A78: Soluciones OriónCANALIT-SW-03-05 | B78: IT-SW-03-05CANAL | D78: Soluciones Orión | E78: IT-SW-03-05 | F78: CANAL | G78: Soluciones Orión | H78: COP | I78: N/A | J78: Capacitación para usuario técnico o administrador - hasta 10 Personas. | K78: Por sesión de capacitación de 4 horas para un grupo de hasta 10 personas. | L78: Und | M78: Servicio | N78: Zona 3 | O78: Remoto | P78: Capacitador | Q78: IT-SW-03-05 | R78: Mensual por servicios efectivamente prestados | S78: 1242000 | T78: 1 | U78: 1 | V78: =SUMIF(ResumenCotizacion!$C:$C,E78,ResumenCotizacion!$P:$P) -> 0 | W78: =IF(H78="USD",S78*SolCotizacion!$J$18,S78) -> 1242000 | X78: =ROUND(W78/(1-VLOOKUP("Total porcentaje:",ResumenCotizacion!$F:$H,3,0)),2) -> 1288381.74 | Y78: 0
A79: Soluciones OriónCANALIT-SW-03-06 | B79: IT-SW-03-06CANAL | D79: Soluciones Orión | E79: IT-SW-03-06 | F79: CANAL | G79: Soluciones Orión | H79: COP | I79: N/A | J79: Capacitación para usuario técnico o administrador - hasta 10 Personas. | K79: Por sesión de capacitación de 4 horas para un grupo de hasta 10 personas. | L79: Und | M79: Servicio | N79: Zona 3 | O79: Sitio | P79: Capacitador | Q79: IT-SW-03-06 | R79: Mensual por servicios efectivamente prestados | S79: 2484000 | T79: 1 | U79: 1 | V79: =SUMIF(ResumenCotizacion!$C:$C,E79,ResumenCotizacion!$P:$P) -> 0 | W79: =IF(H79="USD",S79*SolCotizacion!$J$18,S79) -> 2484000 | X79: =ROUND(W79/(1-VLOOKUP("Total porcentaje:",ResumenCotizacion!$F:$H,3,0)),2) -> 2576763.49 | Y79: 0
A80: Soluciones OriónCANALIT-SW-04-01 | B80: IT-SW-04-01CANAL | D80: Soluciones Orión | E80: IT-SW-04-01 | F80: CANAL | G80: Soluciones Orión | H80: COP | I80: N/A | J80: Capacitación para usuario técnico o administrador hasta 20 Personas. | K80: Por sesión de capacitación de 4 horas para un grupo de hasta 20 personas. | L80: Und | M80: Servicio | N80: Zona 1 | O80: Remoto | P80: Capacitador | Q80: IT-SW-04-01 | R80: Mensual por servicios efectivamente prestados | S80: 991875 | T80: 1 | U80: 1 | V80: =SUMIF(ResumenCotizacion!$C:$C,E80,ResumenCotizacion!$P:$P) -> 0 | W80: =IF(H80="USD",S80*SolCotizacion!$J$18,S80) -> 991875 | X80: =ROUND(W80/(1-VLOOKUP("Total porcentaje:",ResumenCotizacion!$F:$H,3,0)),2) -> 1028915.98 | Y80: 0
A81: Soluciones OriónCANALIT-SW-04-02 | B81: IT-SW-04-02CANAL | D81: Soluciones Orión | E81: IT-SW-04-02 | F81: CANAL | G81: Soluciones Orión | H81: COP | I81: N/A | J81: Capacitación para usuario técnico o administrador hasta 20 Personas. | K81: Por sesión de capacitación de 4 horas para un grupo de hasta 20 personas. | L81: Und | M81: Servicio | N81: Zona 1 | O81: Sitio | P81: Capacitador | Q81: IT-SW-04-02 | R81: Mensual por servicios efectivamente prestados | S81: 1983750 | T81: 1 | U81: 1 | V81: =SUMIF(ResumenCotizacion!$C:$C,E81,ResumenCotizacion!$P:$P) -> 0 | W81: =IF(H81="USD",S81*SolCotizacion!$J$18,S81) -> 1983750 | X81: =ROUND(W81/(1-VLOOKUP("Total porcentaje:",ResumenCotizacion!$F:$H,3,0)),2) -> 2057831.95 | Y81: 0
A82: Soluciones OriónCANALIT-SW-04-03 | B82: IT-SW-04-03CANAL | D82: Soluciones Orión | E82: IT-SW-04-03 | F82: CANAL | G82: Soluciones Orión | H82: COP | I82: N/A | J82: Capacitación para usuario técnico o administrador hasta 20 Personas. | K82: Por sesión de capacitación de 4 horas para un grupo de hasta 20 personas. | L82: Und | M82: Servicio | N82: Zona 2 | O82: Remoto | P82: Capacitador | Q82: IT-SW-04-03 | R82: Mensual por servicios efectivamente prestados | S82: 1190250 | T82: 1 | U82: 1 | V82: =SUMIF(ResumenCotizacion!$C:$C,E82,ResumenCotizacion!$P:$P) -> 0 | W82: =IF(H82="USD",S82*SolCotizacion!$J$18,S82) -> 1190250 | X82: =ROUND(W82/(1-VLOOKUP("Total porcentaje:",ResumenCotizacion!$F:$H,3,0)),2) -> 1234699.17 | Y82: 0
A83: Soluciones OriónCANALIT-SW-04-04 | B83: IT-SW-04-04CANAL | D83: Soluciones Orión | E83: IT-SW-04-04 | F83: CANAL | G83: Soluciones Orión | H83: COP | I83: N/A | J83: Capacitación para usuario técnico o administrador hasta 20 Personas. | K83: Por sesión de capacitación de 4 horas para un grupo de hasta 20 personas. | L83: Und | M83: Servicio | N83: Zona 2 | O83: Sitio | P83: Capacitador | Q83: IT-SW-04-04 | R83: Mensual por servicios efectivamente prestados | S83: 2380500 | T83: 1 | U83: 1 | V83: =SUMIF(ResumenCotizacion!$C:$C,E83,ResumenCotizacion!$P:$P) -> 0 | W83: =IF(H83="USD",S83*SolCotizacion!$J$18,S83) -> 2380500 | X83: =ROUND(W83/(1-VLOOKUP("Total porcentaje:",ResumenCotizacion!$F:$H,3,0)),2) -> 2469398.34 | Y83: 0
A84: Soluciones OriónCANALIT-SW-04-05 | B84: IT-SW-04-05CANAL | D84: Soluciones Orión | E84: IT-SW-04-05 | F84: CANAL | G84: Soluciones Orión | H84: COP | I84: N/A | J84: Capacitación para usuario técnico o administrador hasta 20 Personas. | K84: Por sesión de capacitación de 4 horas para un grupo de hasta 20 personas. | L84: Und | M84: Servicio | N84: Zona 3 | O84: Remoto | P84: Capacitador | Q84: IT-SW-04-05 | R84: Mensual por servicios efectivamente prestados | S84: 1428300 | T84: 1 | U84: 1 | V84: =SUMIF(ResumenCotizacion!$C:$C,E84,ResumenCotizacion!$P:$P) -> 0 | W84: =IF(H84="USD",S84*SolCotizacion!$J$18,S84) -> 1428300 | X84: =ROUND(W84/(1-VLOOKUP("Total porcentaje:",ResumenCotizacion!$F:$H,3,0)),2) -> 1481639 | Y84: 0
A85: Soluciones OriónCANALIT-SW-04-06 | B85: IT-SW-04-06CANAL | D85: Soluciones Orión | E85: IT-SW-04-06 | F85: CANAL | G85: Soluciones Orión | H85: COP | I85: N/A | J85: Capacitación para usuario técnico o administrador hasta 20 Personas. | K85: Por sesión de capacitación de 4 horas para un grupo de hasta 20 personas. | L85: Und | M85: Servicio | N85: Zona 3 | O85: Sitio | P85: Capacitador | Q85: IT-SW-04-06 | R85: Mensual por servicios efectivamente prestados | S85: 2856600 | T85: 1 | U85: 1 | V85: =SUMIF(ResumenCotizacion!$C:$C,E85,ResumenCotizacion!$P:$P) -> 0 | W85: =IF(H85="USD",S85*SolCotizacion!$J$18,S85) -> 2856600 | X85: =ROUND(W85/(1-VLOOKUP("Total porcentaje:",ResumenCotizacion!$F:$H,3,0)),2) -> 2963278.01 | Y85: 0
A86: Soluciones OriónCANALIT-SW-05-01 | B86: IT-SW-05-01CANAL | D86: Soluciones Orión | E86: IT-SW-05-01 | F86: CANAL | G86: Soluciones Orión | H86: COP | I86: N/A | J86: Configuración y parametrización de los Productos | K86: Hora | L86: Und | M86: Servicio | N86: Zona 1 | O86: Remoto | P86: Profesional | Q86: IT-SW-05-01 | R86: Mensual por servicios efectivamente prestados | S86: 250000 | T86: 1 | U86: 1 | V86: =SUMIF(ResumenCotizacion!$C:$C,E86,ResumenCotizacion!$P:$P) -> 0 | W86: =IF(H86="USD",S86*SolCotizacion!$J$18,S86) -> 250000 | X86: =ROUND(W86/(1-VLOOKUP("Total porcentaje:",ResumenCotizacion!$F:$H,3,0)),2) -> 259336.1 | Y86: 0
A87: Soluciones OriónCANALIT-SW-05-02 | B87: IT-SW-05-02CANAL | D87: Soluciones Orión | E87: IT-SW-05-02 | F87: CANAL | G87: Soluciones Orión | H87: COP | I87: N/A | J87: Configuración y parametrización de los Productos | K87: Hora | L87: Und | M87: Servicio | N87: Zona 1 | O87: Sitio | P87: Profesional | Q87: IT-SW-05-02 | R87: Mensual por servicios efectivamente prestados | S87: 500000 | T87: 1 | U87: 1 | V87: =SUMIF(ResumenCotizacion!$C:$C,E87,ResumenCotizacion!$P:$P) -> 0 | W87: =IF(H87="USD",S87*SolCotizacion!$J$18,S87) -> 500000 | X87: =ROUND(W87/(1-VLOOKUP("Total porcentaje:",ResumenCotizacion!$F:$H,3,0)),2) -> 518672.2 | Y87: 0
A88: Soluciones OriónCANALIT-SW-05-03 | B88: IT-SW-05-03CANAL | D88: Soluciones Orión | E88: IT-SW-05-03 | F88: CANAL | G88: Soluciones Orión | H88: COP | I88: N/A | J88: Configuración y parametrización de los Productos | K88: Hora | L88: Und | M88: Servicio | N88: Zona 2 | O88: Remoto | P88: Profesional | Q88: IT-SW-05-03 | R88: Mensual por servicios efectivamente prestados | S88: 300000 | T88: 1 | U88: 1 | V88: =SUMIF(ResumenCotizacion!$C:$C,E88,ResumenCotizacion!$P:$P) -> 0 | W88: =IF(H88="USD",S88*SolCotizacion!$J$18,S88) -> 300000 | X88: =ROUND(W88/(1-VLOOKUP("Total porcentaje:",ResumenCotizacion!$F:$H,3,0)),2) -> 311203.32 | Y88: 0
A89: Soluciones OriónCANALIT-SW-05-04 | B89: IT-SW-05-04CANAL | D89: Soluciones Orión | E89: IT-SW-05-04 | F89: CANAL | G89: Soluciones Orión | H89: COP | I89: N/A | J89: Configuración y parametrización de los Productos | K89: Hora | L89: Und | M89: Servicio | N89: Zona 2 | O89: Sitio | P89: Profesional | Q89: IT-SW-05-04 | R89: Mensual por servicios efectivamente prestados | S89: 600000 | T89: 1 | U89: 1 | V89: =SUMIF(ResumenCotizacion!$C:$C,E89,ResumenCotizacion!$P:$P) -> 0 | W89: =IF(H89="USD",S89*SolCotizacion!$J$18,S89) -> 600000 | X89: =ROUND(W89/(1-VLOOKUP("Total porcentaje:",ResumenCotizacion!$F:$H,3,0)),2) -> 622406.64 | Y89: 0
A90: Soluciones OriónCANALIT-SW-05-05 | B90: IT-SW-05-05CANAL | D90: Soluciones Orión | E90: IT-SW-05-05 | F90: CANAL | G90: Soluciones Orión | H90: COP | I90: N/A | J90: Configuración y parametrización de los Productos | K90: Hora | L90: Und | M90: Servicio | N90: Zona 3 | O90: Remoto | P90: Profesional | Q90: IT-SW-05-05 | R90: Mensual por servicios efectivamente prestados | S90: 300000 | T90: 1 | U90: 1 | V90: =SUMIF(ResumenCotizacion!$C:$C,E90,ResumenCotizacion!$P:$P) -> 0 | W90: =IF(H90="USD",S90*SolCotizacion!$J$18,S90) -> 300000 | X90: =ROUND(W90/(1-VLOOKUP("Total porcentaje:",ResumenCotizacion!$F:$H,3,0)),2) -> 311203.32 | Y90: 0
A91: Soluciones OriónCANALIT-SW-05-06 | B91: IT-SW-05-06CANAL | D91: Soluciones Orión | E91: IT-SW-05-06 | F91: CANAL | G91: Soluciones Orión | H91: COP | I91: N/A | J91: Configuración y parametrización de los Productos | K91: Hora | L91: Und | M91: Servicio | N91: Zona 3 | O91: Sitio | P91: Profesional | Q91: IT-SW-05-06 | R91: Mensual por servicios efectivamente prestados | S91: 600000 | T91: 1 | U91: 1 | V91: =SUMIF(ResumenCotizacion!$C:$C,E91,ResumenCotizacion!$P:$P) -> 0 | W91: =IF(H91="USD",S91*SolCotizacion!$J$18,S91) -> 600000 | X91: =ROUND(W91/(1-VLOOKUP("Total porcentaje:",ResumenCotizacion!$F:$H,3,0)),2) -> 622406.64 | Y91: 0
A92: Soluciones OriónCANALIT-SW-06-01 | B92: IT-SW-06-01CANAL | D92: Soluciones Orión | E92: IT-SW-06-01 | F92: CANAL | G92: Soluciones Orión | H92: COP | I92: N/A | J92: Gerente de cuenta (soporte) | K92: Mes | L92: Und | M92: Servicio | N92: Zona 1 | O92: Sitio | P92: Profesional | Q92: IT-SW-06-01 | R92: Mensual por servicios efectivamente prestados | S92: 11250000 | T92: 1 | U92: 1 | V92: =SUMIF(ResumenCotizacion!$C:$C,E92,ResumenCotizacion!$P:$P) -> 0 | W92: =IF(H92="USD",S92*SolCotizacion!$J$18,S92) -> 11250000 | X92: =ROUND(W92/(1-VLOOKUP("Total porcentaje:",ResumenCotizacion!$F:$H,3,0)),2) -> 11670124.48 | Y92: 0
A93: Soluciones OriónCANALIT-SW-06-02 | B93: IT-SW-06-02CANAL | D93: Soluciones Orión | E93: IT-SW-06-02 | F93: CANAL | G93: Soluciones Orión | H93: COP | I93: N/A | J93: Gerente de cuenta (soporte) | K93: Mes | L93: Und | M93: Servicio | N93: Zona 2 | O93: Sitio | P93: Profesional | Q93: IT-SW-06-02 | R93: Mensual por servicios efectivamente prestados | S93: 14625000 | T93: 1 | U93: 1 | V93: =SUMIF(ResumenCotizacion!$C:$C,E93,ResumenCotizacion!$P:$P) -> 0 | W93: =IF(H93="USD",S93*SolCotizacion!$J$18,S93) -> 14625000 | X93: =ROUND(W93/(1-VLOOKUP("Total porcentaje:",ResumenCotizacion!$F:$H,3,0)),2) -> 15171161.83 | Y93: 0
A94: Soluciones OriónCANALIT-SW-06-03 | B94: IT-SW-06-03CANAL | D94: Soluciones Orión | E94: IT-SW-06-03 | F94: CANAL | G94: Soluciones Orión | H94: COP | I94: N/A | J94: Gerente de cuenta (soporte) | K94: Mes | L94: Und | M94: Servicio | N94: Zona 3 | O94: Sitio | P94: Profesional | Q94: IT-SW-06-03 | R94: Mensual por servicios efectivamente prestados | S94: 19012500 | T94: 1 | U94: 1 | V94: =SUMIF(ResumenCotizacion!$C:$C,E94,ResumenCotizacion!$P:$P) -> 0 | W94: =IF(H94="USD",S94*SolCotizacion!$J$18,S94) -> 19012500 | X94: =ROUND(W94/(1-VLOOKUP("Total porcentaje:",ResumenCotizacion!$F:$H,3,0)),2) -> 19722510.37 | Y94: 0
A95: Soluciones OriónCANALIT-SW-07-01 | B95: IT-SW-07-01CANAL | D95: Soluciones Orión | E95: IT-SW-07-01 | F95: CANAL | G95: Soluciones Orión | H95: COP | I95: N/A | J95: Instalación de Licencia o Suscripción Anual, o afínes | K95: Unidad | L95: Und | M95: Servicio | N95: Zona 1 | O95: Remoto | P95: Técnico/Tecnólogo ó Profesional | Q95: IT-SW-07-01 | R95: Mensual por servicios efectivamente prestados | S95: 250000 | T95: 1 | U95: 1 | V95: =SUMIF(ResumenCotizacion!$C:$C,E95,ResumenCotizacion!$P:$P) -> 0 | W95: =IF(H95="USD",S95*SolCotizacion!$J$18,S95) -> 250000 | X95: =ROUND(W95/(1-VLOOKUP("Total porcentaje:",ResumenCotizacion!$F:$H,3,0)),2) -> 259336.1 | Y95: 0
A96: Soluciones OriónCANALIT-SW-07-02 | B96: IT-SW-07-02CANAL | D96: Soluciones Orión | E96: IT-SW-07-02 | F96: CANAL | G96: Soluciones Orión | H96: COP | I96: N/A | J96: Instalación de Licencia o Suscripción Anual, o afínes | K96: Unidad | L96: Und | M96: Servicio | N96: Zona 1 | O96: Sitio | P96: Técnico/Tecnólogo ó Profesional | Q96: IT-SW-07-02 | R96: Mensual por servicios efectivamente prestados | S96: 375000 | T96: 1 | U96: 1 | V96: =SUMIF(ResumenCotizacion!$C:$C,E96,ResumenCotizacion!$P:$P) -> 0 | W96: =IF(H96="USD",S96*SolCotizacion!$J$18,S96) -> 375000 | X96: =ROUND(W96/(1-VLOOKUP("Total porcentaje:",ResumenCotizacion!$F:$H,3,0)),2) -> 389004.15 | Y96: 0
A97: Soluciones OriónCANALIT-SW-07-03 | B97: IT-SW-07-03CANAL | D97: Soluciones Orión | E97: IT-SW-07-03 | F97: CANAL | G97: Soluciones Orión | H97: COP | I97: N/A | J97: Instalación de Licencia o Suscripción Anual, o afínes | K97: Unidad | L97: Und | M97: Servicio | N97: Zona 2 | O97: Remoto | P97: Técnico/Tecnólogo ó Profesional | Q97: IT-SW-07-03 | R97: Mensual por servicios efectivamente prestados | S97: 287500 | T97: 1 | U97: 1 | V97: =SUMIF(ResumenCotizacion!$C:$C,E97,ResumenCotizacion!$P:$P) -> 0 | W97: =IF(H97="USD",S97*SolCotizacion!$J$18,S97) -> 287500 | X97: =ROUND(W97/(1-VLOOKUP("Total porcentaje:",ResumenCotizacion!$F:$H,3,0)),2) -> 298236.51 | Y97: 0
A98: Soluciones OriónCANALIT-SW-07-04 | B98: IT-SW-07-04CANAL | D98: Soluciones Orión | E98: IT-SW-07-04 | F98: CANAL | G98: Soluciones Orión | H98: COP | I98: N/A | J98: Instalación de Licencia o Suscripción Anual, o afínes | K98: Unidad | L98: Und | M98: Servicio | N98: Zona 2 | O98: Sitio | P98: Técnico/Tecnólogo ó Profesional | Q98: IT-SW-07-04 | R98: Mensual por servicios efectivamente prestados | S98: 431250 | T98: 1 | U98: 1 | V98: =SUMIF(ResumenCotizacion!$C:$C,E98,ResumenCotizacion!$P:$P) -> 0 | W98: =IF(H98="USD",S98*SolCotizacion!$J$18,S98) -> 431250 | X98: =ROUND(W98/(1-VLOOKUP("Total porcentaje:",ResumenCotizacion!$F:$H,3,0)),2) -> 447354.77 | Y98: 0
A99: Soluciones OriónCANALIT-SW-07-05 | B99: IT-SW-07-05CANAL | D99: Soluciones Orión | E99: IT-SW-07-05 | F99: CANAL | G99: Soluciones Orión | H99: COP | I99: N/A | J99: Instalación de Licencia o Suscripción Anual, o afínes | K99: Unidad | L99: Und | M99: Servicio | N99: Zona 3 | O99: Remoto | P99: Técnico/Tecnólogo ó Profesional | Q99: IT-SW-07-05 | R99: Mensual por servicios efectivamente prestados | S99: 330625 | T99: 1 | U99: 1 | V99: =SUMIF(ResumenCotizacion!$C:$C,E99,ResumenCotizacion!$P:$P) -> 0 | W99: =IF(H99="USD",S99*SolCotizacion!$J$18,S99) -> 330625 | X99: =ROUND(W99/(1-VLOOKUP("Total porcentaje:",ResumenCotizacion!$F:$H,3,0)),2) -> 342971.99 | Y99: 0
A100: Soluciones OriónCANALIT-SW-07-06 | B100: IT-SW-07-06CANAL | D100: Soluciones Orión | E100: IT-SW-07-06 | F100: CANAL | G100: Soluciones Orión | H100: COP | I100: N/A | J100: Instalación de Licencia o Suscripción Anual, o afínes | K100: Unidad | L100: Und | M100: Servicio | N100: Zona 3 | O100: Sitio | P100: Técnico/Tecnólogo ó Profesional | Q100: IT-SW-07-06 | R100: Mensual por servicios efectivamente prestados | S100: 495937.5 | T100: 1 | U100: 1 | V100: =SUMIF(ResumenCotizacion!$C:$C,E100,ResumenCotizacion!$P:$P) -> 0 | W100: =IF(H100="USD",S100*SolCotizacion!$J$18,S100) -> 495937.5 | X100: =ROUND(W100/(1-VLOOKUP("Total porcentaje:",ResumenCotizacion!$F:$H,3,0)),2) -> 514457.99 | Y100: 0
A101: Soluciones OriónCANALIT-SW-08-01 | B101: IT-SW-08-01CANAL | D101: Soluciones Orión | E101: IT-SW-08-01 | F101: CANAL | G101: Soluciones Orión | H101: COP | I101: N/A | J101: Migración de información por volumen de datos almacenados | K101: GB | L101: Und | M101: Servicio | N101: Zona 1 | O101: Remoto | P101: Profesional | Q101: IT-SW-08-01 | R101: Mensual por servicios efectivamente prestados | S101: 37500 | T101: 1 | U101: 1 | V101: =SUMIF(ResumenCotizacion!$C:$C,E101,ResumenCotizacion!$P:$P) -> 0 | W101: =IF(H101="USD",S101*SolCotizacion!$J$18,S101) -> 37500 | X101: =ROUND(W101/(1-VLOOKUP("Total porcentaje:",ResumenCotizacion!$F:$H,3,0)),2) -> 38900.41 | Y101: 0
A102: Soluciones OriónCANALIT-SW-08-02 | B102: IT-SW-08-02CANAL | D102: Soluciones Orión | E102: IT-SW-08-02 | F102: CANAL | G102: Soluciones Orión | H102: COP | I102: N/A | J102: Migración de información por volumen de datos almacenados | K102: GB | L102: Und | M102: Servicio | N102: Zona 1 | O102: Sitio | P102: Profesional | Q102: IT-SW-08-02 | R102: Mensual por servicios efectivamente prestados | S102: 56250 | T102: 1 | U102: 1 | V102: =SUMIF(ResumenCotizacion!$C:$C,E102,ResumenCotizacion!$P:$P) -> 0 | W102: =IF(H102="USD",S102*SolCotizacion!$J$18,S102) -> 56250 | X102: =ROUND(W102/(1-VLOOKUP("Total porcentaje:",ResumenCotizacion!$F:$H,3,0)),2) -> 58350.62 | Y102: 0
A103: Soluciones OriónCANALIT-SW-08-03 | B103: IT-SW-08-03CANAL | D103: Soluciones Orión | E103: IT-SW-08-03 | F103: CANAL | G103: Soluciones Orión | H103: COP | I103: N/A | J103: Migración de información por volumen de datos almacenados | K103: GB | L103: Und | M103: Servicio | N103: Zona 2 | O103: Remoto | P103: Profesional | Q103: IT-SW-08-03 | R103: Mensual por servicios efectivamente prestados | S103: 64687.5 | T103: 1 | U103: 1 | V103: =SUMIF(ResumenCotizacion!$C:$C,E103,ResumenCotizacion!$P:$P) -> 0 | W103: =IF(H103="USD",S103*SolCotizacion!$J$18,S103) -> 64687.5 | X103: =ROUND(W103/(1-VLOOKUP("Total porcentaje:",ResumenCotizacion!$F:$H,3,0)),2) -> 67103.22 | Y103: 0
A104: Soluciones OriónCANALIT-SW-08-04 | B104: IT-SW-08-04CANAL | D104: Soluciones Orión | E104: IT-SW-08-04 | F104: CANAL | G104: Soluciones Orión | H104: COP | I104: N/A | J104: Migración de información por volumen de datos almacenados | K104: GB | L104: Und | M104: Servicio | N104: Zona 2 | O104: Sitio | P104: Profesional | Q104: IT-SW-08-04 | R104: Mensual por servicios efectivamente prestados | S104: 74390.625 | T104: 1 | U104: 1 | V104: =SUMIF(ResumenCotizacion!$C:$C,E104,ResumenCotizacion!$P:$P) -> 0 | W104: =IF(H104="USD",S104*SolCotizacion!$J$18,S104) -> 74390.625 | X104: =ROUND(W104/(1-VLOOKUP("Total porcentaje:",ResumenCotizacion!$F:$H,3,0)),2) -> 77168.7 | Y104: 0
A105: Soluciones OriónCANALIT-SW-08-05 | B105: IT-SW-08-05CANAL | D105: Soluciones Orión | E105: IT-SW-08-05 | F105: CANAL | G105: Soluciones Orión | H105: COP | I105: N/A | J105: Migración de información por volumen de datos almacenados | K105: GB | L105: Und | M105: Servicio | N105: Zona 3 | O105: Remoto | P105: Profesional | Q105: IT-SW-08-05 | R105: Mensual por servicios efectivamente prestados | S105: 85549.21875 | T105: 1 | U105: 1 | V105: =SUMIF(ResumenCotizacion!$C:$C,E105,ResumenCotizacion!$P:$P) -> 0 | W105: =IF(H105="USD",S105*SolCotizacion!$J$18,S105) -> 85549.21875 | X105: =ROUND(W105/(1-VLOOKUP("Total porcentaje:",ResumenCotizacion!$F:$H,3,0)),2) -> 88744 | Y105: 0
A106: Soluciones OriónCANALIT-SW-08-06 | B106: IT-SW-08-06CANAL | D106: Soluciones Orión | E106: IT-SW-08-06 | F106: CANAL | G106: Soluciones Orión | H106: COP | I106: N/A | J106: Migración de información por volumen de datos almacenados | K106: GB | L106: Und | M106: Servicio | N106: Zona 3 | O106: Sitio | P106: Profesional | Q106: IT-SW-08-06 | R106: Mensual por servicios efectivamente prestados | S106: 98381.60156 | T106: 1 | U106: 1 | V106: =SUMIF(ResumenCotizacion!$C:$C,E106,ResumenCotizacion!$P:$P) -> 0 | W106: =IF(H106="USD",S106*SolCotizacion!$J$18,S106) -> 98381.60156 | X106: =ROUND(W106/(1-VLOOKUP("Total porcentaje:",ResumenCotizacion!$F:$H,3,0)),2) -> 102055.6 | Y106: 0
A107: Soluciones OriónCANALIT-SW-09-01 | B107: IT-SW-09-01CANAL | D107: Soluciones Orión | E107: IT-SW-09-01 | F107: CANAL | G107: Soluciones Orión | H107: COP | I107: N/A | J107: Soporte técnico en sitio | K107: Mes | L107: Und | M107: Servicio | N107: Zona 1 | O107: Sitio | P107: Técnico/Tecnólogo ó Profesional | Q107: IT-SW-09-01 | R107: Mensual por servicios efectivamente prestados | S107: 8750000 | T107: 1 | U107: 1 | V107: =SUMIF(ResumenCotizacion!$C:$C,E107,ResumenCotizacion!$P:$P) -> 0 | W107: =IF(H107="USD",S107*SolCotizacion!$J$18,S107) -> 8750000 | X107: =ROUND(W107/(1-VLOOKUP("Total porcentaje:",ResumenCotizacion!$F:$H,3,0)),2) -> 9076763.49 | Y107: 0
A108: Soluciones OriónCANALIT-SW-09-02 | B108: IT-SW-09-02CANAL | D108: Soluciones Orión | E108: IT-SW-09-02 | F108: CANAL | G108: Soluciones Orión | H108: COP | I108: N/A | J108: Soporte técnico en sitio | K108: Mes | L108: Und | M108: Servicio | N108: Zona 2 | O108: Sitio | P108: Técnico/Tecnólogo ó Profesional | Q108: IT-SW-09-02 | R108: Mensual por servicios efectivamente prestados | S108: 13125000 | T108: 1 | U108: 1 | V108: =SUMIF(ResumenCotizacion!$C:$C,E108,ResumenCotizacion!$P:$P) -> 0 | W108: =IF(H108="USD",S108*SolCotizacion!$J$18,S108) -> 13125000 | X108: =ROUND(W108/(1-VLOOKUP("Total porcentaje:",ResumenCotizacion!$F:$H,3,0)),2) -> 13615145.23 | Y108: 0
A109: Soluciones OriónCANALIT-SW-09-03 | B109: IT-SW-09-03CANAL | D109: Soluciones Orión | E109: IT-SW-09-03 | F109: CANAL | G109: Soluciones Orión | H109: COP | I109: N/A | J109: Soporte técnico en sitio | K109: Mes | L109: Und | M109: Servicio | N109: Zona 3 | O109: Sitio | P109: Técnico/Tecnólogo ó Profesional | Q109: IT-SW-09-03 | R109: Mensual por servicios efectivamente prestados | S109: 15093750 | T109: 1 | U109: 1 | V109: =SUMIF(ResumenCotizacion!$C:$C,E109,ResumenCotizacion!$P:$P) -> 0 | W109: =IF(H109="USD",S109*SolCotizacion!$J$18,S109) -> 15093750 | X109: =ROUND(W109/(1-VLOOKUP("Total porcentaje:",ResumenCotizacion!$F:$H,3,0)),2) -> 15657417.01 | Y109: 0
A110: Soluciones OriónCANALIT-SW-10-01 | B110: IT-SW-10-01CANAL | D110: Soluciones Orión | E110: IT-SW-10-01 | F110: CANAL | G110: Soluciones Orión | H110: COP | I110: N/A | J110: Soporte técnico proactivo | K110: Hora | L110: Und | M110: Servicio | N110: Zona 2 | O110: Remoto | P110: Técnico/Tecnólogo ó Profesional | Q110: IT-SW-10-01 | R110: Mensual por servicios efectivamente prestados | S110: 300000 | T110: 1 | U110: 1 | V110: =SUMIF(ResumenCotizacion!$C:$C,E110,ResumenCotizacion!$P:$P) -> 0 | W110: =IF(H110="USD",S110*SolCotizacion!$J$18,S110) -> 300000 | X110: =ROUND(W110/(1-VLOOKUP("Total porcentaje:",ResumenCotizacion!$F:$H,3,0)),2) -> 311203.32 | Y110: 0
A111: Soluciones OriónCANALIT-SW-10-02 | B111: IT-SW-10-02CANAL | D111: Soluciones Orión | E111: IT-SW-10-02 | F111: CANAL | G111: Soluciones Orión | H111: COP | I111: N/A | J111: Soporte técnico proactivo | K111: Hora | L111: Und | M111: Servicio | N111: Zona 2 | O111: Sitio | P111: Técnico/Tecnólogo ó Profesional | Q111: IT-SW-10-02 | R111: Mensual por servicios efectivamente prestados | S111: 600000 | T111: 1 | U111: 1 | V111: =SUMIF(ResumenCotizacion!$C:$C,E111,ResumenCotizacion!$P:$P) -> 0 | W111: =IF(H111="USD",S111*SolCotizacion!$J$18,S111) -> 600000 | X111: =ROUND(W111/(1-VLOOKUP("Total porcentaje:",ResumenCotizacion!$F:$H,3,0)),2) -> 622406.64 | Y111: 0
A112: Soluciones OriónCANALIT-SW-10-03 | B112: IT-SW-10-03CANAL | D112: Soluciones Orión | E112: IT-SW-10-03 | F112: CANAL | G112: Soluciones Orión | H112: COP | I112: N/A | J112: Soporte técnico proactivo | K112: Hora | L112: Und | M112: Servicio | N112: Zona 1 | O112: Remoto | P112: Técnico/Tecnólogo ó Profesional | Q112: IT-SW-10-03 | R112: Mensual por servicios efectivamente prestados | S112: 250000 | T112: 1 | U112: 1 | V112: =SUMIF(ResumenCotizacion!$C:$C,E112,ResumenCotizacion!$P:$P) -> 0 | W112: =IF(H112="USD",S112*SolCotizacion!$J$18,S112) -> 250000 | X112: =ROUND(W112/(1-VLOOKUP("Total porcentaje:",ResumenCotizacion!$F:$H,3,0)),2) -> 259336.1 | Y112: 0
A113: Soluciones OriónCANALIT-SW-10-04 | B113: IT-SW-10-04CANAL | D113: Soluciones Orión | E113: IT-SW-10-04 | F113: CANAL | G113: Soluciones Orión | H113: COP | I113: N/A | J113: Soporte técnico proactivo | K113: Hora | L113: Und | M113: Servicio | N113: Zona 3 | O113: Remoto | P113: Técnico/Tecnólogo ó Profesional | Q113: IT-SW-10-04 | R113: Mensual por servicios efectivamente prestados | S113: 300000 | T113: 1 | U113: 1 | V113: =SUMIF(ResumenCotizacion!$C:$C,E113,ResumenCotizacion!$P:$P) -> 0 | W113: =IF(H113="USD",S113*SolCotizacion!$J$18,S113) -> 300000 | X113: =ROUND(W113/(1-VLOOKUP("Total porcentaje:",ResumenCotizacion!$F:$H,3,0)),2) -> 311203.32 | Y113: 0
A114: Soluciones OriónCANALIT-SW-10-05 | B114: IT-SW-10-05CANAL | D114: Soluciones Orión | E114: IT-SW-10-05 | F114: CANAL | G114: Soluciones Orión | H114: COP | I114: N/A | J114: Soporte técnico proactivo | K114: Hora | L114: Und | M114: Servicio | N114: Zona 3 | O114: Sitio | P114: Técnico/Tecnólogo ó Profesional | Q114: IT-SW-10-05 | R114: Mensual por servicios efectivamente prestados | S114: 600000 | T114: 1 | U114: 1 | V114: =SUMIF(ResumenCotizacion!$C:$C,E114,ResumenCotizacion!$P:$P) -> 0 | W114: =IF(H114="USD",S114*SolCotizacion!$J$18,S114) -> 600000 | X114: =ROUND(W114/(1-VLOOKUP("Total porcentaje:",ResumenCotizacion!$F:$H,3,0)),2) -> 622406.64 | Y114: 0
A115: Soluciones OriónCANALIT-SW-10-06 | B115: IT-SW-10-06CANAL | D115: Soluciones Orión | E115: IT-SW-10-06 | F115: CANAL | G115: Soluciones Orión | H115: COP | I115: N/A | J115: Soporte técnico proactivo | K115: Hora | L115: Und | M115: Servicio | N115: Zona 1 | O115: Sitio | P115: Técnico/Tecnólogo ó Profesional | Q115: IT-SW-10-06 | R115: Mensual por servicios efectivamente prestados | S115: 500000 | T115: 1 | U115: 1 | V115: =SUMIF(ResumenCotizacion!$C:$C,E115,ResumenCotizacion!$P:$P) -> 0 | W115: =IF(H115="USD",S115*SolCotizacion!$J$18,S115) -> 500000 | X115: =ROUND(W115/(1-VLOOKUP("Total porcentaje:",ResumenCotizacion!$F:$H,3,0)),2) -> 518672.2 | Y115: 0
A116: Soluciones OriónCANALIT-SW-11-01 | B116: IT-SW-11-01CANAL | D116: Soluciones Orión | E116: IT-SW-11-01 | F116: CANAL | G116: Soluciones Orión | H116: COP | I116: N/A | J116: Soporte técnico reactivo | K116: Hora | L116: Und | M116: Servicio | N116: Zona 1 | O116: Sitio | P116: Técnico/Tecnólogo ó Profesional | Q116: IT-SW-11-01 | R116: Mensual por servicios efectivamente prestados | S116: 500000 | T116: 1 | U116: 1 | V116: =SUMIF(ResumenCotizacion!$C:$C,E116,ResumenCotizacion!$P:$P) -> 0 | W116: =IF(H116="USD",S116*SolCotizacion!$J$18,S116) -> 500000 | X116: =ROUND(W116/(1-VLOOKUP("Total porcentaje:",ResumenCotizacion!$F:$H,3,0)),2) -> 518672.2 | Y116: 0
A117: Soluciones OriónCANALIT-SW-11-02 | B117: IT-SW-11-02CANAL | D117: Soluciones Orión | E117: IT-SW-11-02 | F117: CANAL | G117: Soluciones Orión | H117: COP | I117: N/A | J117: Soporte técnico reactivo | K117: Hora | L117: Und | M117: Servicio | N117: Zona 2 | O117: Remoto | P117: Técnico/Tecnólogo ó Profesional | Q117: IT-SW-11-02 | R117: Mensual por servicios efectivamente prestados | S117: 300000 | T117: 1 | U117: 1 | V117: =SUMIF(ResumenCotizacion!$C:$C,E117,ResumenCotizacion!$P:$P) -> 0 | W117: =IF(H117="USD",S117*SolCotizacion!$J$18,S117) -> 300000 | X117: =ROUND(W117/(1-VLOOKUP("Total porcentaje:",ResumenCotizacion!$F:$H,3,0)),2) -> 311203.32 | Y117: 0
A118: Soluciones OriónCANALIT-SW-11-03 | B118: IT-SW-11-03CANAL | D118: Soluciones Orión | E118: IT-SW-11-03 | F118: CANAL | G118: Soluciones Orión | H118: COP | I118: N/A | J118: Soporte técnico reactivo | K118: Hora | L118: Und | M118: Servicio | N118: Zona 2 | O118: Sitio | P118: Técnico/Tecnólogo ó Profesional | Q118: IT-SW-11-03 | R118: Mensual por servicios efectivamente prestados | S118: 600000 | T118: 1 | U118: 1 | V118: =SUMIF(ResumenCotizacion!$C:$C,E118,ResumenCotizacion!$P:$P) -> 0 | W118: =IF(H118="USD",S118*SolCotizacion!$J$18,S118) -> 600000 | X118: =ROUND(W118/(1-VLOOKUP("Total porcentaje:",ResumenCotizacion!$F:$H,3,0)),2) -> 622406.64 | Y118: 0
A119: Soluciones OriónCANALIT-SW-11-04 | B119: IT-SW-11-04CANAL | D119: Soluciones Orión | E119: IT-SW-11-04 | F119: CANAL | G119: Soluciones Orión | H119: COP | I119: N/A | J119: Soporte técnico reactivo | K119: Hora | L119: Und | M119: Servicio | N119: Zona 3 | O119: Remoto | P119: Técnico/Tecnólogo ó Profesional | Q119: IT-SW-11-04 | R119: Mensual por servicios efectivamente prestados | S119: 300000 | T119: 1 | U119: 1 | V119: =SUMIF(ResumenCotizacion!$C:$C,E119,ResumenCotizacion!$P:$P) -> 0 | W119: =IF(H119="USD",S119*SolCotizacion!$J$18,S119) -> 300000 | X119: =ROUND(W119/(1-VLOOKUP("Total porcentaje:",ResumenCotizacion!$F:$H,3,0)),2) -> 311203.32 | Y119: 0
A120: Soluciones OriónCANALIT-SW-11-05 | B120: IT-SW-11-05CANAL | D120: Soluciones Orión | E120: IT-SW-11-05 | F120: CANAL | G120: Soluciones Orión | H120: COP | I120: N/A | J120: Soporte técnico reactivo | K120: Hora | L120: Und | M120: Servicio | N120: Zona 3 | O120: Sitio | P120: Técnico/Tecnólogo ó Profesional | Q120: IT-SW-11-05 | R120: Mensual por servicios efectivamente prestados | S120: 600000 | T120: 1 | U120: 1 | V120: =SUMIF(ResumenCotizacion!$C:$C,E120,ResumenCotizacion!$P:$P) -> 0 | W120: =IF(H120="USD",S120*SolCotizacion!$J$18,S120) -> 600000 | X120: =ROUND(W120/(1-VLOOKUP("Total porcentaje:",ResumenCotizacion!$F:$H,3,0)),2) -> 622406.64 | Y120: 0
A121: Soluciones OriónCANALIT-SW-11-06 | B121: IT-SW-11-06CANAL | D121: Soluciones Orión | E121: IT-SW-11-06 | F121: CANAL | G121: Soluciones Orión | H121: COP | I121: N/A | J121: Soporte técnico reactivo | K121: Hora | L121: Und | M121: Servicio | N121: Zona 1 | O121: Remoto | P121: Técnico/Tecnólogo ó Profesional | Q121: IT-SW-11-06 | R121: Mensual por servicios efectivamente prestados | S121: 250000 | T121: 1 | U121: 1 | V121: =SUMIF(ResumenCotizacion!$C:$C,E121,ResumenCotizacion!$P:$P) -> 0 | W121: =IF(H121="USD",S121*SolCotizacion!$J$18,S121) -> 250000 | X121: =ROUND(W121/(1-VLOOKUP("Total porcentaje:",ResumenCotizacion!$F:$H,3,0)),2) -> 259336.1 | Y121: 0
A122: ColsofCANALIT-SW-01-01 | B122: IT-SW-01-01CANAL | D122: Colsof | E122: IT-SW-01-01 | F122: CANAL | G122: Colsof | H122: COP | I122: N/A | J122: Capacitación para usuario final - hasta 10 Personas. | K122: Por sesión de capacitación de 4 horas para un grupo de hasta 10 personas. | L122: Und | M122: Servicio | N122: Zona 1 | O122: Remoto | P122: Capacitador | Q122: IT-SW-01-01 | R122: Mensual por servicios efectivamente prestados | S122: 600000 | T122: 1 | U122: 1 | V122: =SUMIF(ResumenCotizacion!$C:$C,E122,ResumenCotizacion!$P:$P) -> 0 | W122: =IF(H122="USD",S122*SolCotizacion!$J$18,S122) -> 600000 | X122: =ROUND(W122/(1-VLOOKUP("Total porcentaje:",ResumenCotizacion!$F:$H,3,0)),2) -> 622406.64 | Y122: 0
A123: ColsofCANALIT-SW-01-02 | B123: IT-SW-01-02CANAL | D123: Colsof | E123: IT-SW-01-02 | F123: CANAL | G123: Colsof | H123: COP | I123: N/A | J123: Capacitación para usuario final - hasta 10 Personas. | K123: Por sesión de capacitación de 4 horas para un grupo de hasta 10 personas. | L123: Und | M123: Servicio | N123: Zona 1 | O123: Sitio | P123: Capacitador | Q123: IT-SW-01-02 | R123: Mensual por servicios efectivamente prestados | S123: 720000 | T123: 1 | U123: 1 | V123: =SUMIF(ResumenCotizacion!$C:$C,E123,ResumenCotizacion!$P:$P) -> 0 | W123: =IF(H123="USD",S123*SolCotizacion!$J$18,S123) -> 720000 | X123: =ROUND(W123/(1-VLOOKUP("Total porcentaje:",ResumenCotizacion!$F:$H,3,0)),2) -> 746887.97 | Y123: 0
A124: ColsofCANALIT-SW-01-03 | B124: IT-SW-01-03CANAL | D124: Colsof | E124: IT-SW-01-03 | F124: CANAL | G124: Colsof | H124: COP | I124: N/A | J124: Capacitación para usuario final - hasta 10 Personas. | K124: Por sesión de capacitación de 4 horas para un grupo de hasta 10 personas. | L124: Und | M124: Servicio | N124: Zona 2 | O124: Remoto | P124: Capacitador | Q124: IT-SW-01-03 | R124: Mensual por servicios efectivamente prestados | S124: 810000 | T124: 1 | U124: 1 | V124: =SUMIF(ResumenCotizacion!$C:$C,E124,ResumenCotizacion!$P:$P) -> 0 | W124: =IF(H124="USD",S124*SolCotizacion!$J$18,S124) -> 810000 | X124: =ROUND(W124/(1-VLOOKUP("Total porcentaje:",ResumenCotizacion!$F:$H,3,0)),2) -> 840248.96 | Y124: 0
A125: ColsofCANALIT-SW-01-04 | B125: IT-SW-01-04CANAL | D125: Colsof | E125: IT-SW-01-04 | F125: CANAL | G125: Colsof | H125: COP | I125: N/A | J125: Capacitación para usuario final - hasta 10 Personas. | K125: Por sesión de capacitación de 4 horas para un grupo de hasta 10 personas. | L125: Und | M125: Servicio | N125: Zona 2 | O125: Sitio | P125: Capacitador | Q125: IT-SW-01-04 | R125: Mensual por servicios efectivamente prestados | S125: 972000 | T125: 1 | U125: 1 | V125: =SUMIF(ResumenCotizacion!$C:$C,E125,ResumenCotizacion!$P:$P) -> 0 | W125: =IF(H125="USD",S125*SolCotizacion!$J$18,S125) -> 972000 | X125: =ROUND(W125/(1-VLOOKUP("Total porcentaje:",ResumenCotizacion!$F:$H,3,0)),2) -> 1008298.76 | Y125: 0
A126: ColsofCANALIT-SW-01-05 | B126: IT-SW-01-05CANAL | D126: Colsof | E126: IT-SW-01-05 | F126: CANAL | G126: Colsof | H126: COP | I126: N/A | J126: Capacitación para usuario final - hasta 10 Personas. | K126: Por sesión de capacitación de 4 horas para un grupo de hasta 10 personas. | L126: Und | M126: Servicio | N126: Zona 3 | O126: Remoto | P126: Capacitador | Q126: IT-SW-01-05 | R126: Mensual por servicios efectivamente prestados | S126: 1080000 | T126: 1 | U126: 1 | V126: =SUMIF(ResumenCotizacion!$C:$C,E126,ResumenCotizacion!$P:$P) -> 0 | W126: =IF(H126="USD",S126*SolCotizacion!$J$18,S126) -> 1080000 | X126: =ROUND(W126/(1-VLOOKUP("Total porcentaje:",ResumenCotizacion!$F:$H,3,0)),2) -> 1120331.95 | Y126: 0
A127: ColsofCANALIT-SW-01-06 | B127: IT-SW-01-06CANAL | D127: Colsof | E127: IT-SW-01-06 | F127: CANAL | G127: Colsof | H127: COP | I127: N/A | J127: Capacitación para usuario final - hasta 10 Personas. | K127: Por sesión de capacitación de 4 horas para un grupo de hasta 10 personas. | L127: Und | M127: Servicio | N127: Zona 3 | O127: Sitio | P127: Capacitador | Q127: IT-SW-01-06 | R127: Mensual por servicios efectivamente prestados | S127: 1296000 | T127: 1 | U127: 1 | V127: =SUMIF(ResumenCotizacion!$C:$C,E127,ResumenCotizacion!$P:$P) -> 0 | W127: =IF(H127="USD",S127*SolCotizacion!$J$18,S127) -> 1296000 | X127: =ROUND(W127/(1-VLOOKUP("Total porcentaje:",ResumenCotizacion!$F:$H,3,0)),2) -> 1344398.34 | Y127: 0
A128: ColsofCANALIT-SW-02-01 | B128: IT-SW-02-01CANAL | D128: Colsof | E128: IT-SW-02-01 | F128: CANAL | G128: Colsof | H128: COP | I128: N/A | J128: Capacitación para usuario final hasta 20 Personas. | K128: Por sesión de capacitación de 4 horas para un grupo de hasta 20 personas. | L128: Und | M128: Servicio | N128: Zona 1 | O128: Remoto | P128: Capacitador | Q128: IT-SW-02-01 | R128: Mensual por servicios efectivamente prestados | S128: 750000 | T128: 1 | U128: 1 | V128: =SUMIF(ResumenCotizacion!$C:$C,E128,ResumenCotizacion!$P:$P) -> 0 | W128: =IF(H128="USD",S128*SolCotizacion!$J$18,S128) -> 750000 | X128: =ROUND(W128/(1-VLOOKUP("Total porcentaje:",ResumenCotizacion!$F:$H,3,0)),2) -> 778008.3 | Y128: 0
A129: ColsofCANALIT-SW-02-02 | B129: IT-SW-02-02CANAL | D129: Colsof | E129: IT-SW-02-02 | F129: CANAL | G129: Colsof | H129: COP | I129: N/A | J129: Capacitación para usuario final hasta 20 Personas. | K129: Por sesión de capacitación de 4 horas para un grupo de hasta 20 personas. | L129: Und | M129: Servicio | N129: Zona 1 | O129: Sitio | P129: Capacitador | Q129: IT-SW-02-02 | R129: Mensual por servicios efectivamente prestados | S129: 1080000 | T129: 1 | U129: 1 | V129: =SUMIF(ResumenCotizacion!$C:$C,E129,ResumenCotizacion!$P:$P) -> 0 | W129: =IF(H129="USD",S129*SolCotizacion!$J$18,S129) -> 1080000 | X129: =ROUND(W129/(1-VLOOKUP("Total porcentaje:",ResumenCotizacion!$F:$H,3,0)),2) -> 1120331.95 | Y129: 0
A130: ColsofCANALIT-SW-02-03 | B130: IT-SW-02-03CANAL | D130: Colsof | E130: IT-SW-02-03 | F130: CANAL | G130: Colsof | H130: COP | I130: N/A | J130: Capacitación para usuario final hasta 20 Personas. | K130: Por sesión de capacitación de 4 horas para un grupo de hasta 20 personas. | L130: Und | M130: Servicio | N130: Zona 2 | O130: Remoto | P130: Capacitador | Q130: IT-SW-02-03 | R130: Mensual por servicios efectivamente prestados | S130: 1012500 | T130: 1 | U130: 1 | V130: =SUMIF(ResumenCotizacion!$C:$C,E130,ResumenCotizacion!$P:$P) -> 0 | W130: =IF(H130="USD",S130*SolCotizacion!$J$18,S130) -> 1012500 | X130: =ROUND(W130/(1-VLOOKUP("Total porcentaje:",ResumenCotizacion!$F:$H,3,0)),2) -> 1050311.2 | Y130: 0
A131: =D131&F131&E131 -> ColsofCANALIT-SW-02-04 | B131: =E131&F131 -> IT-SW-02-04CANAL | D131: Colsof | E131: IT-SW-02-04 | F131: CANAL | G131: =D131 -> Colsof | H131: COP | I131: N/A | J131: Capacitación para usuario final hasta 20 Personas. | K131: Por sesión de capacitación de 4 horas para un grupo de hasta 20 personas. | L131: Und | M131: Servicio | N131: Zona 2 | O131: Sitio | P131: Capacitador | Q131: IT-SW-02-04 | R131: Mensual por servicios efectivamente prestados | S131: 1458000 | T131: 1 | U131: 1 | V131: =SUMIF(ResumenCotizacion!$C:$C,E131,ResumenCotizacion!$P:$P) -> 0 | W131: =IF(H131="USD",S131*SolCotizacion!$J$18,S131) -> 1458000 | X131: =ROUND(W131/(1-VLOOKUP("Total porcentaje:",ResumenCotizacion!$F:$H,3,0)),2) -> 1512448.13 | Y131: =V131*X131 -> 0
A132: ColsofCANALIT-SW-02-05 | B132: IT-SW-02-05CANAL | D132: Colsof | E132: IT-SW-02-05 | F132: CANAL | G132: Colsof | H132: COP | I132: N/A | J132: Capacitación para usuario final hasta 20 Personas. | K132: Por sesión de capacitación de 4 horas para un grupo de hasta 20 personas. | L132: Und | M132: Servicio | N132: Zona 3 | O132: Remoto | P132: Capacitador | Q132: IT-SW-02-05 | R132: Mensual por servicios efectivamente prestados | S132: 1350000 | T132: 1 | U132: 1 | V132: =SUMIF(ResumenCotizacion!$C:$C,E132,ResumenCotizacion!$P:$P) -> 0 | W132: =IF(H132="USD",S132*SolCotizacion!$J$18,S132) -> 1350000 | X132: =ROUND(W132/(1-VLOOKUP("Total porcentaje:",ResumenCotizacion!$F:$H,3,0)),2) -> 1400414.94 | Y132: 0
A133: ColsofCANALIT-SW-02-06 | B133: IT-SW-02-06CANAL | D133: Colsof | E133: IT-SW-02-06 | F133: CANAL | G133: Colsof | H133: COP | I133: N/A | J133: Capacitación para usuario final hasta 20 Personas. | K133: Por sesión de capacitación de 4 horas para un grupo de hasta 20 personas. | L133: Und | M133: Servicio | N133: Zona 3 | O133: Sitio | P133: Capacitador | Q133: IT-SW-02-06 | R133: Mensual por servicios efectivamente prestados | S133: 1944000 | T133: 1 | U133: 1 | V133: =SUMIF(ResumenCotizacion!$C:$C,E133,ResumenCotizacion!$P:$P) -> 0 | W133: =IF(H133="USD",S133*SolCotizacion!$J$18,S133) -> 1944000 | X133: =ROUND(W133/(1-VLOOKUP("Total porcentaje:",ResumenCotizacion!$F:$H,3,0)),2) -> 2016597.51 | Y133: 0
A134: ColsofCANALIT-SW-03-01 | B134: IT-SW-03-01CANAL | D134: Colsof | E134: IT-SW-03-01 | F134: CANAL | G134: Colsof | H134: COP | I134: N/A | J134: Capacitación para usuario técnico o administrador - hasta 10 Personas. | K134: Por sesión de capacitación de 4 horas para un grupo de hasta 10 personas. | L134: Und | M134: Servicio | N134: Zona 1 | O134: Remoto | P134: Capacitador | Q134: IT-SW-03-01 | R134: Mensual por servicios efectivamente prestados | S134: 810000 | T134: 1 | U134: 1 | V134: =SUMIF(ResumenCotizacion!$C:$C,E134,ResumenCotizacion!$P:$P) -> 0 | W134: =IF(H134="USD",S134*SolCotizacion!$J$18,S134) -> 810000 | X134: =ROUND(W134/(1-VLOOKUP("Total porcentaje:",ResumenCotizacion!$F:$H,3,0)),2) -> 840248.96 | Y134: 0
A135: ColsofCANALIT-SW-03-02 | B135: IT-SW-03-02CANAL | D135: Colsof | E135: IT-SW-03-02 | F135: CANAL | G135: Colsof | H135: COP | I135: N/A | J135: Capacitación para usuario técnico o administrador - hasta 10 Personas. | K135: Por sesión de capacitación de 4 horas para un grupo de hasta 10 personas. | L135: Und | M135: Servicio | N135: Zona 1 | O135: Sitio | P135: Capacitador | Q135: IT-SW-03-02 | R135: Mensual por servicios efectivamente prestados | S135: 972000 | T135: 1 | U135: 1 | V135: =SUMIF(ResumenCotizacion!$C:$C,E135,ResumenCotizacion!$P:$P) -> 0 | W135: =IF(H135="USD",S135*SolCotizacion!$J$18,S135) -> 972000 | X135: =ROUND(W135/(1-VLOOKUP("Total porcentaje:",ResumenCotizacion!$F:$H,3,0)),2) -> 1008298.76 | Y135: 0
A136: ColsofCANALIT-SW-03-03 | B136: IT-SW-03-03CANAL | D136: Colsof | E136: IT-SW-03-03 | F136: CANAL | G136: Colsof | H136: COP | I136: N/A | J136: Capacitación para usuario técnico o administrador - hasta 10 Personas. | K136: Por sesión de capacitación de 4 horas para un grupo de hasta 10 personas. | L136: Und | M136: Servicio | N136: Zona 2 | O136: Remoto | P136: Capacitador | Q136: IT-SW-03-03 | R136: Mensual por servicios efectivamente prestados | S136: 1093500 | T136: 1 | U136: 1 | V136: =SUMIF(ResumenCotizacion!$C:$C,E136,ResumenCotizacion!$P:$P) -> 0 | W136: =IF(H136="USD",S136*SolCotizacion!$J$18,S136) -> 1093500 | X136: =ROUND(W136/(1-VLOOKUP("Total porcentaje:",ResumenCotizacion!$F:$H,3,0)),2) -> 1134336.1 | Y136: 0
A137: ColsofCANALIT-SW-03-04 | B137: IT-SW-03-04CANAL | D137: Colsof | E137: IT-SW-03-04 | F137: CANAL | G137: Colsof | H137: COP | I137: N/A | J137: Capacitación para usuario técnico o administrador - hasta 10 Personas. | K137: Por sesión de capacitación de 4 horas para un grupo de hasta 10 personas. | L137: Und | M137: Servicio | N137: Zona 2 | O137: Sitio | P137: Capacitador | Q137: IT-SW-03-04 | R137: Mensual por servicios efectivamente prestados | S137: 1312200 | T137: 1 | U137: 1 | V137: =SUMIF(ResumenCotizacion!$C:$C,E137,ResumenCotizacion!$P:$P) -> 0 | W137: =IF(H137="USD",S137*SolCotizacion!$J$18,S137) -> 1312200 | X137: =ROUND(W137/(1-VLOOKUP("Total porcentaje:",ResumenCotizacion!$F:$H,3,0)),2) -> 1361203.32 | Y137: 0
A138: ColsofCANALIT-SW-03-05 | B138: IT-SW-03-05CANAL | D138: Colsof | E138: IT-SW-03-05 | F138: CANAL | G138: Colsof | H138: COP | I138: N/A | J138: Capacitación para usuario técnico o administrador - hasta 10 Personas. | K138: Por sesión de capacitación de 4 horas para un grupo de hasta 10 personas. | L138: Und | M138: Servicio | N138: Zona 3 | O138: Remoto | P138: Capacitador | Q138: IT-SW-03-05 | R138: Mensual por servicios efectivamente prestados | S138: 1458000 | T138: 1 | U138: 1 | V138: =SUMIF(ResumenCotizacion!$C:$C,E138,ResumenCotizacion!$P:$P) -> 0 | W138: =IF(H138="USD",S138*SolCotizacion!$J$18,S138) -> 1458000 | X138: =ROUND(W138/(1-VLOOKUP("Total porcentaje:",ResumenCotizacion!$F:$H,3,0)),2) -> 1512448.13 | Y138: 0
A139: ColsofCANALIT-SW-03-06 | B139: IT-SW-03-06CANAL | D139: Colsof | E139: IT-SW-03-06 | F139: CANAL | G139: Colsof | H139: COP | I139: N/A | J139: Capacitación para usuario técnico o administrador - hasta 10 Personas. | K139: Por sesión de capacitación de 4 horas para un grupo de hasta 10 personas. | L139: Und | M139: Servicio | N139: Zona 3 | O139: Sitio | P139: Capacitador | Q139: IT-SW-03-06 | R139: Mensual por servicios efectivamente prestados | S139: 1749600 | T139: 1 | U139: 1 | V139: =SUMIF(ResumenCotizacion!$C:$C,E139,ResumenCotizacion!$P:$P) -> 0 | W139: =IF(H139="USD",S139*SolCotizacion!$J$18,S139) -> 1749600 | X139: =ROUND(W139/(1-VLOOKUP("Total porcentaje:",ResumenCotizacion!$F:$H,3,0)),2) -> 1814937.76 | Y139: 0
A140: ColsofCANALIT-SW-04-01 | B140: IT-SW-04-01CANAL | D140: Colsof | E140: IT-SW-04-01 | F140: CANAL | G140: Colsof | H140: COP | I140: N/A | J140: Capacitación para usuario técnico o administrador hasta 20 Personas. | K140: Por sesión de capacitación de 4 horas para un grupo de hasta 20 personas. | L140: Und | M140: Servicio | N140: Zona 1 | O140: Remoto | P140: Capacitador | Q140: IT-SW-04-01 | R140: Mensual por servicios efectivamente prestados | S140: 1012500 | T140: 1 | U140: 1 | V140: =SUMIF(ResumenCotizacion!$C:$C,E140,ResumenCotizacion!$P:$P) -> 0 | W140: =IF(H140="USD",S140*SolCotizacion!$J$18,S140) -> 1012500 | X140: =ROUND(W140/(1-VLOOKUP("Total porcentaje:",ResumenCotizacion!$F:$H,3,0)),2) -> 1050311.2 | Y140: 0
A141: ColsofCANALIT-SW-04-02 | B141: IT-SW-04-02CANAL | D141: Colsof | E141: IT-SW-04-02 | F141: CANAL | G141: Colsof | H141: COP | I141: N/A | J141: Capacitación para usuario técnico o administrador hasta 20 Personas. | K141: Por sesión de capacitación de 4 horas para un grupo de hasta 20 personas. | L141: Und | M141: Servicio | N141: Zona 1 | O141: Sitio | P141: Capacitador | Q141: IT-SW-04-02 | R141: Mensual por servicios efectivamente prestados | S141: 1458000 | T141: 1 | U141: 1 | V141: =SUMIF(ResumenCotizacion!$C:$C,E141,ResumenCotizacion!$P:$P) -> 0 | W141: =IF(H141="USD",S141*SolCotizacion!$J$18,S141) -> 1458000 | X141: =ROUND(W141/(1-VLOOKUP("Total porcentaje:",ResumenCotizacion!$F:$H,3,0)),2) -> 1512448.13 | Y141: 0
A142: ColsofCANALIT-SW-04-03 | B142: IT-SW-04-03CANAL | D142: Colsof | E142: IT-SW-04-03 | F142: CANAL | G142: Colsof | H142: COP | I142: N/A | J142: Capacitación para usuario técnico o administrador hasta 20 Personas. | K142: Por sesión de capacitación de 4 horas para un grupo de hasta 20 personas. | L142: Und | M142: Servicio | N142: Zona 2 | O142: Remoto | P142: Capacitador | Q142: IT-SW-04-03 | R142: Mensual por servicios efectivamente prestados | S142: 1366875 | T142: 1 | U142: 1 | V142: =SUMIF(ResumenCotizacion!$C:$C,E142,ResumenCotizacion!$P:$P) -> 0 | W142: =IF(H142="USD",S142*SolCotizacion!$J$18,S142) -> 1366875 | X142: =ROUND(W142/(1-VLOOKUP("Total porcentaje:",ResumenCotizacion!$F:$H,3,0)),2) -> 1417920.12 | Y142: 0
A143: ColsofCANALIT-SW-04-04 | B143: IT-SW-04-04CANAL | D143: Colsof | E143: IT-SW-04-04 | F143: CANAL | G143: Colsof | H143: COP | I143: N/A | J143: Capacitación para usuario técnico o administrador hasta 20 Personas. | K143: Por sesión de capacitación de 4 horas para un grupo de hasta 20 personas. | L143: Und | M143: Servicio | N143: Zona 2 | O143: Sitio | P143: Capacitador | Q143: IT-SW-04-04 | R143: Mensual por servicios efectivamente prestados | S143: 1968300 | T143: 1 | U143: 1 | V143: =SUMIF(ResumenCotizacion!$C:$C,E143,ResumenCotizacion!$P:$P) -> 0 | W143: =IF(H143="USD",S143*SolCotizacion!$J$18,S143) -> 1968300 | X143: =ROUND(W143/(1-VLOOKUP("Total porcentaje:",ResumenCotizacion!$F:$H,3,0)),2) -> 2041804.98 | Y143: 0
A144: ColsofCANALIT-SW-04-05 | B144: IT-SW-04-05CANAL | D144: Colsof | E144: IT-SW-04-05 | F144: CANAL | G144: Colsof | H144: COP | I144: N/A | J144: Capacitación para usuario técnico o administrador hasta 20 Personas. | K144: Por sesión de capacitación de 4 horas para un grupo de hasta 20 personas. | L144: Und | M144: Servicio | N144: Zona 3 | O144: Remoto | P144: Capacitador | Q144: IT-SW-04-05 | R144: Mensual por servicios efectivamente prestados | S144: 1822500 | T144: 1 | U144: 1 | V144: =SUMIF(ResumenCotizacion!$C:$C,E144,ResumenCotizacion!$P:$P) -> 0 | W144: =IF(H144="USD",S144*SolCotizacion!$J$18,S144) -> 1822500 | X144: =ROUND(W144/(1-VLOOKUP("Total porcentaje:",ResumenCotizacion!$F:$H,3,0)),2) -> 1890560.17 | Y144: 0
A145: ColsofCANALIT-SW-04-06 | B145: IT-SW-04-06CANAL | D145: Colsof | E145: IT-SW-04-06 | F145: CANAL | G145: Colsof | H145: COP | I145: N/A | J145: Capacitación para usuario técnico o administrador hasta 20 Personas. | K145: Por sesión de capacitación de 4 horas para un grupo de hasta 20 personas. | L145: Und | M145: Servicio | N145: Zona 3 | O145: Sitio | P145: Capacitador | Q145: IT-SW-04-06 | R145: Mensual por servicios efectivamente prestados | S145: 2624400 | T145: 1 | U145: 1 | V145: =SUMIF(ResumenCotizacion!$C:$C,E145,ResumenCotizacion!$P:$P) -> 0 | W145: =IF(H145="USD",S145*SolCotizacion!$J$18,S145) -> 2624400 | X145: =ROUND(W145/(1-VLOOKUP("Total porcentaje:",ResumenCotizacion!$F:$H,3,0)),2) -> 2722406.64 | Y145: 0
A146: ColsofCANALIT-SW-05-01 | B146: IT-SW-05-01CANAL | D146: Colsof | E146: IT-SW-05-01 | F146: CANAL | G146: Colsof | H146: COP | I146: N/A | J146: Configuración y parametrización de los Productos | K146: Hora | L146: Und | M146: Servicio | N146: Zona 1 | O146: Remoto | P146: Profesional | Q146: IT-SW-05-01 | R146: Mensual por servicios efectivamente prestados | S146: 180000 | T146: 1 | U146: 1 | V146: =SUMIF(ResumenCotizacion!$C:$C,E146,ResumenCotizacion!$P:$P) -> 0 | W146: =IF(H146="USD",S146*SolCotizacion!$J$18,S146) -> 180000 | X146: =ROUND(W146/(1-VLOOKUP("Total porcentaje:",ResumenCotizacion!$F:$H,3,0)),2) -> 186721.99 | Y146: 0
A147: ColsofCANALIT-SW-05-02 | B147: IT-SW-05-02CANAL | D147: Colsof | E147: IT-SW-05-02 | F147: CANAL | G147: Colsof | H147: COP | I147: N/A | J147: Configuración y parametrización de los Productos | K147: Hora | L147: Und | M147: Servicio | N147: Zona 1 | O147: Sitio | P147: Profesional | Q147: IT-SW-05-02 | R147: Mensual por servicios efectivamente prestados | S147: 250000 | T147: 1 | U147: 1 | V147: =SUMIF(ResumenCotizacion!$C:$C,E147,ResumenCotizacion!$P:$P) -> 0 | W147: =IF(H147="USD",S147*SolCotizacion!$J$18,S147) -> 250000 | X147: =ROUND(W147/(1-VLOOKUP("Total porcentaje:",ResumenCotizacion!$F:$H,3,0)),2) -> 259336.1 | Y147: 0
A148: ColsofCANALIT-SW-05-03 | B148: IT-SW-05-03CANAL | D148: Colsof | E148: IT-SW-05-03 | F148: CANAL | G148: Colsof | H148: COP | I148: N/A | J148: Configuración y parametrización de los Productos | K148: Hora | L148: Und | M148: Servicio | N148: Zona 2 | O148: Remoto | P148: Profesional | Q148: IT-SW-05-03 | R148: Mensual por servicios efectivamente prestados | S148: 200000 | T148: 1 | U148: 1 | V148: =SUMIF(ResumenCotizacion!$C:$C,E148,ResumenCotizacion!$P:$P) -> 0 | W148: =IF(H148="USD",S148*SolCotizacion!$J$18,S148) -> 200000 | X148: =ROUND(W148/(1-VLOOKUP("Total porcentaje:",ResumenCotizacion!$F:$H,3,0)),2) -> 207468.88 | Y148: 0
A149: ColsofCANALIT-SW-05-04 | B149: IT-SW-05-04CANAL | D149: Colsof | E149: IT-SW-05-04 | F149: CANAL | G149: Colsof | H149: COP | I149: N/A | J149: Configuración y parametrización de los Productos | K149: Hora | L149: Und | M149: Servicio | N149: Zona 2 | O149: Sitio | P149: Profesional | Q149: IT-SW-05-04 | R149: Mensual por servicios efectivamente prestados | S149: 300000 | T149: 1 | U149: 1 | V149: =SUMIF(ResumenCotizacion!$C:$C,E149,ResumenCotizacion!$P:$P) -> 0 | W149: =IF(H149="USD",S149*SolCotizacion!$J$18,S149) -> 300000 | X149: =ROUND(W149/(1-VLOOKUP("Total porcentaje:",ResumenCotizacion!$F:$H,3,0)),2) -> 311203.32 | Y149: 0
A150: ColsofCANALIT-SW-05-05 | B150: IT-SW-05-05CANAL | D150: Colsof | E150: IT-SW-05-05 | F150: CANAL | G150: Colsof | H150: COP | I150: N/A | J150: Configuración y parametrización de los Productos | K150: Hora | L150: Und | M150: Servicio | N150: Zona 3 | O150: Remoto | P150: Profesional | Q150: IT-SW-05-05 | R150: Mensual por servicios efectivamente prestados | S150: 250000 | T150: 1 | U150: 1 | V150: =SUMIF(ResumenCotizacion!$C:$C,E150,ResumenCotizacion!$P:$P) -> 0 | W150: =IF(H150="USD",S150*SolCotizacion!$J$18,S150) -> 250000 | X150: =ROUND(W150/(1-VLOOKUP("Total porcentaje:",ResumenCotizacion!$F:$H,3,0)),2) -> 259336.1 | Y150: 0
A151: ColsofCANALIT-SW-05-06 | B151: IT-SW-05-06CANAL | D151: Colsof | E151: IT-SW-05-06 | F151: CANAL | G151: Colsof | H151: COP | I151: N/A | J151: Configuración y parametrización de los Productos | K151: Hora | L151: Und | M151: Servicio | N151: Zona 3 | O151: Sitio | P151: Profesional | Q151: IT-SW-05-06 | R151: Mensual por servicios efectivamente prestados | S151: 400000 | T151: 1 | U151: 1 | V151: =SUMIF(ResumenCotizacion!$C:$C,E151,ResumenCotizacion!$P:$P) -> 0 | W151: =IF(H151="USD",S151*SolCotizacion!$J$18,S151) -> 400000 | X151: =ROUND(W151/(1-VLOOKUP("Total porcentaje:",ResumenCotizacion!$F:$H,3,0)),2) -> 414937.76 | Y151: 0
A152: ColsofCANALIT-SW-06-01 | B152: IT-SW-06-01CANAL | D152: Colsof | E152: IT-SW-06-01 | F152: CANAL | G152: Colsof | H152: COP | I152: N/A | J152: Gerente de cuenta (soporte) | K152: Mes | L152: Und | M152: Servicio | N152: Zona 1 | O152: Sitio | P152: Profesional | Q152: IT-SW-06-01 | R152: Mensual por servicios efectivamente prestados | S152: 18687500 | T152: 1 | U152: 1 | V152: =SUMIF(ResumenCotizacion!$C:$C,E152,ResumenCotizacion!$P:$P) -> 0 | W152: =IF(H152="USD",S152*SolCotizacion!$J$18,S152) -> 18687500 | X152: =ROUND(W152/(1-VLOOKUP("Total porcentaje:",ResumenCotizacion!$F:$H,3,0)),2) -> 19385373.44 | Y152: 0
A153: ColsofCANALIT-SW-06-02 | B153: IT-SW-06-02CANAL | D153: Colsof | E153: IT-SW-06-02 | F153: CANAL | G153: Colsof | H153: COP | I153: N/A | J153: Gerente de cuenta (soporte) | K153: Mes | L153: Und | M153: Servicio | N153: Zona 2 | O153: Sitio | P153: Profesional | Q153: IT-SW-06-02 | R153: Mensual por servicios efectivamente prestados | S153: 24375000 | T153: 1 | U153: 1 | V153: =SUMIF(ResumenCotizacion!$C:$C,E153,ResumenCotizacion!$P:$P) -> 0 | W153: =IF(H153="USD",S153*SolCotizacion!$J$18,S153) -> 24375000 | X153: =ROUND(W153/(1-VLOOKUP("Total porcentaje:",ResumenCotizacion!$F:$H,3,0)),2) -> 25285269.71 | Y153: 0
A154: ColsofCANALIT-SW-06-03 | B154: IT-SW-06-03CANAL | D154: Colsof | E154: IT-SW-06-03 | F154: CANAL | G154: Colsof | H154: COP | I154: N/A | J154: Gerente de cuenta (soporte) | K154: Mes | L154: Und | M154: Servicio | N154: Zona 3 | O154: Sitio | P154: Profesional | Q154: IT-SW-06-03 | R154: Mensual por servicios efectivamente prestados | S154: 30875000 | T154: 1 | U154: 1 | V154: =SUMIF(ResumenCotizacion!$C:$C,E154,ResumenCotizacion!$P:$P) -> 0 | W154: =IF(H154="USD",S154*SolCotizacion!$J$18,S154) -> 30875000 | X154: =ROUND(W154/(1-VLOOKUP("Total porcentaje:",ResumenCotizacion!$F:$H,3,0)),2) -> 32028008.3 | Y154: 0
A155: ColsofCANALIT-SW-07-01 | B155: IT-SW-07-01CANAL | D155: Colsof | E155: IT-SW-07-01 | F155: CANAL | G155: Colsof | H155: COP | I155: N/A | J155: Instalación de Licencia o Suscripción Anual, o afínes | K155: Unidad | L155: Und | M155: Servicio | N155: Zona 1 | O155: Remoto | P155: Técnico/Tecnólogo ó Profesional | Q155: IT-SW-07-01 | R155: Mensual por servicios efectivamente prestados | S155: 720000 | T155: 1 | U155: 1 | V155: =SUMIF(ResumenCotizacion!$C:$C,E155,ResumenCotizacion!$P:$P) -> 0 | W155: =IF(H155="USD",S155*SolCotizacion!$J$18,S155) -> 720000 | X155: =ROUND(W155/(1-VLOOKUP("Total porcentaje:",ResumenCotizacion!$F:$H,3,0)),2) -> 746887.97 | Y155: 0
A156: ColsofCANALIT-SW-07-02 | B156: IT-SW-07-02CANAL | D156: Colsof | E156: IT-SW-07-02 | F156: CANAL | G156: Colsof | H156: COP | I156: N/A | J156: Instalación de Licencia o Suscripción Anual, o afínes | K156: Unidad | L156: Und | M156: Servicio | N156: Zona 1 | O156: Sitio | P156: Técnico/Tecnólogo ó Profesional | Q156: IT-SW-07-02 | R156: Mensual por servicios efectivamente prestados | S156: 1000000 | T156: 1 | U156: 1 | V156: =SUMIF(ResumenCotizacion!$C:$C,E156,ResumenCotizacion!$P:$P) -> 0 | W156: =IF(H156="USD",S156*SolCotizacion!$J$18,S156) -> 1000000 | X156: =ROUND(W156/(1-VLOOKUP("Total porcentaje:",ResumenCotizacion!$F:$H,3,0)),2) -> 1037344.4 | Y156: 0
A157: ColsofCANALIT-SW-07-03 | B157: IT-SW-07-03CANAL | D157: Colsof | E157: IT-SW-07-03 | F157: CANAL | G157: Colsof | H157: COP | I157: N/A | J157: Instalación de Licencia o Suscripción Anual, o afínes | K157: Unidad | L157: Und | M157: Servicio | N157: Zona 2 | O157: Remoto | P157: Técnico/Tecnólogo ó Profesional | Q157: IT-SW-07-03 | R157: Mensual por servicios efectivamente prestados | S157: 800000 | T157: 1 | U157: 1 | V157: =SUMIF(ResumenCotizacion!$C:$C,E157,ResumenCotizacion!$P:$P) -> 0 | W157: =IF(H157="USD",S157*SolCotizacion!$J$18,S157) -> 800000 | X157: =ROUND(W157/(1-VLOOKUP("Total porcentaje:",ResumenCotizacion!$F:$H,3,0)),2) -> 829875.52 | Y157: 0
A158: ColsofCANALIT-SW-07-04 | B158: IT-SW-07-04CANAL | D158: Colsof | E158: IT-SW-07-04 | F158: CANAL | G158: Colsof | H158: COP | I158: N/A | J158: Instalación de Licencia o Suscripción Anual, o afínes | K158: Unidad | L158: Und | M158: Servicio | N158: Zona 2 | O158: Sitio | P158: Técnico/Tecnólogo ó Profesional | Q158: IT-SW-07-04 | R158: Mensual por servicios efectivamente prestados | S158: 1200000 | T158: 1 | U158: 1 | V158: =SUMIF(ResumenCotizacion!$C:$C,E158,ResumenCotizacion!$P:$P) -> 0 | W158: =IF(H158="USD",S158*SolCotizacion!$J$18,S158) -> 1200000 | X158: =ROUND(W158/(1-VLOOKUP("Total porcentaje:",ResumenCotizacion!$F:$H,3,0)),2) -> 1244813.28 | Y158: 0
A159: ColsofCANALIT-SW-07-05 | B159: IT-SW-07-05CANAL | D159: Colsof | E159: IT-SW-07-05 | F159: CANAL | G159: Colsof | H159: COP | I159: N/A | J159: Instalación de Licencia o Suscripción Anual, o afínes | K159: Unidad | L159: Und | M159: Servicio | N159: Zona 3 | O159: Remoto | P159: Técnico/Tecnólogo ó Profesional | Q159: IT-SW-07-05 | R159: Mensual por servicios efectivamente prestados | S159: 1000000 | T159: 1 | U159: 1 | V159: =SUMIF(ResumenCotizacion!$C:$C,E159,ResumenCotizacion!$P:$P) -> 0 | W159: =IF(H159="USD",S159*SolCotizacion!$J$18,S159) -> 1000000 | X159: =ROUND(W159/(1-VLOOKUP("Total porcentaje:",ResumenCotizacion!$F:$H,3,0)),2) -> 1037344.4 | Y159: 0
A160: ColsofCANALIT-SW-07-06 | B160: IT-SW-07-06CANAL | D160: Colsof | E160: IT-SW-07-06 | F160: CANAL | G160: Colsof | H160: COP | I160: N/A | J160: Instalación de Licencia o Suscripción Anual, o afínes | K160: Unidad | L160: Und | M160: Servicio | N160: Zona 3 | O160: Sitio | P160: Técnico/Tecnólogo ó Profesional | Q160: IT-SW-07-06 | R160: Mensual por servicios efectivamente prestados | S160: 1600000 | T160: 1 | U160: 1 | V160: =SUMIF(ResumenCotizacion!$C:$C,E160,ResumenCotizacion!$P:$P) -> 0 | W160: =IF(H160="USD",S160*SolCotizacion!$J$18,S160) -> 1600000 | X160: =ROUND(W160/(1-VLOOKUP("Total porcentaje:",ResumenCotizacion!$F:$H,3,0)),2) -> 1659751.04 | Y160: 0
A161: ColsofCANALIT-SW-08-01 | B161: IT-SW-08-01CANAL | D161: Colsof | E161: IT-SW-08-01 | F161: CANAL | G161: Colsof | H161: COP | I161: N/A | J161: Migración de información por volumen de datos almacenados | K161: GB | L161: Und | M161: Servicio | N161: Zona 1 | O161: Remoto | P161: Profesional | Q161: IT-SW-08-01 | R161: Mensual por servicios efectivamente prestados | S161: 56250 | T161: 1 | U161: 1 | V161: =SUMIF(ResumenCotizacion!$C:$C,E161,ResumenCotizacion!$P:$P) -> 0 | W161: =IF(H161="USD",S161*SolCotizacion!$J$18,S161) -> 56250 | X161: =ROUND(W161/(1-VLOOKUP("Total porcentaje:",ResumenCotizacion!$F:$H,3,0)),2) -> 58350.62 | Y161: 0
A162: ColsofCANALIT-SW-08-02 | B162: IT-SW-08-02CANAL | D162: Colsof | E162: IT-SW-08-02 | F162: CANAL | G162: Colsof | H162: COP | I162: N/A | J162: Migración de información por volumen de datos almacenados | K162: GB | L162: Und | M162: Servicio | N162: Zona 1 | O162: Sitio | P162: Profesional | Q162: IT-SW-08-02 | R162: Mensual por servicios efectivamente prestados | S162: 62500 | T162: 1 | U162: 1 | V162: =SUMIF(ResumenCotizacion!$C:$C,E162,ResumenCotizacion!$P:$P) -> 0 | W162: =IF(H162="USD",S162*SolCotizacion!$J$18,S162) -> 62500 | X162: =ROUND(W162/(1-VLOOKUP("Total porcentaje:",ResumenCotizacion!$F:$H,3,0)),2) -> 64834.02 | Y162: 0
A163: ColsofCANALIT-SW-08-03 | B163: IT-SW-08-03CANAL | D163: Colsof | E163: IT-SW-08-03 | F163: CANAL | G163: Colsof | H163: COP | I163: N/A | J163: Migración de información por volumen de datos almacenados | K163: GB | L163: Und | M163: Servicio | N163: Zona 2 | O163: Remoto | P163: Profesional | Q163: IT-SW-08-03 | R163: Mensual por servicios efectivamente prestados | S163: 75000 | T163: 1 | U163: 1 | V163: =SUMIF(ResumenCotizacion!$C:$C,E163,ResumenCotizacion!$P:$P) -> 0 | W163: =IF(H163="USD",S163*SolCotizacion!$J$18,S163) -> 75000 | X163: =ROUND(W163/(1-VLOOKUP("Total porcentaje:",ResumenCotizacion!$F:$H,3,0)),2) -> 77800.83 | Y163: 0
A164: ColsofCANALIT-SW-08-04 | B164: IT-SW-08-04CANAL | D164: Colsof | E164: IT-SW-08-04 | F164: CANAL | G164: Colsof | H164: COP | I164: N/A | J164: Migración de información por volumen de datos almacenados | K164: GB | L164: Und | M164: Servicio | N164: Zona 2 | O164: Sitio | P164: Profesional | Q164: IT-SW-08-04 | R164: Mensual por servicios efectivamente prestados | S164: 87500 | T164: 1 | U164: 1 | V164: =SUMIF(ResumenCotizacion!$C:$C,E164,ResumenCotizacion!$P:$P) -> 0 | W164: =IF(H164="USD",S164*SolCotizacion!$J$18,S164) -> 87500 | X164: =ROUND(W164/(1-VLOOKUP("Total porcentaje:",ResumenCotizacion!$F:$H,3,0)),2) -> 90767.63 | Y164: 0
A165: ColsofCANALIT-SW-08-05 | B165: IT-SW-08-05CANAL | D165: Colsof | E165: IT-SW-08-05 | F165: CANAL | G165: Colsof | H165: COP | I165: N/A | J165: Migración de información por volumen de datos almacenados | K165: GB | L165: Und | M165: Servicio | N165: Zona 3 | O165: Remoto | P165: Profesional | Q165: IT-SW-08-05 | R165: Mensual por servicios efectivamente prestados | S165: 93750 | T165: 1 | U165: 1 | V165: =SUMIF(ResumenCotizacion!$C:$C,E165,ResumenCotizacion!$P:$P) -> 0 | W165: =IF(H165="USD",S165*SolCotizacion!$J$18,S165) -> 93750 | X165: =ROUND(W165/(1-VLOOKUP("Total porcentaje:",ResumenCotizacion!$F:$H,3,0)),2) -> 97251.04 | Y165: 0
A166: ColsofCANALIT-SW-08-06 | B166: IT-SW-08-06CANAL | D166: Colsof | E166: IT-SW-08-06 | F166: CANAL | G166: Colsof | H166: COP | I166: N/A | J166: Migración de información por volumen de datos almacenados | K166: GB | L166: Und | M166: Servicio | N166: Zona 3 | O166: Sitio | P166: Profesional | Q166: IT-SW-08-06 | R166: Mensual por servicios efectivamente prestados | S166: 125000 | T166: 1 | U166: 1 | V166: =SUMIF(ResumenCotizacion!$C:$C,E166,ResumenCotizacion!$P:$P) -> 0 | W166: =IF(H166="USD",S166*SolCotizacion!$J$18,S166) -> 125000 | X166: =ROUND(W166/(1-VLOOKUP("Total porcentaje:",ResumenCotizacion!$F:$H,3,0)),2) -> 129668.05 | Y166: 0
A167: ColsofCANALIT-SW-09-01 | B167: IT-SW-09-01CANAL | D167: Colsof | E167: IT-SW-09-01 | F167: CANAL | G167: Colsof | H167: COP | I167: N/A | J167: Soporte técnico en sitio | K167: Mes | L167: Und | M167: Servicio | N167: Zona 1 | O167: Sitio | P167: Técnico/Tecnólogo ó Profesional | Q167: IT-SW-09-01 | R167: Mensual por servicios efectivamente prestados | S167: 18687500 | T167: 1 | U167: 1 | V167: =SUMIF(ResumenCotizacion!$C:$C,E167,ResumenCotizacion!$P:$P) -> 0 | W167: =IF(H167="USD",S167*SolCotizacion!$J$18,S167) -> 18687500 | X167: =ROUND(W167/(1-VLOOKUP("Total porcentaje:",ResumenCotizacion!$F:$H,3,0)),2) -> 19385373.44 | Y167: 0
A168: ColsofCANALIT-SW-09-02 | B168: IT-SW-09-02CANAL | D168: Colsof | E168: IT-SW-09-02 | F168: CANAL | G168: Colsof | H168: COP | I168: N/A | J168: Soporte técnico en sitio | K168: Mes | L168: Und | M168: Servicio | N168: Zona 2 | O168: Sitio | P168: Técnico/Tecnólogo ó Profesional | Q168: IT-SW-09-02 | R168: Mensual por servicios efectivamente prestados | S168: 24375000 | T168: 1 | U168: 1 | V168: =SUMIF(ResumenCotizacion!$C:$C,E168,ResumenCotizacion!$P:$P) -> 0 | W168: =IF(H168="USD",S168*SolCotizacion!$J$18,S168) -> 24375000 | X168: =ROUND(W168/(1-VLOOKUP("Total porcentaje:",ResumenCotizacion!$F:$H,3,0)),2) -> 25285269.71 | Y168: 0
A169: ColsofCANALIT-SW-09-03 | B169: IT-SW-09-03CANAL | D169: Colsof | E169: IT-SW-09-03 | F169: CANAL | G169: Colsof | H169: COP | I169: N/A | J169: Soporte técnico en sitio | K169: Mes | L169: Und | M169: Servicio | N169: Zona 3 | O169: Sitio | P169: Técnico/Tecnólogo ó Profesional | Q169: IT-SW-09-03 | R169: Mensual por servicios efectivamente prestados | S169: 30875000 | T169: 1 | U169: 1 | V169: =SUMIF(ResumenCotizacion!$C:$C,E169,ResumenCotizacion!$P:$P) -> 0 | W169: =IF(H169="USD",S169*SolCotizacion!$J$18,S169) -> 30875000 | X169: =ROUND(W169/(1-VLOOKUP("Total porcentaje:",ResumenCotizacion!$F:$H,3,0)),2) -> 32028008.3 | Y169: 0
A170: ColsofCANALIT-SW-10-01 | B170: IT-SW-10-01CANAL | D170: Colsof | E170: IT-SW-10-01 | F170: CANAL | G170: Colsof | H170: COP | I170: N/A | J170: Soporte técnico proactivo | K170: Hora | L170: Und | M170: Servicio | N170: Zona 2 | O170: Remoto | P170: Técnico/Tecnólogo ó Profesional | Q170: IT-SW-10-01 | R170: Mensual por servicios efectivamente prestados | S170: 270000 | T170: 1 | U170: 1 | V170: =SUMIF(ResumenCotizacion!$C:$C,E170,ResumenCotizacion!$P:$P) -> 0 | W170: =IF(H170="USD",S170*SolCotizacion!$J$18,S170) -> 270000 | X170: =ROUND(W170/(1-VLOOKUP("Total porcentaje:",ResumenCotizacion!$F:$H,3,0)),2) -> 280082.99 | Y170: 0
A171: ColsofCANALIT-SW-10-02 | B171: IT-SW-10-02CANAL | D171: Colsof | E171: IT-SW-10-02 | F171: CANAL | G171: Colsof | H171: COP | I171: N/A | J171: Soporte técnico proactivo | K171: Hora | L171: Und | M171: Servicio | N171: Zona 2 | O171: Sitio | P171: Técnico/Tecnólogo ó Profesional | Q171: IT-SW-10-02 | R171: Mensual por servicios efectivamente prestados | S171: 375000 | T171: 1 | U171: 1 | V171: =SUMIF(ResumenCotizacion!$C:$C,E171,ResumenCotizacion!$P:$P) -> 0 | W171: =IF(H171="USD",S171*SolCotizacion!$J$18,S171) -> 375000 | X171: =ROUND(W171/(1-VLOOKUP("Total porcentaje:",ResumenCotizacion!$F:$H,3,0)),2) -> 389004.15 | Y171: 0
A172: ColsofCANALIT-SW-10-03 | B172: IT-SW-10-03CANAL | D172: Colsof | E172: IT-SW-10-03 | F172: CANAL | G172: Colsof | H172: COP | I172: N/A | J172: Soporte técnico proactivo | K172: Hora | L172: Und | M172: Servicio | N172: Zona 1 | O172: Remoto | P172: Técnico/Tecnólogo ó Profesional | Q172: IT-SW-10-03 | R172: Mensual por servicios efectivamente prestados | S172: 300000 | T172: 1 | U172: 1 | V172: =SUMIF(ResumenCotizacion!$C:$C,E172,ResumenCotizacion!$P:$P) -> 0 | W172: =IF(H172="USD",S172*SolCotizacion!$J$18,S172) -> 300000 | X172: =ROUND(W172/(1-VLOOKUP("Total porcentaje:",ResumenCotizacion!$F:$H,3,0)),2) -> 311203.32 | Y172: 0
A173: ColsofCANALIT-SW-10-04 | B173: IT-SW-10-04CANAL | D173: Colsof | E173: IT-SW-10-04 | F173: CANAL | G173: Colsof | H173: COP | I173: N/A | J173: Soporte técnico proactivo | K173: Hora | L173: Und | M173: Servicio | N173: Zona 3 | O173: Remoto | P173: Técnico/Tecnólogo ó Profesional | Q173: IT-SW-10-04 | R173: Mensual por servicios efectivamente prestados | S173: 450000 | T173: 1 | U173: 1 | V173: =SUMIF(ResumenCotizacion!$C:$C,E173,ResumenCotizacion!$P:$P) -> 0 | W173: =IF(H173="USD",S173*SolCotizacion!$J$18,S173) -> 450000 | X173: =ROUND(W173/(1-VLOOKUP("Total porcentaje:",ResumenCotizacion!$F:$H,3,0)),2) -> 466804.98 | Y173: 0
A174: ColsofCANALIT-SW-10-05 | B174: IT-SW-10-05CANAL | D174: Colsof | E174: IT-SW-10-05 | F174: CANAL | G174: Colsof | H174: COP | I174: N/A | J174: Soporte técnico proactivo | K174: Hora | L174: Und | M174: Servicio | N174: Zona 3 | O174: Sitio | P174: Técnico/Tecnólogo ó Profesional | Q174: IT-SW-10-05 | R174: Mensual por servicios efectivamente prestados | S174: 375000 | T174: 1 | U174: 1 | V174: =SUMIF(ResumenCotizacion!$C:$C,E174,ResumenCotizacion!$P:$P) -> 0 | W174: =IF(H174="USD",S174*SolCotizacion!$J$18,S174) -> 375000 | X174: =ROUND(W174/(1-VLOOKUP("Total porcentaje:",ResumenCotizacion!$F:$H,3,0)),2) -> 389004.15 | Y174: 0
A175: ColsofCANALIT-SW-10-06 | B175: IT-SW-10-06CANAL | D175: Colsof | E175: IT-SW-10-06 | F175: CANAL | G175: Colsof | H175: COP | I175: N/A | J175: Soporte técnico proactivo | K175: Hora | L175: Und | M175: Servicio | N175: Zona 1 | O175: Sitio | P175: Técnico/Tecnólogo ó Profesional | Q175: IT-SW-10-06 | R175: Mensual por servicios efectivamente prestados | S175: 600000 | T175: 1 | U175: 1 | V175: =SUMIF(ResumenCotizacion!$C:$C,E175,ResumenCotizacion!$P:$P) -> 0 | W175: =IF(H175="USD",S175*SolCotizacion!$J$18,S175) -> 600000 | X175: =ROUND(W175/(1-VLOOKUP("Total porcentaje:",ResumenCotizacion!$F:$H,3,0)),2) -> 622406.64 | Y175: 0
A176: ColsofCANALIT-SW-11-01 | B176: IT-SW-11-01CANAL | D176: Colsof | E176: IT-SW-11-01 | F176: CANAL | G176: Colsof | H176: COP | I176: N/A | J176: Soporte técnico reactivo | K176: Hora | L176: Und | M176: Servicio | N176: Zona 1 | O176: Sitio | P176: Técnico/Tecnólogo ó Profesional | Q176: IT-SW-11-01 | R176: Mensual por servicios efectivamente prestados | S176: 450000 | T176: 1 | U176: 1 | V176: =SUMIF(ResumenCotizacion!$C:$C,E176,ResumenCotizacion!$P:$P) -> 0 | W176: =IF(H176="USD",S176*SolCotizacion!$J$18,S176) -> 450000 | X176: =ROUND(W176/(1-VLOOKUP("Total porcentaje:",ResumenCotizacion!$F:$H,3,0)),2) -> 466804.98 | Y176: 0
A177: ColsofCANALIT-SW-11-02 | B177: IT-SW-11-02CANAL | D177: Colsof | E177: IT-SW-11-02 | F177: CANAL | G177: Colsof | H177: COP | I177: N/A | J177: Soporte técnico reactivo | K177: Hora | L177: Und | M177: Servicio | N177: Zona 2 | O177: Remoto | P177: Técnico/Tecnólogo ó Profesional | Q177: IT-SW-11-02 | R177: Mensual por servicios efectivamente prestados | S177: 380000 | T177: 1 | U177: 1 | V177: =SUMIF(ResumenCotizacion!$C:$C,E177,ResumenCotizacion!$P:$P) -> 0 | W177: =IF(H177="USD",S177*SolCotizacion!$J$18,S177) -> 380000 | X177: =ROUND(W177/(1-VLOOKUP("Total porcentaje:",ResumenCotizacion!$F:$H,3,0)),2) -> 394190.87 | Y177: 0
A178: ColsofCANALIT-SW-11-03 | B178: IT-SW-11-03CANAL | D178: Colsof | E178: IT-SW-11-03 | F178: CANAL | G178: Colsof | H178: COP | I178: N/A | J178: Soporte técnico reactivo | K178: Hora | L178: Und | M178: Servicio | N178: Zona 2 | O178: Sitio | P178: Técnico/Tecnólogo ó Profesional | Q178: IT-SW-11-03 | R178: Mensual por servicios efectivamente prestados | S178: 540000 | T178: 1 | U178: 1 | V178: =SUMIF(ResumenCotizacion!$C:$C,E178,ResumenCotizacion!$P:$P) -> 0 | W178: =IF(H178="USD",S178*SolCotizacion!$J$18,S178) -> 540000 | X178: =ROUND(W178/(1-VLOOKUP("Total porcentaje:",ResumenCotizacion!$F:$H,3,0)),2) -> 560165.98 | Y178: 0
A179: ColsofCANALIT-SW-11-04 | B179: IT-SW-11-04CANAL | D179: Colsof | E179: IT-SW-11-04 | F179: CANAL | G179: Colsof | H179: COP | I179: N/A | J179: Soporte técnico reactivo | K179: Hora | L179: Und | M179: Servicio | N179: Zona 3 | O179: Remoto | P179: Técnico/Tecnólogo ó Profesional | Q179: IT-SW-11-04 | R179: Mensual por servicios efectivamente prestados | S179: 450000 | T179: 1 | U179: 1 | V179: =SUMIF(ResumenCotizacion!$C:$C,E179,ResumenCotizacion!$P:$P) -> 0 | W179: =IF(H179="USD",S179*SolCotizacion!$J$18,S179) -> 450000 | X179: =ROUND(W179/(1-VLOOKUP("Total porcentaje:",ResumenCotizacion!$F:$H,3,0)),2) -> 466804.98 | Y179: 0
A180: ColsofCANALIT-SW-11-05 | B180: IT-SW-11-05CANAL | D180: Colsof | E180: IT-SW-11-05 | F180: CANAL | G180: Colsof | H180: COP | I180: N/A | J180: Soporte técnico reactivo | K180: Hora | L180: Und | M180: Servicio | N180: Zona 3 | O180: Sitio | P180: Técnico/Tecnólogo ó Profesional | Q180: IT-SW-11-05 | R180: Mensual por servicios efectivamente prestados | S180: 720000 | T180: 1 | U180: 1 | V180: =SUMIF(ResumenCotizacion!$C:$C,E180,ResumenCotizacion!$P:$P) -> 0 | W180: =IF(H180="USD",S180*SolCotizacion!$J$18,S180) -> 720000 | X180: =ROUND(W180/(1-VLOOKUP("Total porcentaje:",ResumenCotizacion!$F:$H,3,0)),2) -> 746887.97 | Y180: 0
A181: ColsofCANALIT-SW-11-06 | B181: IT-SW-11-06CANAL | D181: Colsof | E181: IT-SW-11-06 | F181: CANAL | G181: Colsof | H181: COP | I181: N/A | J181: Soporte técnico reactivo | K181: Hora | L181: Und | M181: Servicio | N181: Zona 1 | O181: Remoto | P181: Técnico/Tecnólogo ó Profesional | Q181: IT-SW-11-06 | R181: Mensual por servicios efectivamente prestados | S181: 324000 | T181: 1 | U181: 1 | V181: =SUMIF(ResumenCotizacion!$C:$C,E181,ResumenCotizacion!$P:$P) -> 0 | W181: =IF(H181="USD",S181*SolCotizacion!$J$18,S181) -> 324000 | X181: =ROUND(W181/(1-VLOOKUP("Total porcentaje:",ResumenCotizacion!$F:$H,3,0)),2) -> 336099.59 | Y181: 0
A182: UT Softlinebext 20202CANALIT-SW-01-01 | B182: IT-SW-01-01CANAL | D182: UT Softlinebext 20202 | E182: IT-SW-01-01 | F182: CANAL | G182: UT Softlinebext 20202 | H182: COP | I182: N/A | J182: Capacitación para usuario final - hasta 10 Personas. | K182: Por sesión de capacitación de 4 horas para un grupo de hasta 10 personas. | L182: Und | M182: Servicio | N182: Zona 1 | O182: Remoto | P182: Capacitador | Q182: IT-SW-01-01 | R182: Mensual por servicios efectivamente prestados | S182: 934400 | T182: 1 | U182: 1 | V182: =SUMIF(ResumenCotizacion!$C:$C,E182,ResumenCotizacion!$P:$P) -> 0 | W182: =IF(H182="USD",S182*SolCotizacion!$J$18,S182) -> 934400 | X182: =ROUND(W182/(1-VLOOKUP("Total porcentaje:",ResumenCotizacion!$F:$H,3,0)),2) -> 969294.61 | Y182: 0
A183: UT Softlinebext 20202CANALIT-SW-01-02 | B183: IT-SW-01-02CANAL | D183: UT Softlinebext 20202 | E183: IT-SW-01-02 | F183: CANAL | G183: UT Softlinebext 20202 | H183: COP | I183: N/A | J183: Capacitación para usuario final - hasta 10 Personas. | K183: Por sesión de capacitación de 4 horas para un grupo de hasta 10 personas. | L183: Und | M183: Servicio | N183: Zona 1 | O183: Sitio | P183: Capacitador | Q183: IT-SW-01-02 | R183: Mensual por servicios efectivamente prestados | S183: 1052666.667 | T183: 1 | U183: 1 | V183: =SUMIF(ResumenCotizacion!$C:$C,E183,ResumenCotizacion!$P:$P) -> 0 | W183: =IF(H183="USD",S183*SolCotizacion!$J$18,S183) -> 1052666.667 | X183: =ROUND(W183/(1-VLOOKUP("Total porcentaje:",ResumenCotizacion!$F:$H,3,0)),2) -> 1091977.87 | Y183: 0
A184: UT Softlinebext 20202CANALIT-SW-01-03 | B184: IT-SW-01-03CANAL | D184: UT Softlinebext 20202 | E184: IT-SW-01-03 | F184: CANAL | G184: UT Softlinebext 20202 | H184: COP | I184: N/A | J184: Capacitación para usuario final - hasta 10 Personas. | K184: Por sesión de capacitación de 4 horas para un grupo de hasta 10 personas. | L184: Und | M184: Servicio | N184: Zona 2 | O184: Remoto | P184: Capacitador | Q184: IT-SW-01-03 | R184: Mensual por servicios efectivamente prestados | S184: 934400 | T184: 1 | U184: 1 | V184: =SUMIF(ResumenCotizacion!$C:$C,E184,ResumenCotizacion!$P:$P) -> 0 | W184: =IF(H184="USD",S184*SolCotizacion!$J$18,S184) -> 934400 | X184: =ROUND(W184/(1-VLOOKUP("Total porcentaje:",ResumenCotizacion!$F:$H,3,0)),2) -> 969294.61 | Y184: 0
A185: UT Softlinebext 20202CANALIT-SW-01-04 | B185: IT-SW-01-04CANAL | D185: UT Softlinebext 20202 | E185: IT-SW-01-04 | F185: CANAL | G185: UT Softlinebext 20202 | H185: COP | I185: N/A | J185: Capacitación para usuario final - hasta 10 Personas. | K185: Por sesión de capacitación de 4 horas para un grupo de hasta 10 personas. | L185: Und | M185: Servicio | N185: Zona 2 | O185: Sitio | P185: Capacitador | Q185: IT-SW-01-04 | R185: Mensual por servicios efectivamente prestados | S185: 1259333.333 | T185: 1 | U185: 1 | V185: =SUMIF(ResumenCotizacion!$C:$C,E185,ResumenCotizacion!$P:$P) -> 0 | W185: =IF(H185="USD",S185*SolCotizacion!$J$18,S185) -> 1259333.333 | X185: =ROUND(W185/(1-VLOOKUP("Total porcentaje:",ResumenCotizacion!$F:$H,3,0)),2) -> 1306362.38 | Y185: 0
A186: UT Softlinebext 20202CANALIT-SW-01-05 | B186: IT-SW-01-05CANAL | D186: UT Softlinebext 20202 | E186: IT-SW-01-05 | F186: CANAL | G186: UT Softlinebext 20202 | H186: COP | I186: N/A | J186: Capacitación para usuario final - hasta 10 Personas. | K186: Por sesión de capacitación de 4 horas para un grupo de hasta 10 personas. | L186: Und | M186: Servicio | N186: Zona 3 | O186: Remoto | P186: Capacitador | Q186: IT-SW-01-05 | R186: Mensual por servicios efectivamente prestados | S186: 934400 | T186: 1 | U186: 1 | V186: =SUMIF(ResumenCotizacion!$C:$C,E186,ResumenCotizacion!$P:$P) -> 0 | W186: =IF(H186="USD",S186*SolCotizacion!$J$18,S186) -> 934400 | X186: =ROUND(W186/(1-VLOOKUP("Total porcentaje:",ResumenCotizacion!$F:$H,3,0)),2) -> 969294.61 | Y186: 0
A187: UT Softlinebext 20202CANALIT-SW-01-06 | B187: IT-SW-01-06CANAL | D187: UT Softlinebext 20202 | E187: IT-SW-01-06 | F187: CANAL | G187: UT Softlinebext 20202 | H187: COP | I187: N/A | J187: Capacitación para usuario final - hasta 10 Personas. | K187: Por sesión de capacitación de 4 horas para un grupo de hasta 10 personas. | L187: Und | M187: Servicio | N187: Zona 3 | O187: Sitio | P187: Capacitador | Q187: IT-SW-01-06 | R187: Mensual por servicios efectivamente prestados | S187: 1633866.667 | T187: 1 | U187: 1 | V187: =SUMIF(ResumenCotizacion!$C:$C,E187,ResumenCotizacion!$P:$P) -> 0 | W187: =IF(H187="USD",S187*SolCotizacion!$J$18,S187) -> 1633866.667 | X187: =ROUND(W187/(1-VLOOKUP("Total porcentaje:",ResumenCotizacion!$F:$H,3,0)),2) -> 1694882.43 | Y187: 0
A188: UT Softlinebext 20202CANALIT-SW-02-01 | B188: IT-SW-02-01CANAL | D188: UT Softlinebext 20202 | E188: IT-SW-02-01 | F188: CANAL | G188: UT Softlinebext 20202 | H188: COP | I188: N/A | J188: Capacitación para usuario final hasta 20 Personas. | K188: Por sesión de capacitación de 4 horas para un grupo de hasta 20 personas. | L188: Und | M188: Servicio | N188: Zona 1 | O188: Remoto | P188: Capacitador | Q188: IT-SW-02-01 | R188: Mensual por servicios efectivamente prestados | S188: 934400 | T188: 1 | U188: 1 | V188: =SUMIF(ResumenCotizacion!$C:$C,E188,ResumenCotizacion!$P:$P) -> 0 | W188: =IF(H188="USD",S188*SolCotizacion!$J$18,S188) -> 934400 | X188: =ROUND(W188/(1-VLOOKUP("Total porcentaje:",ResumenCotizacion!$F:$H,3,0)),2) -> 969294.61 | Y188: 0
A189: UT Softlinebext 20202CANALIT-SW-02-02 | B189: IT-SW-02-02CANAL | D189: UT Softlinebext 20202 | E189: IT-SW-02-02 | F189: CANAL | G189: UT Softlinebext 20202 | H189: COP | I189: N/A | J189: Capacitación para usuario final hasta 20 Personas. | K189: Por sesión de capacitación de 4 horas para un grupo de hasta 20 personas. | L189: Und | M189: Servicio | N189: Zona 1 | O189: Sitio | P189: Capacitador | Q189: IT-SW-02-02 | R189: Mensual por servicios efectivamente prestados | S189: 1642666.667 | T189: 1 | U189: 1 | V189: =SUMIF(ResumenCotizacion!$C:$C,E189,ResumenCotizacion!$P:$P) -> 0 | W189: =IF(H189="USD",S189*SolCotizacion!$J$18,S189) -> 1642666.667 | X189: =ROUND(W189/(1-VLOOKUP("Total porcentaje:",ResumenCotizacion!$F:$H,3,0)),2) -> 1704011.07 | Y189: 0
A190: UT Softlinebext 20202CANALIT-SW-02-03 | B190: IT-SW-02-03CANAL | D190: UT Softlinebext 20202 | E190: IT-SW-02-03 | F190: CANAL | G190: UT Softlinebext 20202 | H190: COP | I190: N/A | J190: Capacitación para usuario final hasta 20 Personas. | K190: Por sesión de capacitación de 4 horas para un grupo de hasta 20 personas. | L190: Und | M190: Servicio | N190: Zona 2 | O190: Remoto | P190: Capacitador | Q190: IT-SW-02-03 | R190: Mensual por servicios efectivamente prestados | S190: 934400 | T190: 1 | U190: 1 | V190: =SUMIF(ResumenCotizacion!$C:$C,E190,ResumenCotizacion!$P:$P) -> 0 | W190: =IF(H190="USD",S190*SolCotizacion!$J$18,S190) -> 934400 | X190: =ROUND(W190/(1-VLOOKUP("Total porcentaje:",ResumenCotizacion!$F:$H,3,0)),2) -> 969294.61 | Y190: 0
A191: UT Softlinebext 20202CANALIT-SW-02-04 | B191: IT-SW-02-04CANAL | D191: UT Softlinebext 20202 | E191: IT-SW-02-04 | F191: CANAL | G191: UT Softlinebext 20202 | H191: COP | I191: N/A | J191: Capacitación para usuario final hasta 20 Personas. | K191: Por sesión de capacitación de 4 horas para un grupo de hasta 20 personas. | L191: Und | M191: Servicio | N191: Zona 2 | O191: Sitio | P191: Capacitador | Q191: IT-SW-02-04 | R191: Mensual por servicios efectivamente prestados | S191: 1880000 | T191: 1 | U191: 1 | V191: =SUMIF(ResumenCotizacion!$C:$C,E191,ResumenCotizacion!$P:$P) -> 0 | W191: =IF(H191="USD",S191*SolCotizacion!$J$18,S191) -> 1880000 | X191: =ROUND(W191/(1-VLOOKUP("Total porcentaje:",ResumenCotizacion!$F:$H,3,0)),2) -> 1950207.47 | Y191: 0
A192: UT Softlinebext 20202CANALIT-SW-02-05 | B192: IT-SW-02-05CANAL | D192: UT Softlinebext 20202 | E192: IT-SW-02-05 | F192: CANAL | G192: UT Softlinebext 20202 | H192: COP | I192: N/A | J192: Capacitación para usuario final hasta 20 Personas. | K192: Por sesión de capacitación de 4 horas para un grupo de hasta 20 personas. | L192: Und | M192: Servicio | N192: Zona 3 | O192: Remoto | P192: Capacitador | Q192: IT-SW-02-05 | R192: Mensual por servicios efectivamente prestados | S192: 934400 | T192: 1 | U192: 1 | V192: =SUMIF(ResumenCotizacion!$C:$C,E192,ResumenCotizacion!$P:$P) -> 0 | W192: =IF(H192="USD",S192*SolCotizacion!$J$18,S192) -> 934400 | X192: =ROUND(W192/(1-VLOOKUP("Total porcentaje:",ResumenCotizacion!$F:$H,3,0)),2) -> 969294.61 | Y192: 0
A193: UT Softlinebext 20202CANALIT-SW-02-06 | B193: IT-SW-02-06CANAL | D193: UT Softlinebext 20202 | E193: IT-SW-02-06 | F193: CANAL | G193: UT Softlinebext 20202 | H193: COP | I193: N/A | J193: Capacitación para usuario final hasta 20 Personas. | K193: Por sesión de capacitación de 4 horas para un grupo de hasta 20 personas. | L193: Und | M193: Servicio | N193: Zona 3 | O193: Sitio | P193: Capacitador | Q193: IT-SW-02-06 | R193: Mensual por servicios efectivamente prestados | S193: 2217333.333 | T193: 1 | U193: 1 | V193: =SUMIF(ResumenCotizacion!$C:$C,E193,ResumenCotizacion!$P:$P) -> 0 | W193: =IF(H193="USD",S193*SolCotizacion!$J$18,S193) -> 2217333.333 | X193: =ROUND(W193/(1-VLOOKUP("Total porcentaje:",ResumenCotizacion!$F:$H,3,0)),2) -> 2300138.31 | Y193: 0
A194: UT Softlinebext 20202CANALIT-SW-03-01 | B194: IT-SW-03-01CANAL | D194: UT Softlinebext 20202 | E194: IT-SW-03-01 | F194: CANAL | G194: UT Softlinebext 20202 | H194: COP | I194: N/A | J194: Capacitación para usuario técnico o administrador - hasta 10 Personas. | K194: Por sesión de capacitación de 4 horas para un grupo de hasta 10 personas. | L194: Und | M194: Servicio | N194: Zona 1 | O194: Remoto | P194: Capacitador | Q194: IT-SW-03-01 | R194: Mensual por servicios efectivamente prestados | S194: 1116000 | T194: 1 | U194: 1 | V194: =SUMIF(ResumenCotizacion!$C:$C,E194,ResumenCotizacion!$P:$P) -> 0 | W194: =IF(H194="USD",S194*SolCotizacion!$J$18,S194) -> 1116000 | X194: =ROUND(W194/(1-VLOOKUP("Total porcentaje:",ResumenCotizacion!$F:$H,3,0)),2) -> 1157676.35 | Y194: 0
A195: =D195&F195&E195 -> UT Softlinebext 20202CANALIT-SW-03-02 | B195: =E195&F195 -> IT-SW-03-02CANAL | D195: UT Softlinebext 20202 | E195: IT-SW-03-02 | F195: CANAL | G195: =D195 -> UT Softlinebext 20202 | H195: COP | I195: N/A | J195: Capacitación para usuario técnico o administrador - hasta 10 Personas. | K195: Por sesión de capacitación de 4 horas para un grupo de hasta 10 personas. | L195: Und | M195: Servicio | N195: Zona 1 | O195: Sitio | P195: Capacitador | Q195: IT-SW-03-02 | R195: Mensual por servicios efectivamente prestados | S195: 1466666.667 | T195: 1 | U195: 1 | V195: =SUMIF(ResumenCotizacion!$C:$C,E195,ResumenCotizacion!$P:$P) -> 0 | W195: =IF(H195="USD",S195*SolCotizacion!$J$18,S195) -> 1466666.667 | X195: =ROUND(W195/(1-VLOOKUP("Total porcentaje:",ResumenCotizacion!$F:$H,3,0)),2) -> 1521438.45 | Y195: =V195*X195 -> 0
A196: UT Softlinebext 20202CANALIT-SW-03-03 | B196: IT-SW-03-03CANAL | D196: UT Softlinebext 20202 | E196: IT-SW-03-03 | F196: CANAL | G196: UT Softlinebext 20202 | H196: COP | I196: N/A | J196: Capacitación para usuario técnico o administrador - hasta 10 Personas. | K196: Por sesión de capacitación de 4 horas para un grupo de hasta 10 personas. | L196: Und | M196: Servicio | N196: Zona 2 | O196: Remoto | P196: Capacitador | Q196: IT-SW-03-03 | R196: Mensual por servicios efectivamente prestados | S196: 1116000 | T196: 1 | U196: 1 | V196: =SUMIF(ResumenCotizacion!$C:$C,E196,ResumenCotizacion!$P:$P) -> 0 | W196: =IF(H196="USD",S196*SolCotizacion!$J$18,S196) -> 1116000 | X196: =ROUND(W196/(1-VLOOKUP("Total porcentaje:",ResumenCotizacion!$F:$H,3,0)),2) -> 1157676.35 | Y196: 0
A197: UT Softlinebext 20202CANALIT-SW-03-04 | B197: IT-SW-03-04CANAL | D197: UT Softlinebext 20202 | E197: IT-SW-03-04 | F197: CANAL | G197: UT Softlinebext 20202 | H197: COP | I197: N/A | J197: Capacitación para usuario técnico o administrador - hasta 10 Personas. | K197: Por sesión de capacitación de 4 horas para un grupo de hasta 10 personas. | L197: Und | M197: Servicio | N197: Zona 2 | O197: Sitio | P197: Capacitador | Q197: IT-SW-03-04 | R197: Mensual por servicios efectivamente prestados | S197: 1662000 | T197: 1 | U197: 1 | V197: =SUMIF(ResumenCotizacion!$C:$C,E197,ResumenCotizacion!$P:$P) -> 0 | W197: =IF(H197="USD",S197*SolCotizacion!$J$18,S197) -> 1662000 | X197: =ROUND(W197/(1-VLOOKUP("Total porcentaje:",ResumenCotizacion!$F:$H,3,0)),2) -> 1724066.39 | Y197: 0
A198: UT Softlinebext 20202CANALIT-SW-03-05 | B198: IT-SW-03-05CANAL | D198: UT Softlinebext 20202 | E198: IT-SW-03-05 | F198: CANAL | G198: UT Softlinebext 20202 | H198: COP | I198: N/A | J198: Capacitación para usuario técnico o administrador - hasta 10 Personas. | K198: Por sesión de capacitación de 4 horas para un grupo de hasta 10 personas. | L198: Und | M198: Servicio | N198: Zona 3 | O198: Remoto | P198: Capacitador | Q198: IT-SW-03-05 | R198: Mensual por servicios efectivamente prestados | S198: 1116000 | T198: 1 | U198: 1 | V198: =SUMIF(ResumenCotizacion!$C:$C,E198,ResumenCotizacion!$P:$P) -> 0 | W198: =IF(H198="USD",S198*SolCotizacion!$J$18,S198) -> 1116000 | X198: =ROUND(W198/(1-VLOOKUP("Total porcentaje:",ResumenCotizacion!$F:$H,3,0)),2) -> 1157676.35 | Y198: 0
A199: UT Softlinebext 20202CANALIT-SW-03-06 | B199: IT-SW-03-06CANAL | D199: UT Softlinebext 20202 | E199: IT-SW-03-06 | F199: CANAL | G199: UT Softlinebext 20202 | H199: COP | I199: N/A | J199: Capacitación para usuario técnico o administrador - hasta 10 Personas. | K199: Por sesión de capacitación de 4 horas para un grupo de hasta 10 personas. | L199: Und | M199: Servicio | N199: Zona 3 | O199: Sitio | P199: Capacitador | Q199: IT-SW-03-06 | R199: Mensual por servicios efectivamente prestados | S199: 2034266.667 | T199: 1 | U199: 1 | V199: =SUMIF(ResumenCotizacion!$C:$C,E199,ResumenCotizacion!$P:$P) -> 0 | W199: =IF(H199="USD",S199*SolCotizacion!$J$18,S199) -> 2034266.667 | X199: =ROUND(W199/(1-VLOOKUP("Total porcentaje:",ResumenCotizacion!$F:$H,3,0)),2) -> 2110235.13 | Y199: 0
A200: UT Softlinebext 20202CANALIT-SW-04-01 | B200: IT-SW-04-01CANAL | D200: UT Softlinebext 20202 | E200: IT-SW-04-01 | F200: CANAL | G200: UT Softlinebext 20202 | H200: COP | I200: N/A | J200: Capacitación para usuario técnico o administrador hasta 20 Personas. | K200: Por sesión de capacitación de 4 horas para un grupo de hasta 20 personas. | L200: Und | M200: Servicio | N200: Zona 1 | O200: Remoto | P200: Capacitador | Q200: IT-SW-04-01 | R200: Mensual por servicios efectivamente prestados | S200: 1116000 | T200: 1 | U200: 1 | V200: =SUMIF(ResumenCotizacion!$C:$C,E200,ResumenCotizacion!$P:$P) -> 0 | W200: =IF(H200="USD",S200*SolCotizacion!$J$18,S200) -> 1116000 | X200: =ROUND(W200/(1-VLOOKUP("Total porcentaje:",ResumenCotizacion!$F:$H,3,0)),2) -> 1157676.35 | Y200: 0
... 2436 more rows

Sheet tempListas (hidden)
A1: categoria
A2: CANAL
A3: OVS_ES ACADEMICO
A4: CSP ACADEMICO
A5: OPEN VALUE - CSP GOBIERNO
A6: OPEN VALUE ENTIDADES NO CUALIFICADAS
A7: CSP ENTIDADES NO CUALIFICADAS

Sheet ProveeSoloCatPrinci (hidden)
A1: Proveedores solo catalogo principal
A2: Colombia Telecomunicaciones S.A. ESP.
